DIRECTORATE,SECTION,DIVISION,VENDOR_NAME,VENDOR_SITE_ID,PAYMENT_DATE,VOUCHER_NO,AMOUNT,IRRECOVERABLE VATE,PURPOSE_OF_SPEND,PROCUREMENT_CLASSIFICATION
Corporate Resources,Facilities Management,Property,ACCESS UK LTD,1642494,05/10/2021,3756691,"1,324.23",0.00,N/A,N/A
Corporate Resources,Facilities Management,Property,ACCESS UK LTD,1642494,05/10/2021,3756691,936.30,0.00,N/A,N/A
Communities & Place,"Highways, Gounds Maintenance and Flood Defence",Public Protection and Streetride,AGGREGATE INDUSTRIES UK LTD,117850,05/10/2021,3772871,526.17,0.00,Highways Maintenance Works,Building and Construction Machinery and
Communities & Place,"Highways, Gounds Maintenance and Flood Defence",Public Protection and Streetride,AGGREGATE INDUSTRIES UK LTD,117850,05/10/2021,3772856,700.61,0.00,Highways Maintenance Works,Building and Construction Machinery and
Communities & Place,"Highways, Gounds Maintenance and Flood Defence",Public Protection and Streetride,AGGREGATE INDUSTRIES UK LTD,117850,05/10/2021,3772855,"1,728.64",0.00,Highways Maintenance Works,Building and Construction Machinery and
Communities & Place,"Highways, Gounds Maintenance and Flood Defence",Public Protection and Streetride,AGGREGATE INDUSTRIES UK LTD,117850,05/10/2021,3772894,"1,311.75",0.00,Highways Maintenance Reactionary Works,Building and Construction Machinery and
Communities & Place,"Highways, Gounds Maintenance and Flood Defence",Public Protection and Streetride,AGGREGATE INDUSTRIES UK LTD,117850,05/10/2021,3772889,585.80,0.00,Highways Maintenance Reactionary Works,Building and Construction Machinery and
People Services - Children & Young People,Learning & Inclusion,Non-Schools,AIM QUALIFICATIONS AND ASSESSMENT GROUP,1163485,05/10/2021,3775831,636.00,0.00,Employability Curriculum,Education and Training Services
Children and Young People,Children and Young People,Children and Young People,AMEY OW LTD,1399475,05/10/2021,3772854,869.12,0.00,N/A,N/A
Children and Young People,Children and Young People,Children and Young People,AMEY OW LTD,1264485,05/10/2021,3772832,"2,604.99",0.00,TCF Tranche 2 - Bus & Rapid Transit Links,Management and Business Professionals an
Neighbourhoods,Neighbourhoods,Neighbourhoods,AMEY OW LTD,1264485,05/10/2021,3772788,"1,332.12",0.00,UPRN 10110 - Asset Management - Structures Maintenance,Management and Business Professionals an
People Services - Adults and Health,Social Care Activities,Home First,APS GROUP,1006473,05/10/2021,3775807,922.41,0.00,Blue Badge and Appointeeship,Management and Business Professionals an
Communities & Place,Strategic Housing,City Development & Growth,ARCUS CONSULTING LLP,1666491,05/10/2021,3771740,900.00,0.00,N/A,N/A
Communities & Place,"Culture, Business Development & Tourism","Leisure, Culture and Tourism",ARROW SPECIALISED TRANSPORT LIMITED,1141493,05/10/2021,3772804,"3,282.40",0.00,Libraries Development & Delivery,Transportation and Storage and Mail Serv
People Services - Children & Young People,Learning & Inclusion,Non-Schools,ART OF BRILLIANCE LTD,1437493,05/10/2021,3775808,"30,000.00",0.00,N/A,N/A
Communities & Place,Leisure,"Leisure, Culture and Tourism",BEBIDA BEVERAGE SOLUTIONS LTD,186412,05/10/2021,3772822,"1,621.44",0.00,Derby Live Catering - Markeaton Park,Service Industry Machinery and Equipment
Communities & Place,Leisure,"Leisure, Culture and Tourism",BEBIDA BEVERAGE SOLUTIONS LTD,186412,05/10/2021,3772769,581.05,0.00,Derby Live Catering - Markeaton Park,Service Industry Machinery and Equipment
Communities & Place,Leisure,"Leisure, Culture and Tourism",BOOKERS,1576469,05/10/2021,3772785,723.72,0.00,N/A,N/A
Neighbourhoods,Neighbourhoods,Neighbourhoods,BROWNE JACOBSON LLP,143376,05/10/2021,3772831,"10,077.50",0.00,Smartparc,Management and Business Professionals an
Corporate Resources,Facilities Management,Property,BUNZL CLEANING AND HYGIENE SUPPLIES,961498,05/10/2021,3773974,600.95,0.00,Cleaning Operating Account,Chemicals including Bio Chemicals and Ga
Corporate Resources,Facilities Management,Property,BUNZL CLEANING AND HYGIENE SUPPLIES,961498,05/10/2021,3773972,651.99,0.00,Cleaning Operating Account,Chemicals including Bio Chemicals and Ga
People Services - Adults and Health,Mental Health Support,Mental Health,BWA HEALTH AND CARE SERVICE LTD,1089474,05/10/2021,3773557,588.64,0.00,N/A,N/A
People Services - Adults and Health,Physical Support,Community Support,BWA HEALTH AND CARE SERVICE LTD,1089474,05/10/2021,3773629,"2,682.20",0.00,N/A,N/A
People Services - Adults and Health,Physical Support,Community Support,BWA HEALTH AND CARE SERVICE LTD,1089474,05/10/2021,3773628,"2,339.88",0.00,N/A,N/A
People Services - Adults and Health,Physical Support,Community Support,BWA HEALTH AND CARE SERVICE LTD,1089474,05/10/2021,3773065,738.80,0.00,N/A,N/A
People Services - Adults and Health,Physical Support,Community Support,BWA HEALTH AND CARE SERVICE LTD,1089474,05/10/2021,3773627,"4,420.00",0.00,N/A,N/A
People Services - Adults and Health,Physical Support,Community Support,BWA HEALTH AND CARE SERVICE LTD,1089474,05/10/2021,3773342,781.64,0.00,N/A,N/A
People Services - Adults and Health,Physical Support,Community Support,BWA HEALTH AND CARE SERVICE LTD,1089474,05/10/2021,3773717,"3,040.00",0.00,N/A,N/A
People Services - Adults and Health,Physical Support,Community Support,BWA HEALTH AND CARE SERVICE LTD,1089474,05/10/2021,3773547,"3,040.00",0.00,N/A,N/A
People Services - Adults and Health,Physical Support,Community Support,BWA HEALTH AND CARE SERVICE LTD,1089474,05/10/2021,3773069,"4,420.00",0.00,N/A,N/A
People Services - Adults and Health,Physical Support,Community Support,BWA HEALTH AND CARE SERVICE LTD,1089474,05/10/2021,3773179,510.91,0.00,N/A,N/A
People Services - Adults and Health,Physical Support,Community Support,BWA HEALTH AND CARE SERVICE LTD,1089474,05/10/2021,3773352,680.99,0.00,N/A,N/A
People Services - Adults and Health,Physical Support,Community Support,BWA HEALTH AND CARE SERVICE LTD,1089474,05/10/2021,3773250,"1,344.72",0.00,N/A,N/A
People Services - Adults and Health,Physical Support,Community Support,BWA HEALTH AND CARE SERVICE LTD,1089474,05/10/2021,3773249,908.16,0.00,N/A,N/A
People Services - Adults and Health,Physical Support,Community Support,BWA HEALTH AND CARE SERVICE LTD,1089474,05/10/2021,3773172,"1,165.48",0.00,N/A,N/A
People Services - Adults and Health,Physical Support,Community Support,BWA HEALTH AND CARE SERVICE LTD,1089474,05/10/2021,3773630,"1,165.48",0.00,N/A,N/A
People Services - Adults and Health,Physical Support,Community Support,BWA HEALTH AND CARE SERVICE LTD,1089474,05/10/2021,3773348,802.85,0.00,N/A,N/A
People Services - Adults and Health,Physical Support,Community Support,BWA HEALTH AND CARE SERVICE LTD,1089474,05/10/2021,3773347,658.54,0.00,N/A,N/A
People Services - Adults and Health,Physical Support,Community Support,BWA HEALTH AND CARE SERVICE LTD,1089474,05/10/2021,3773441,"1,265.20",0.00,N/A,N/A
People Services - Adults and Health,Physical Support,Community Support,BWA HEALTH AND CARE SERVICE LTD,1089474,05/10/2021,3773550,908.16,0.00,N/A,N/A
People Services - Adults and Health,Physical Support,Community Support,BWA HEALTH AND CARE SERVICE LTD,1089474,05/10/2021,3773171,"1,164.72",0.00,N/A,N/A
People Services - Adults and Health,Physical Support,Community Support,BWA HEALTH AND CARE SERVICE LTD,1089474,05/10/2021,3773170,"1,073.62",0.00,N/A,N/A
People Services - Adults and Health,Physical Support,Community Support,BWA HEALTH AND CARE SERVICE LTD,1089474,05/10/2021,3773344,850.91,0.00,N/A,N/A
People Services - Adults and Health,Physical Support,Community Support,BWA HEALTH AND CARE SERVICE LTD,1089474,05/10/2021,3773715,856.20,0.00,N/A,N/A
People Services - Adults and Health,Physical Support,Community Support,BWA HEALTH AND CARE SERVICE LTD,1089474,05/10/2021,3773438,"1,046.20",0.00,N/A,N/A
People Services - Adults and Health,Physical Support,Community Support,BWA HEALTH AND CARE SERVICE LTD,1089474,05/10/2021,3773706,"1,582.76",0.00,N/A,N/A
People Services - Adults and Health,Learning Disability Support,Community Support,BWA HEALTH AND CARE SERVICE LTD,1089474,05/10/2021,3773353,"1,291.12",0.00,N/A,N/A
People Services - Adults and Health,Support with Memory and Cognition,Community Support,BWA HEALTH AND CARE SERVICE LTD,1089474,05/10/2021,3773634,782.12,0.00,N/A,N/A
People Services - Adults and Health,Support with Memory and Cognition,Community Support,BWA HEALTH AND CARE SERVICE LTD,1089474,05/10/2021,3773622,897.60,0.00,N/A,N/A
People Services - Adults and Health,Mental Health Support,Mental Health,BWA HEALTH AND CARE SERVICE LTD,1089474,05/10/2021,3773354,"1,346.40",0.00,N/A,N/A
People Services - Adults and Health,Mental Health Support,Mental Health,BWA HEALTH AND CARE SERVICE LTD,1089474,05/10/2021,3773446,815.64,0.00,N/A,N/A
Communities & Place,"Waste, Street Cleansing & Fleet",Public Protection and Streetride,CAR ACCIDENT REPAIR SERVICE LTD,106099,05/10/2021,3773990,964.00,0.00,Fleet Hire,Transportation and Storage and Mail Serv
Corporate Resources,Digital Services & Customer Management,Digital Services & Customer Management,CIVICA UK LTD,44729,05/10/2021,3760895,730.33,0.00,Information Systems,Engineering and Research and Technology
People Services - Children & Young People,Commissioning,Non-Schools,COMMUNITY LINKS DERBY CIC,697452,05/10/2021,3756248,827.10,0.00,N/A,N/A
Corporate Resources,Digital Services & Customer Management,Digital Services & Customer Management,CROWN HOSTING DATA CENTRES LTD,470548,05/10/2021,3775816,"2,264.64",0.00,IT Infrastructure,Information Technology Broadcasting and
People Services - Children & Young People,Integrated Services,Non-Schools,CUSTOM GROUP LTD,1315,05/10/2021,3761572,"1,773.17",0.00,Shine,Furniture and Furnishings
People Services - Adults and Health,Social Care Activities,Mental Health,DCC INTERACTIVE LTD,1549470,05/10/2021,3773991,900.00,0.00,N/A,N/A
Communities & Place,Economic Development,City Development & Growth,DERBY BOOK FESTIVAL,256424,05/10/2021,3774028,"5,000.00",0.00,Additional Restrictions Grant,Management and Business Professionals an
Communities & Place,"Culture, Business Development & Tourism","Leisure, Culture and Tourism",DERBY FOLK FESTIVAL FRINGE,1664480,05/10/2021,3756255,750.00,0.00,N/A,N/A
Communities & Place,"Culture, Business Development & Tourism","Leisure, Culture and Tourism",DERBY FOLK FESTIVAL FRINGE,1664480,05/10/2021,3756255,750.00,0.00,N/A,N/A
Communities & Place,"Waste, Street Cleansing & Fleet",Public Protection and Streetride,DERBY HOMES LTD,88149,05/10/2021,3713211,"4,321.08",0.00,Stores Road Depot,Default
Corporate,Corporate Obsolete Codes,Corporate Obsolete Codes,DERBY MUSEUMS,127016,05/10/2021,3773953,"4,800.00",0.00,Support Services Balance,Organizations and Clubs-Clubs
Neighbourhoods,Neighbourhoods,Neighbourhoods,DERBYSHIRE BUILDING CONTROL PARTNERSHIP LTD,863447,05/10/2021,3775726,510.00,0.00,N/A,N/A
Communities & Place,Strategic Housing,City Development & Growth,DERBYSHIRE CARE SERVICES,1207,05/10/2021,3771493,"6,715.17",0.00,Housing Development HRA,Healthcare Services
Communities & Place,Strategic Housing,City Development & Growth,DERBYSHIRE CARE SERVICES,1207,05/10/2021,3771488,"6,719.38",0.00,Housing Development HRA,Healthcare Services
People Services - Adults and Health,Public Health,Public Health,DERBYSHIRE COMMUNITY HEALTH SERVICES NHS TRUST,109973,05/10/2021,3772814,"8,694.80",0.00,Genitourinary Medicine Services (GUM) - Out Of Area,Education and Training Services
Communities & Place,Highways Assest and Engineering,Planning & Transportation,DERWENT FENCING LTD,279396,05/10/2021,3774005,840.00,0.00,Engineering Section,Structures and Building and Construction
Communities & Place,Highways Assest and Engineering,Planning & Transportation,DERWENT FENCING LTD,279396,05/10/2021,3774005,"1,200.00",0.00,Engineering Section,Structures and Building and Construction
Corporate Resources,Facilities Management,Property,DERWENT HYDRO ELECTRIC POWER LTD,1139484,05/10/2021,3772848,645.88,0.00,Hydro Plant,Environmental Services
Corporate Resources,Facilities Management,Property,DERWENT HYDRO ELECTRIC POWER LTD,1139484,05/10/2021,3772848,"1,703.83",0.00,Hydro Plant,Environmental Services
People Services - Children & Young People,Early Help & Children�s Safeguarding,Non-Schools,DODDS SOLICITORS LLP,952477,05/10/2021,3772906,938.10,0.00,Legal Fees,Management and Business Professionals an
People Services - Children & Young People,Early Help & Children�s Safeguarding,Non-Schools,DODDS SOLICITORS LLP,952477,05/10/2021,3772905,"1,733.42",0.00,Legal Fees,Management and Business Professionals an
People Services - Children & Young People,Early Help & Children�s Safeguarding,Non-Schools,DODDS SOLICITORS LLP,952477,05/10/2021,3772904,"1,843.69",0.00,Legal Fees,Management and Business Professionals an
People Services - Children & Young People,Early Help & Children�s Safeguarding,Non-Schools,DODDS SOLICITORS LLP,952477,05/10/2021,3772903,"2,168.68",0.00,Legal Fees,Management and Business Professionals an
People Services - Children & Young People,Early Help & Children�s Safeguarding,Non-Schools,DODDS SOLICITORS LLP,952477,05/10/2021,3772903,"2,323.68",0.00,Legal Fees,Management and Business Professionals an
People Services - Children & Young People,Early Help & Children�s Safeguarding,Non-Schools,DODDS SOLICITORS LLP,952477,05/10/2021,3772902,"2,401.06",0.00,Legal Fees,Management and Business Professionals an
People Services - Children & Young People,Early Help & Children�s Safeguarding,Non-Schools,DODDS SOLICITORS LLP,952477,05/10/2021,3772899,"1,748.81",0.00,Legal Fees,Management and Business Professionals an
People Services - Children & Young People,Early Help & Children�s Safeguarding,Non-Schools,DODDS SOLICITORS LLP,952477,05/10/2021,3772904,552.35,0.00,Legal Fees,Management and Business Professionals an
People Services - Children & Young People,Non Delegated Schools Budget,Schools Block,EASTERN SHIRES PURCHASING ORGANISATION.,5686,05/10/2021,3771967,"2,004.50",0.00,Ravensdale Infants Decant Costs,Default
People Services - Children & Young People,Early Help & Children�s Safeguarding,Non-Schools,EMBRACE CARE LTD,1524476,05/10/2021,3772874,"3,253.00",0.00,N/A,N/A
People Services - Children & Young People,Integrated Services,Non-Schools,EMBRACE SHEFFIELD LIMITED,1593469,05/10/2021,3773951,650.00,0.00,N/A,N/A
Neighbourhoods,Neighbourhoods,Neighbourhoods,EUROVIA INFRASTRUCTURE LTD,186462,05/10/2021,3773994,"163,417.56",0.00,MULTIPLE - Active Travel - Smarter Choices,Engineering and Research and Technology
Neighbourhoods,Neighbourhoods,Neighbourhoods,EUROVIA INFRASTRUCTURE LTD,186462,05/10/2021,3773994,"1,468.01",0.00,MULTIPLE - Active Travel - Smarter Choices,Engineering and Research and Technology
Neighbourhoods,Neighbourhoods,Neighbourhoods,FAITHFUL AND GOULD LIMITED,945490,05/10/2021,3775733,"7,644.00",0.00,N/A,N/A
People Services - Children & Young People,Non Delegated Schools Budget,Schools Block,FAITHFUL AND GOULD LIMITED,945490,05/10/2021,3775734,750.00,0.00,N/A,N/A
Communities & Place,"Trading Standards, Food and Safety, Bereavement Services and Building Consultanc",Public Protection and Streetride,FD WELTERS LTD,185523,05/10/2021,3775884,519.80,0.00,Cemeteries,Public Utilities and Public Sector Relat
Communities & Place,"Trading Standards, Food and Safety, Bereavement Services and Building Consultanc",Public Protection and Streetride,FD WELTERS LTD,185523,05/10/2021,3775883,"31,628.00",0.00,Cemeteries,Public Utilities and Public Sector Relat
Communities & Place,"Trading Standards, Food and Safety, Bereavement Services and Building Consultanc",Public Protection and Streetride,FG MARSHALL LTD,250440,05/10/2021,3775837,"2,535.04",0.00,Crematorium,Editorial and Design and Graphic and Fin
Communities & Place,Leisure,"Leisure, Culture and Tourism",FMG CONSULTING LTD,123427,05/10/2021,3773948,"5,158.20",0.00,Moorways Sports Village,Management and Business Professionals an
People Services - Adults and Health,Physical Support,Community Support,FOSSE HEALTHCARE LTD,448402,05/10/2021,3773184,"1,296.56",0.00,N/A,N/A
People Services - Adults and Health,Physical Support,Community Support,FOSSE HEALTHCARE LTD,448402,05/10/2021,3773639,803.37,0.00,N/A,N/A
People Services - Adults and Health,Physical Support,Community Support,FOSSE HEALTHCARE LTD,448402,05/10/2021,3773721,"1,140.07",0.00,N/A,N/A
People Services - Adults and Health,Physical Support,Community Support,FOSSE HEALTHCARE LTD,448402,05/10/2021,3773720,782.65,0.00,N/A,N/A
People Services - Adults and Health,Physical Support,Community Support,FOSSE HEALTHCARE LTD,448402,05/10/2021,3773562,"1,063.28",0.00,N/A,N/A
People Services - Adults and Health,Physical Support,Community Support,FOSSE HEALTHCARE LTD,448402,05/10/2021,3773078,904.88,0.00,N/A,N/A
People Services - Adults and Health,Physical Support,Community Support,FOSSE HEALTHCARE LTD,448402,05/10/2021,3773450,503.41,0.00,N/A,N/A
Communities & Place,"Waste, Street Cleansing & Fleet",Public Protection and Streetride,FUCHS LUBRICANTS UK PLC,1937,05/10/2021,3775886,595.46,0.00,Vehicle Maintenance,Chemicals including Bio Chemicals and Ga
Corporate Resources,Property Design & Maintenance,Property,G2V RECRUITMENT GROUP LIMITED,886475,05/10/2021,3775758,"1,850.00",0.00,N/A,N/A
Corporate Resources,Property Design & Maintenance,Property,G2V RECRUITMENT GROUP LIMITED,886475,05/10/2021,3775748,"3,300.50",0.00,N/A,N/A
Communities & Place,Strategic Housing,City Development & Growth,G2V RECRUITMENT GROUP LIMITED,886471,05/10/2021,3772880,"1,796.72",0.00,Housing Revenue Account,Management and Business Professionals an
Corporate Resources,Property Design & Maintenance,Property,G2V RECRUITMENT GROUP LTD G2 RECRUITMENT (INTERFACE),1664490,05/10/2021,3775719,"1,665.00",0.00,N/A,N/A
Chief Executives,Chief Executives,Chief Executives,GELDARDS LLP,1526517,05/10/2021,3772836,"2,677.00",0.00,N/A,N/A
Communities & Place,"Highways, Gounds Maintenance and Flood Defence",Public Protection and Streetride,GORDON ELLIS AND CO,1202481,05/10/2021,3768006,825.00,0.00,Grounds Maintenance,Building and Construction and Maintenanc
Communities & Place,"Highways, Gounds Maintenance and Flood Defence",Public Protection and Streetride,GREG LONG TREE CARE,1624477,05/10/2021,3774022,"18,200.00",0.00,N/A,N/A
Communities & Place,"Highways, Gounds Maintenance and Flood Defence",Public Protection and Streetride,GREG LONG TREE CARE,1624477,05/10/2021,3774039,"5,500.00",0.00,N/A,N/A
Communities & Place,"Highways, Gounds Maintenance and Flood Defence",Public Protection and Streetride,GREG LONG TREE CARE,1624477,05/10/2021,3775705,"1,155.00",0.00,N/A,N/A
Communities & Place,"Highways, Gounds Maintenance and Flood Defence",Public Protection and Streetride,GREG LONG TREE CARE,1624477,05/10/2021,3775705,"4,950.00",0.00,N/A,N/A
Corporate Resources,Property Design & Maintenance,Property,HAYS SPECIALIST RECRUITMENT LTD,188508,05/10/2021,3775757,"5,615.86",0.00,N/A,N/A
Corporate Resources,Property Design & Maintenance,Property,HAYS SPECIALIST RECRUITMENT LTD,188508,05/10/2021,3775756,"2,837.10",0.00,N/A,N/A
Corporate Resources,Property Design & Maintenance,Property,HAYS SPECIALIST RECRUITMENT LTD,188508,05/10/2021,3775755,"4,830.35",0.00,N/A,N/A
Corporate Resources,Property Design & Maintenance,Property,HAYS SPECIALIST RECRUITMENT LTD,188508,05/10/2021,3775744,"6,007.10",0.00,N/A,N/A
Corporate Resources,Property Design & Maintenance,Property,HAYS SPECIALIST RECRUITMENT LTD,188508,05/10/2021,3775743,"6,979.50",0.00,N/A,N/A
Corporate Resources,Property Design & Maintenance,Property,HAYS SPECIALIST RECRUITMENT LTD,188508,05/10/2021,3775742,"6,318.36",0.00,N/A,N/A
Corporate Resources,Property Design & Maintenance,Property,HAYS SPECIALIST RECRUITMENT LTD,188508,05/10/2021,3775727,"6,306.90",0.00,N/A,N/A
Corporate Resources,Communication and Consultation,Coroprate Core,HICKLING AND SQUIRES LTD,1103476,05/10/2021,3772081,"2,174.00",0.00,Corporate Communications,Editorial and Design and Graphic and Fin
People Services - Children & Young People,Early Help & Children�s Safeguarding,Non-Schools,HILBROKE HOUSE LTD,1002472,05/10/2021,3774024,935.00,0.00,Peartree Team,Travel and Food and Lodging and Entertai
People Services - Children & Young People,Early Help & Children�s Safeguarding,Non-Schools,HILBROKE HOUSE LTD,1002472,05/10/2021,3772886,808.50,0.00,Sinfin Team,Travel and Food and Lodging and Entertai
People Services - Children & Young People,Early Help & Children�s Safeguarding,Non-Schools,HILBROKE HOUSE LTD,1002472,05/10/2021,3772879,808.50,0.00,Sinfin Team,Travel and Food and Lodging and Entertai
People Services - Children & Young People,Early Help & Children�s Safeguarding,Non-Schools,HILBROKE HOUSE LTD,1002472,05/10/2021,3772878,"1,212.75",0.00,Sinfin Team,Travel and Food and Lodging and Entertai
People Services - Children & Young People,Early Help & Children�s Safeguarding,Non-Schools,HILBROKE HOUSE LTD,1002472,05/10/2021,3775817,980.00,0.00,Chellaston Team,Travel and Food and Lodging and Entertai
People Services - Children & Young People,Early Help & Children�s Safeguarding,Non-Schools,HILBROKE HOUSE LTD,1002472,05/10/2021,3772865,980.00,0.00,Chellaston Team,Travel and Food and Lodging and Entertai
People Services - Children & Young People,Early Help & Children�s Safeguarding,Non-Schools,HILBROKE HOUSE LTD,1002472,05/10/2021,3772864,980.00,0.00,Chellaston Team,Travel and Food and Lodging and Entertai
People Services - Children & Young People,Early Help & Children�s Safeguarding,Non-Schools,HILBROKE HOUSE LTD,1002472,05/10/2021,3772863,980.00,0.00,Chellaston Team,Travel and Food and Lodging and Entertai
People Services - Children & Young People,Early Help & Children�s Safeguarding,Non-Schools,HILBROKE HOUSE LTD,1002472,05/10/2021,3772862,980.00,0.00,Chellaston Team,Travel and Food and Lodging and Entertai
People Services - Children & Young People,Early Help & Children�s Safeguarding,Non-Schools,HILBROKE HOUSE LTD,1002472,05/10/2021,3772861,980.00,0.00,Chellaston Team,Travel and Food and Lodging and Entertai
People Services - Adults and Health,Social Care Activities,Home First,HOLDSWORTH FOODS,1111476,05/10/2021,3773932,"1,177.56",0.00,Home First: Perth House,Food Beverage and Tobacco Products
People Services - Adults and Health,Social Care Activities,Home First,HOLDSWORTH FOODS,1111476,05/10/2021,3773932,943.62,0.00,Home First: Perth House,Food Beverage and Tobacco Products
People Services - Adults and Health,Physical Support,Community Support,I CARE GB LTD,471255,05/10/2021,3773507,770.21,0.00,N/A,N/A
People Services - Adults and Health,Physical Support,Community Support,I CARE GB LTD,471255,05/10/2021,3773211,770.21,0.00,N/A,N/A
People Services - Adults and Health,Physical Support,Community Support,I CARE GB LTD,471255,05/10/2021,3773222,865.72,0.00,N/A,N/A
People Services - Adults and Health,Physical Support,Community Support,I CARE GB LTD,471255,05/10/2021,3773683,813.26,0.00,N/A,N/A
People Services - Adults and Health,Physical Support,Community Support,I CARE GB LTD,471255,05/10/2021,3773138,933.11,0.00,N/A,N/A
People Services - Adults and Health,Physical Support,Community Support,I CARE GB LTD,471255,05/10/2021,3773675,754.16,0.00,N/A,N/A
People Services - Adults and Health,Physical Support,Community Support,I CARE GB LTD,471255,05/10/2021,3773514,832.96,0.00,N/A,N/A
People Services - Adults and Health,Physical Support,Community Support,I CARE GB LTD,471255,05/10/2021,3773221,827.76,0.00,N/A,N/A
People Services - Adults and Health,Physical Support,Community Support,I CARE GB LTD,471255,05/10/2021,3773137,832.96,0.00,N/A,N/A
People Services - Adults and Health,Physical Support,Community Support,I CARE GB LTD,471255,05/10/2021,3773136,828.63,0.00,N/A,N/A
People Services - Adults and Health,Physical Support,Community Support,I CARE GB LTD,471255,05/10/2021,3773135,761.02,0.00,N/A,N/A
People Services - Adults and Health,Physical Support,Community Support,I CARE GB LTD,471255,05/10/2021,3773316,828.63,0.00,N/A,N/A
People Services - Adults and Health,Physical Support,Community Support,I CARE GB LTD,471255,05/10/2021,3773308,543.15,0.00,N/A,N/A
People Services - Adults and Health,Physical Support,Community Support,I CARE GB LTD,471255,05/10/2021,3773506,673.31,0.00,N/A,N/A
People Services - Adults and Health,Physical Support,Community Support,I CARE GB LTD,471255,05/10/2021,3773028,800.84,0.00,N/A,N/A
People Services - Adults and Health,Physical Support,Community Support,I CARE GB LTD,471255,05/10/2021,3773124,800.84,0.00,N/A,N/A
People Services - Adults and Health,Physical Support,Community Support,I CARE GB LTD,471255,05/10/2021,3773305,771.52,0.00,N/A,N/A
People Services - Adults and Health,Mental Health Support,Mental Health,I CARE GB LTD,471255,05/10/2021,3773604,709.80,0.00,N/A,N/A
Communities & Place,"Culture, Business Development & Tourism","Leisure, Culture and Tourism",IMPACT PRODUCTIONS MILTON KEYNES LIMITED,1544471,05/10/2021,3756969,"16,576.00",0.00,N/A,N/A
Communities & Place,"Culture, Business Development & Tourism","Leisure, Culture and Tourism",IMPACT PRODUCTIONS MILTON KEYNES LIMITED,1544471,05/10/2021,3756968,"1,385.00",0.00,N/A,N/A
Communities & Place,"Culture, Business Development & Tourism","Leisure, Culture and Tourism",IMPACT PRODUCTIONS MILTON KEYNES LIMITED,1544471,05/10/2021,3756967,699.65,0.00,N/A,N/A
Communities & Place,"Culture, Business Development & Tourism","Leisure, Culture and Tourism",IMPACT PRODUCTIONS MILTON KEYNES LIMITED,1544471,05/10/2021,3756966,"10,000.00",0.00,N/A,N/A
Communities & Place,"Culture, Business Development & Tourism","Leisure, Culture and Tourism",IMPACT PRODUCTIONS MILTON KEYNES LIMITED,1544471,05/10/2021,3756966,"1,300.00",0.00,N/A,N/A
Communities & Place,"Highways, Gounds Maintenance and Flood Defence",Public Protection and Streetride,INSTARMAC GROUP PLC,2326,05/10/2021,3771736,764.96,0.00,Highways Maintenance Reactionary Works,Electrical systems and Lighting and comp
Corporate Resources,Communication and Consultation,Coroprate Core,LEICESTERSHIRE COUNTY COUNCIL,2371,05/10/2021,3767988,802.22,0.00,Corporate Communications,Education and Training Services
People Services - Children & Young People,Early Help & Children�s Safeguarding,Non-Schools,LEXTOX DRUG AND ALCOHOL TESTING,188563,05/10/2021,3772887,875.00,0.00,Legal Fees,Management and Business Professionals an
People Services - Children & Young People,Early Help & Children�s Safeguarding,Non-Schools,LEXTOX DRUG AND ALCOHOL TESTING,188563,05/10/2021,3772858,806.00,0.00,Legal Fees,Management and Business Professionals an
Corporate Resources,Financial Services,Financial Services,LIBERATA UK LTD,109209,05/10/2021,3773992,"19,857.41",0.00,Housing Benefits & C Tax Support Admin,Management and Business Professionals an
People Services - Adults and Health,Learning Disability Support,Community Support,LIFEWAYS COMMUNITY CARE LTD,1069476,05/10/2021,3773183,849.60,0.00,N/A,N/A
People Services - Adults and Health,Learning Disability Support,Community Support,LIFEWAYS COMMUNITY CARE LTD,1069476,05/10/2021,3773077,849.60,0.00,N/A,N/A
Communities & Place,"Highways, Gounds Maintenance and Flood Defence",Public Protection and Streetride,MAGFERN RECYCLING 2018 LTD,956474,05/10/2021,3772873,585.82,0.00,Grounds Maintenance Derby Homes,Environmental Services
People Services - Adults and Health,Social Care Activities,Mental Health,MARTIN WALSH ASSOCIATES LTD,1158488,05/10/2021,3773936,550.00,0.00,Adult Workforce Learning and Development,Education and Training Services
Corporate,Corporate,Corporate,MATRIX SCM LTD,822477,05/10/2021,3772911,"130,510.58",0.00,Temporary Workers Control A/C,Management and Business Professionals an
People Services - Adults and Health,Physical Support,Community Support,MEARS EXTRA CARE LIMITED,1591473,05/10/2021,3773038,762.28,0.00,N/A,N/A
People Services - Adults and Health,Physical Support,Community Support,MEARS EXTRA CARE LIMITED,1591473,05/10/2021,3773130,762.28,0.00,N/A,N/A
People Services - Adults and Health,Physical Support,Community Support,MEDILINE HOME CARE LIMITED,1399470,05/10/2021,3773042,"2,324.70",0.00,N/A,N/A
People Services - Adults and Health,Physical Support,Community Support,MEDILINE HOME CARE LIMITED,1399470,05/10/2021,3773607,"3,195.00",0.00,N/A,N/A
People Services - Adults and Health,Physical Support,Community Support,MEDILINE HOME CARE LIMITED,1399470,05/10/2021,3773529,695.28,0.00,N/A,N/A
People Services - Adults and Health,Physical Support,Community Support,MEDILINE HOME CARE LIMITED,1399470,05/10/2021,3773528,570.48,0.00,N/A,N/A
People Services - Adults and Health,Physical Support,Community Support,MEDILINE HOME CARE LIMITED,1399470,05/10/2021,3773231,"1,165.48",0.00,N/A,N/A
People Services - Adults and Health,Physical Support,Community Support,MEDILINE HOME CARE LIMITED,1399470,05/10/2021,3773613,"1,165.48",0.00,N/A,N/A
People Services - Adults and Health,Physical Support,Community Support,MEDILINE HOME CARE LIMITED,1399470,05/10/2021,3773148,"1,211.16",0.00,N/A,N/A
People Services - Adults and Health,Physical Support,Community Support,MEDILINE HOME CARE LIMITED,1399470,05/10/2021,3773423,"2,075.64",0.00,N/A,N/A
People Services - Adults and Health,Physical Support,Community Support,MEDILINE HOME CARE LIMITED,1399470,05/10/2021,3773422,670.20,0.00,N/A,N/A
People Services - Adults and Health,Physical Support,Community Support,MEDILINE HOME CARE LIMITED,1399470,05/10/2021,3773531,"2,075.64",0.00,N/A,N/A
People Services - Adults and Health,Physical Support,Community Support,MEDILINE HOME CARE LIMITED,1399470,05/10/2021,3773530,"1,182.47",0.00,N/A,N/A
People Services - Adults and Health,Physical Support,Community Support,MEDILINE HOME CARE LIMITED,1399470,05/10/2021,3773055,908.16,0.00,N/A,N/A
People Services - Adults and Health,Physical Support,Community Support,MEDILINE HOME CARE LIMITED,1399470,05/10/2021,3773526,585.32,0.00,N/A,N/A
People Services - Adults and Health,Physical Support,Community Support,MEDILINE HOME CARE LIMITED,1399470,05/10/2021,3773230,585.32,0.00,N/A,N/A
People Services - Adults and Health,Physical Support,Community Support,MEDILINE HOME CARE LIMITED,1399470,05/10/2021,3773702,986.96,0.00,N/A,N/A
People Services - Adults and Health,Physical Support,Community Support,MEDILINE HOME CARE LIMITED,1399470,05/10/2021,3773701,908.16,0.00,N/A,N/A
People Services - Adults and Health,Physical Support,Community Support,MEDILINE HOME CARE LIMITED,1399470,05/10/2021,3773688,664.12,0.00,N/A,N/A
People Services - Adults and Health,Physical Support,Community Support,MEDILINE HOME CARE LIMITED,1399470,05/10/2021,3773268,715.95,0.00,N/A,N/A
People Services - Adults and Health,Physical Support,Community Support,MEDILINE HOME CARE LIMITED,1399470,05/10/2021,3773267,715.92,0.00,N/A,N/A
People Services - Adults and Health,Physical Support,Community Support,MEDILINE HOME CARE LIMITED,1399470,05/10/2021,3773525,"1,111.20",0.00,N/A,N/A
People Services - Adults and Health,Physical Support,Community Support,MEDILINE HOME CARE LIMITED,1399470,05/10/2021,3773523,832.96,0.00,N/A,N/A
People Services - Adults and Health,Physical Support,Community Support,MEDILINE HOME CARE LIMITED,1399470,05/10/2021,3773522,810.35,0.00,N/A,N/A
People Services - Adults and Health,Physical Support,Community Support,MEDILINE HOME CARE LIMITED,1399470,05/10/2021,3773524,"1,065.76",0.00,N/A,N/A
People Services - Adults and Health,Physical Support,Community Support,MEDILINE HOME CARE LIMITED,1399470,05/10/2021,3773266,570.48,0.00,N/A,N/A
People Services - Adults and Health,Physical Support,Community Support,MEDILINE HOME CARE LIMITED,1399470,05/10/2021,3773046,739.32,0.00,N/A,N/A
People Services - Adults and Health,Physical Support,Community Support,MEDILINE HOME CARE LIMITED,1399470,05/10/2021,3773040,816.31,0.00,N/A,N/A
People Services - Adults and Health,Physical Support,Community Support,MEDILINE HOME CARE LIMITED,1399470,05/10/2021,3773045,739.32,0.00,N/A,N/A
People Services - Adults and Health,Physical Support,Community Support,MEDILINE HOME CARE LIMITED,1399470,05/10/2021,3773641,558.32,0.00,N/A,N/A
People Services - Adults and Health,Physical Support,Community Support,MEDILINE HOME CARE LIMITED,1399470,05/10/2021,3773229,"1,111.20",0.00,N/A,N/A
People Services - Adults and Health,Physical Support,Community Support,MEDILINE HOME CARE LIMITED,1399470,05/10/2021,3773228,868.20,0.00,N/A,N/A
People Services - Adults and Health,Physical Support,Community Support,MEDILINE HOME CARE LIMITED,1399470,05/10/2021,3773226,913.26,0.00,N/A,N/A
People Services - Adults and Health,Physical Support,Community Support,MEDILINE HOME CARE LIMITED,1399470,05/10/2021,3773225,829.36,0.00,N/A,N/A
People Services - Adults and Health,Physical Support,Community Support,MEDILINE HOME CARE LIMITED,1399470,05/10/2021,3773146,"1,165.48",0.00,N/A,N/A
People Services - Adults and Health,Physical Support,Community Support,MEDILINE HOME CARE LIMITED,1399470,05/10/2021,3773145,908.16,0.00,N/A,N/A
People Services - Adults and Health,Physical Support,Community Support,MEDILINE HOME CARE LIMITED,1399470,05/10/2021,3773144,884.76,0.00,N/A,N/A
People Services - Adults and Health,Physical Support,Community Support,MEDILINE HOME CARE LIMITED,1399470,05/10/2021,3773143,815.64,0.00,N/A,N/A
People Services - Adults and Health,Physical Support,Community Support,MEDILINE HOME CARE LIMITED,1399470,05/10/2021,3773611,"1,543.08",0.00,N/A,N/A
People Services - Adults and Health,Physical Support,Community Support,MEDILINE HOME CARE LIMITED,1399470,05/10/2021,3773610,994.64,0.00,N/A,N/A
People Services - Adults and Health,Physical Support,Community Support,MEDILINE HOME CARE LIMITED,1399470,05/10/2021,3773609,990.56,0.00,N/A,N/A
People Services - Adults and Health,Physical Support,Community Support,MEDILINE HOME CARE LIMITED,1399470,05/10/2021,3773608,842.64,0.00,N/A,N/A
People Services - Adults and Health,Physical Support,Community Support,MEDILINE HOME CARE LIMITED,1399470,05/10/2021,3773602,667.74,0.00,N/A,N/A
People Services - Adults and Health,Physical Support,Community Support,MEDILINE HOME CARE LIMITED,1399470,05/10/2021,3773134,844.60,0.00,N/A,N/A
People Services - Adults and Health,Physical Support,Community Support,MEDILINE HOME CARE LIMITED,1399470,05/10/2021,3773454,637.12,0.00,N/A,N/A
People Services - Adults and Health,Physical Support,Community Support,MEDILINE HOME CARE LIMITED,1399470,05/10/2021,3773453,506.52,0.00,N/A,N/A
People Services - Adults and Health,Physical Support,Community Support,MEDILINE HOME CARE LIMITED,1399470,05/10/2021,3773330,"1,165.48",0.00,N/A,N/A
People Services - Adults and Health,Physical Support,Community Support,MEDILINE HOME CARE LIMITED,1399470,05/10/2021,3773329,"1,086.68",0.00,N/A,N/A
People Services - Adults and Health,Physical Support,Community Support,MEDILINE HOME CARE LIMITED,1399470,05/10/2021,3773328,990.56,0.00,N/A,N/A
People Services - Adults and Health,Physical Support,Community Support,MEDILINE HOME CARE LIMITED,1399470,05/10/2021,3773327,969.10,0.00,N/A,N/A
People Services - Adults and Health,Physical Support,Community Support,MEDILINE HOME CARE LIMITED,1399470,05/10/2021,3773326,913.26,0.00,N/A,N/A
People Services - Adults and Health,Physical Support,Community Support,MEDILINE HOME CARE LIMITED,1399470,05/10/2021,3773315,667.74,0.00,N/A,N/A
People Services - Adults and Health,Physical Support,Community Support,MEDILINE HOME CARE LIMITED,1399470,05/10/2021,3773687,"1,543.08",0.00,N/A,N/A
People Services - Adults and Health,Physical Support,Community Support,MEDILINE HOME CARE LIMITED,1399470,05/10/2021,3773686,"1,086.68",0.00,N/A,N/A
People Services - Adults and Health,Physical Support,Community Support,MEDILINE HOME CARE LIMITED,1399470,05/10/2021,3773420,832.96,0.00,N/A,N/A
People Services - Adults and Health,Physical Support,Community Support,MEDILINE HOME CARE LIMITED,1399470,05/10/2021,3773415,816.31,0.00,N/A,N/A
People Services - Adults and Health,Physical Support,Community Support,MEDILINE HOME CARE LIMITED,1399470,05/10/2021,3773255,"1,165.48",0.00,N/A,N/A
People Services - Adults and Health,Physical Support,Community Support,MEDILINE HOME CARE LIMITED,1399470,05/10/2021,3773254,570.48,0.00,N/A,N/A
People Services - Adults and Health,Physical Support,Community Support,MEDILINE HOME CARE LIMITED,1399470,05/10/2021,3773253,984.48,0.00,N/A,N/A
People Services - Adults and Health,Physical Support,Community Support,MEDILINE HOME CARE LIMITED,1399470,05/10/2021,3773252,963.56,0.00,N/A,N/A
People Services - Adults and Health,Physical Support,Community Support,MEDILINE HOME CARE LIMITED,1399470,05/10/2021,3773178,"1,165.48",0.00,N/A,N/A
People Services - Adults and Health,Physical Support,Community Support,MEDILINE HOME CARE LIMITED,1399470,05/10/2021,3773177,"1,165.48",0.00,N/A,N/A
People Services - Adults and Health,Physical Support,Community Support,MEDILINE HOME CARE LIMITED,1399470,05/10/2021,3773176,"1,081.32",0.00,N/A,N/A
People Services - Adults and Health,Physical Support,Community Support,MEDILINE HOME CARE LIMITED,1399470,05/10/2021,3773175,"1,065.76",0.00,N/A,N/A
People Services - Adults and Health,Physical Support,Community Support,MEDILINE HOME CARE LIMITED,1399470,05/10/2021,3773174,986.96,0.00,N/A,N/A
People Services - Adults and Health,Physical Support,Community Support,MEDILINE HOME CARE LIMITED,1399470,05/10/2021,3773173,864.24,0.00,N/A,N/A
People Services - Adults and Health,Physical Support,Community Support,MEDILINE HOME CARE LIMITED,1399470,05/10/2021,3773509,"1,266.92",0.00,N/A,N/A
People Services - Adults and Health,Physical Support,Community Support,MEDILINE HOME CARE LIMITED,1399470,05/10/2021,3773633,"1,165.48",0.00,N/A,N/A
People Services - Adults and Health,Physical Support,Community Support,MEDILINE HOME CARE LIMITED,1399470,05/10/2021,3773632,"1,165.48",0.00,N/A,N/A
People Services - Adults and Health,Physical Support,Community Support,MEDILINE HOME CARE LIMITED,1399470,05/10/2021,3773631,"1,065.76",0.00,N/A,N/A
People Services - Adults and Health,Physical Support,Community Support,MEDILINE HOME CARE LIMITED,1399470,05/10/2021,3773227,867.84,0.00,N/A,N/A
People Services - Adults and Health,Physical Support,Community Support,MEDILINE HOME CARE LIMITED,1399470,05/10/2021,3773156,891.34,0.00,N/A,N/A
People Services - Adults and Health,Physical Support,Community Support,MEDILINE HOME CARE LIMITED,1399470,05/10/2021,3773155,528.48,0.00,N/A,N/A
People Services - Adults and Health,Physical Support,Community Support,MEDILINE HOME CARE LIMITED,1399470,05/10/2021,3773351,"1,081.32",0.00,N/A,N/A
People Services - Adults and Health,Physical Support,Community Support,MEDILINE HOME CARE LIMITED,1399470,05/10/2021,3773350,"1,065.76",0.00,N/A,N/A
People Services - Adults and Health,Physical Support,Community Support,MEDILINE HOME CARE LIMITED,1399470,05/10/2021,3773349,773.69,0.00,N/A,N/A
People Services - Adults and Health,Physical Support,Community Support,MEDILINE HOME CARE LIMITED,1399470,05/10/2021,3773139,"1,030.77",0.00,N/A,N/A
People Services - Adults and Health,Physical Support,Community Support,MEDILINE HOME CARE LIMITED,1399470,05/10/2021,3773719,986.96,0.00,N/A,N/A
People Services - Adults and Health,Physical Support,Community Support,MEDILINE HOME CARE LIMITED,1399470,05/10/2021,3773718,715.92,0.00,N/A,N/A
People Services - Adults and Health,Physical Support,Community Support,MEDILINE HOME CARE LIMITED,1399470,05/10/2021,3773700,"1,220.04",0.00,N/A,N/A
People Services - Adults and Health,Physical Support,Community Support,MEDILINE HOME CARE LIMITED,1399470,05/10/2021,3773444,"1,065.76",0.00,N/A,N/A
People Services - Adults and Health,Physical Support,Community Support,MEDILINE HOME CARE LIMITED,1399470,05/10/2021,3773443,"1,065.76",0.00,N/A,N/A
People Services - Adults and Health,Physical Support,Community Support,MEDILINE HOME CARE LIMITED,1399470,05/10/2021,3773442,862.76,0.00,N/A,N/A
People Services - Adults and Health,Physical Support,Community Support,MEDILINE HOME CARE LIMITED,1399470,05/10/2021,3773555,"1,266.92",0.00,N/A,N/A
People Services - Adults and Health,Physical Support,Community Support,MEDILINE HOME CARE LIMITED,1399470,05/10/2021,3773554,"1,065.76",0.00,N/A,N/A
People Services - Adults and Health,Physical Support,Community Support,MEDILINE HOME CARE LIMITED,1399470,05/10/2021,3773553,663.84,0.00,N/A,N/A
People Services - Adults and Health,Physical Support,Community Support,MEDILINE HOME CARE LIMITED,1399470,05/10/2021,3773538,891.34,0.00,N/A,N/A
People Services - Adults and Health,Physical Support,Community Support,MEDILINE HOME CARE LIMITED,1399470,05/10/2021,3773075,"1,165.48",0.00,N/A,N/A
People Services - Adults and Health,Physical Support,Community Support,MEDILINE HOME CARE LIMITED,1399470,05/10/2021,3773074,815.64,0.00,N/A,N/A
People Services - Adults and Health,Physical Support,Community Support,MEDILINE HOME CARE LIMITED,1399470,05/10/2021,3773073,805.96,0.00,N/A,N/A
People Services - Adults and Health,Physical Support,Community Support,MEDILINE HOME CARE LIMITED,1399470,05/10/2021,3773072,570.48,0.00,N/A,N/A
People Services - Adults and Health,Physical Support,Community Support,MEDILINE HOME CARE LIMITED,1399470,05/10/2021,3773233,666.74,0.00,N/A,N/A
People Services - Adults and Health,Physical Support,Community Support,MEDILINE HOME CARE LIMITED,1399470,05/10/2021,3773049,"1,165.48",0.00,N/A,N/A
People Services - Adults and Health,Physical Support,Community Support,MEDILINE HOME CARE LIMITED,1399470,05/10/2021,3773048,805.96,0.00,N/A,N/A
People Services - Adults and Health,Physical Support,Community Support,MEDILINE HOME CARE LIMITED,1399470,05/10/2021,3773152,"1,415.25",0.00,N/A,N/A
People Services - Adults and Health,Physical Support,Community Support,MEDILINE HOME CARE LIMITED,1399470,05/10/2021,3773151,"1,368.63",0.00,N/A,N/A
People Services - Adults and Health,Physical Support,Community Support,MEDILINE HOME CARE LIMITED,1399470,05/10/2021,3773533,"1,165.48",0.00,N/A,N/A
People Services - Adults and Health,Physical Support,Community Support,MEDILINE HOME CARE LIMITED,1399470,05/10/2021,3773532,664.12,0.00,N/A,N/A
People Services - Adults and Health,Sensory Support,Community Support,MEDILINE HOME CARE LIMITED,1399470,05/10/2021,3773032,516.44,0.00,N/A,N/A
People Services - Adults and Health,Sensory Support,Community Support,MEDILINE HOME CARE LIMITED,1399470,05/10/2021,3773696,941.62,0.00,N/A,N/A
People Services - Adults and Health,Sensory Support,Community Support,MEDILINE HOME CARE LIMITED,1399470,05/10/2021,3773540,941.62,0.00,N/A,N/A
People Services - Adults and Health,Physical Support,Community Support,MEDILINE HOME CARE LIMITED,1399470,05/10/2021,3773520,"1,065.76",0.00,N/A,N/A
People Services - Adults and Health,Physical Support,Community Support,MEDILINE HOME CARE LIMITED,1399470,05/10/2021,3773419,"1,065.76",0.00,N/A,N/A
People Services - Adults and Health,Physical Support,Community Support,MEDILINE HOME CARE LIMITED,1399470,05/10/2021,3773418,950.39,0.00,N/A,N/A
People Services - Adults and Health,Support with Memory and Cognition,Community Support,MEDILINE HOME CARE LIMITED,1399470,05/10/2021,3773309,942.92,0.00,N/A,N/A
People Services - Adults and Health,Support with Memory and Cognition,Community Support,MEDILINE HOME CARE LIMITED,1399470,05/10/2021,3773034,"1,212.22",0.00,N/A,N/A
People Services - Adults and Health,Mental Health Support,Community Support,MEDILINE HOME CARE LIMITED,1399470,05/10/2021,3773677,727.16,0.00,N/A,N/A
People Services - Adults and Health,Support with Memory and Cognition,Community Support,MEDILINE HOME CARE LIMITED,1399470,05/10/2021,3773595,884.76,0.00,N/A,N/A
Corporate Resources,Property Design & Maintenance,Property,MIDLAND COUNTIES HEATING SERVICES,188123,05/10/2021,3775720,734.70,0.00,N/A,N/A
Corporate Resources,Property Design & Maintenance,Property,MIDLAND COUNTIES HEATING SERVICES,188123,05/10/2021,3775741,948.37,0.00,N/A,N/A
People Services - Children & Young People,Early Help & Children�s Safeguarding,Non-Schools,MJ MOVERS,1667482,05/10/2021,3773999,870.00,0.00,N/A,N/A
People Services - Adults and Health,Physical Support,Community Support,NATIONWIDE CARE SERVICES,471122,05/10/2021,3773664,862.58,0.00,N/A,N/A
People Services - Adults and Health,Physical Support,Community Support,NATIONWIDE CARE SERVICES,471122,05/10/2021,3773190,"1,029.86",0.00,N/A,N/A
People Services - Adults and Health,Physical Support,Community Support,NATIONWIDE CARE SERVICES,471122,05/10/2021,3773395,862.58,0.00,N/A,N/A
People Services - Adults and Health,Physical Support,Community Support,NATIONWIDE CARE SERVICES,471122,05/10/2021,3773187,683.35,0.00,N/A,N/A
People Services - Adults and Health,Physical Support,Community Support,NATIONWIDE CARE SERVICES,471122,05/10/2021,3773186,"1,082.61",0.00,N/A,N/A
People Services - Adults and Health,Physical Support,Community Support,NATIONWIDE CARE SERVICES,471122,05/10/2021,3773208,"1,203.68",0.00,N/A,N/A
People Services - Adults and Health,Physical Support,Community Support,NATIONWIDE CARE SERVICES,471122,05/10/2021,3773735,"1,029.86",0.00,N/A,N/A
People Services - Adults and Health,Physical Support,Community Support,NATIONWIDE CARE SERVICES,471122,05/10/2021,3773733,"1,017.50",0.00,N/A,N/A
People Services - Adults and Health,Physical Support,Community Support,NATIONWIDE CARE SERVICES,471122,05/10/2021,3773464,"1,017.50",0.00,N/A,N/A
People Services - Adults and Health,Physical Support,Community Support,NATIONWIDE CARE SERVICES,471122,05/10/2021,3773100,846.91,0.00,N/A,N/A
People Services - Adults and Health,Physical Support,Community Support,NATIONWIDE CARE SERVICES,471122,05/10/2021,3773091,683.35,0.00,N/A,N/A
People Services - Adults and Health,Physical Support,Community Support,NATIONWIDE CARE SERVICES,471122,05/10/2021,3773087,"1,082.61",0.00,N/A,N/A
People Services - Adults and Health,Physical Support,Community Support,NATIONWIDE CARE SERVICES,471122,05/10/2021,3773282,846.91,0.00,N/A,N/A
People Services - Adults and Health,Physical Support,Community Support,NATIONWIDE CARE SERVICES,471122,05/10/2021,3773672,944.08,0.00,N/A,N/A
People Services - Adults and Health,Physical Support,Community Support,NATIONWIDE CARE SERVICES,471122,05/10/2021,3773671,842.64,0.00,N/A,N/A
People Services - Adults and Health,Physical Support,Community Support,NATIONWIDE CARE SERVICES,471122,05/10/2021,3773670,763.84,0.00,N/A,N/A
People Services - Adults and Health,Physical Support,Community Support,NATIONWIDE CARE SERVICES,471122,05/10/2021,3773669,693.52,0.00,N/A,N/A
People Services - Adults and Health,Physical Support,Community Support,NATIONWIDE CARE SERVICES,471122,05/10/2021,3773276,"1,165.48",0.00,N/A,N/A
People Services - Adults and Health,Physical Support,Community Support,NATIONWIDE CARE SERVICES,471122,05/10/2021,3773275,742.92,0.00,N/A,N/A
People Services - Adults and Health,Physical Support,Community Support,NATIONWIDE CARE SERVICES,471122,05/10/2021,3773399,"1,138.28",0.00,N/A,N/A
People Services - Adults and Health,Physical Support,Community Support,NATIONWIDE CARE SERVICES,471122,05/10/2021,3773271,780.06,0.00,N/A,N/A
People Services - Adults and Health,Physical Support,Community Support,NATIONWIDE CARE SERVICES,471122,05/10/2021,3773270,787.76,0.00,N/A,N/A
People Services - Adults and Health,Physical Support,Community Support,NATIONWIDE CARE SERVICES,471122,05/10/2021,3773269,557.72,0.00,N/A,N/A
People Services - Adults and Health,Physical Support,Community Support,NATIONWIDE CARE SERVICES,471122,05/10/2021,3773193,805.96,0.00,N/A,N/A
People Services - Adults and Health,Physical Support,Community Support,NATIONWIDE CARE SERVICES,471122,05/10/2021,3773192,805.96,0.00,N/A,N/A
People Services - Adults and Health,Physical Support,Community Support,NATIONWIDE CARE SERVICES,471122,05/10/2021,3773189,639.48,0.00,N/A,N/A
People Services - Adults and Health,Physical Support,Community Support,NATIONWIDE CARE SERVICES,471122,05/10/2021,3773394,"1,165.48",0.00,N/A,N/A
People Services - Adults and Health,Physical Support,Community Support,NATIONWIDE CARE SERVICES,471122,05/10/2021,3773393,805.96,0.00,N/A,N/A
People Services - Adults and Health,Physical Support,Community Support,NATIONWIDE CARE SERVICES,471122,05/10/2021,3773392,742.92,0.00,N/A,N/A
People Services - Adults and Health,Physical Support,Community Support,NATIONWIDE CARE SERVICES,471122,05/10/2021,3773185,557.72,0.00,N/A,N/A
People Services - Adults and Health,Physical Support,Community Support,NATIONWIDE CARE SERVICES,471122,05/10/2021,3773650,"1,165.48",0.00,N/A,N/A
People Services - Adults and Health,Physical Support,Community Support,NATIONWIDE CARE SERVICES,471122,05/10/2021,3773644,726.48,0.00,N/A,N/A
People Services - Adults and Health,Physical Support,Community Support,NATIONWIDE CARE SERVICES,471122,05/10/2021,3773642,787.76,0.00,N/A,N/A
People Services - Adults and Health,Physical Support,Community Support,NATIONWIDE CARE SERVICES,471122,05/10/2021,3773505,771.64,0.00,N/A,N/A
People Services - Adults and Health,Physical Support,Community Support,NATIONWIDE CARE SERVICES,471122,05/10/2021,3773504,"1,165.48",0.00,N/A,N/A
People Services - Adults and Health,Physical Support,Community Support,NATIONWIDE CARE SERVICES,471122,05/10/2021,3773503,868.20,0.00,N/A,N/A
People Services - Adults and Health,Physical Support,Community Support,NATIONWIDE CARE SERVICES,471122,05/10/2021,3773026,967.12,0.00,N/A,N/A
People Services - Adults and Health,Physical Support,Community Support,NATIONWIDE CARE SERVICES,471122,05/10/2021,3773025,721.32,0.00,N/A,N/A
People Services - Adults and Health,Physical Support,Community Support,NATIONWIDE CARE SERVICES,471122,05/10/2021,3773496,698.58,0.00,N/A,N/A
People Services - Adults and Health,Physical Support,Community Support,NATIONWIDE CARE SERVICES,471122,05/10/2021,3773369,"1,165.48",0.00,N/A,N/A
People Services - Adults and Health,Physical Support,Community Support,NATIONWIDE CARE SERVICES,471122,05/10/2021,3773368,805.96,0.00,N/A,N/A
People Services - Adults and Health,Physical Support,Community Support,NATIONWIDE CARE SERVICES,471122,05/10/2021,3773023,"1,165.48",0.00,N/A,N/A
People Services - Adults and Health,Physical Support,Community Support,NATIONWIDE CARE SERVICES,471122,05/10/2021,3773022,805.96,0.00,N/A,N/A
People Services - Adults and Health,Physical Support,Community Support,NATIONWIDE CARE SERVICES,471122,05/10/2021,3773741,"1,165.48",0.00,N/A,N/A
People Services - Adults and Health,Physical Support,Community Support,NATIONWIDE CARE SERVICES,471122,05/10/2021,3773740,990.56,0.00,N/A,N/A
People Services - Adults and Health,Physical Support,Community Support,NATIONWIDE CARE SERVICES,471122,05/10/2021,3773739,742.92,0.00,N/A,N/A
People Services - Adults and Health,Physical Support,Community Support,NATIONWIDE CARE SERVICES,471122,05/10/2021,3773738,670.20,0.00,N/A,N/A
People Services - Adults and Health,Physical Support,Community Support,NATIONWIDE CARE SERVICES,471122,05/10/2021,3773204,698.58,0.00,N/A,N/A
People Services - Adults and Health,Physical Support,Community Support,NATIONWIDE CARE SERVICES,471122,05/10/2021,3773203,589.86,0.00,N/A,N/A
People Services - Adults and Health,Physical Support,Community Support,NATIONWIDE CARE SERVICES,471122,05/10/2021,3773729,843.21,0.00,N/A,N/A
People Services - Adults and Health,Physical Support,Community Support,NATIONWIDE CARE SERVICES,471122,05/10/2021,3773728,787.76,0.00,N/A,N/A
People Services - Adults and Health,Physical Support,Community Support,NATIONWIDE CARE SERVICES,471122,05/10/2021,3773463,639.48,0.00,N/A,N/A
People Services - Adults and Health,Physical Support,Community Support,NATIONWIDE CARE SERVICES,471122,05/10/2021,3773461,787.76,0.00,N/A,N/A
People Services - Adults and Health,Physical Support,Community Support,NATIONWIDE CARE SERVICES,471122,05/10/2021,3773588,"1,057.99",0.00,N/A,N/A
People Services - Adults and Health,Physical Support,Community Support,NATIONWIDE CARE SERVICES,471122,05/10/2021,3773587,670.20,0.00,N/A,N/A
People Services - Adults and Health,Physical Support,Community Support,NATIONWIDE CARE SERVICES,471122,05/10/2021,3773456,710.84,0.00,N/A,N/A
People Services - Adults and Health,Physical Support,Community Support,NATIONWIDE CARE SERVICES,471122,05/10/2021,3773117,"1,165.48",0.00,N/A,N/A
People Services - Adults and Health,Physical Support,Community Support,NATIONWIDE CARE SERVICES,471122,05/10/2021,3773116,832.96,0.00,N/A,N/A
People Services - Adults and Health,Physical Support,Community Support,NATIONWIDE CARE SERVICES,471122,05/10/2021,3773112,990.56,0.00,N/A,N/A
People Services - Adults and Health,Physical Support,Community Support,NATIONWIDE CARE SERVICES,471122,05/10/2021,3773584,990.56,0.00,N/A,N/A
People Services - Adults and Health,Physical Support,Community Support,NATIONWIDE CARE SERVICES,471122,05/10/2021,3773568,780.06,0.00,N/A,N/A
People Services - Adults and Health,Physical Support,Community Support,NATIONWIDE CARE SERVICES,471122,05/10/2021,3773303,"1,165.48",0.00,N/A,N/A
People Services - Adults and Health,Physical Support,Community Support,NATIONWIDE CARE SERVICES,471122,05/10/2021,3773099,931.44,0.00,N/A,N/A
People Services - Adults and Health,Physical Support,Community Support,NATIONWIDE CARE SERVICES,471122,05/10/2021,3773098,884.76,0.00,N/A,N/A
People Services - Adults and Health,Physical Support,Community Support,NATIONWIDE CARE SERVICES,471122,05/10/2021,3773092,805.96,0.00,N/A,N/A
People Services - Adults and Health,Physical Support,Community Support,NATIONWIDE CARE SERVICES,471122,05/10/2021,3773565,787.76,0.00,N/A,N/A
People Services - Adults and Health,Physical Support,Community Support,NATIONWIDE CARE SERVICES,471122,05/10/2021,3773302,558.32,0.00,N/A,N/A
People Services - Adults and Health,Physical Support,Community Support,NATIONWIDE CARE SERVICES,471122,05/10/2021,3773295,884.76,0.00,N/A,N/A
People Services - Adults and Health,Physical Support,Community Support,NATIONWIDE CARE SERVICES,471122,05/10/2021,3773086,"1,238.52",0.00,N/A,N/A
People Services - Adults and Health,Physical Support,Community Support,NATIONWIDE CARE SERVICES,471122,05/10/2021,3773085,843.21,0.00,N/A,N/A
People Services - Adults and Health,Physical Support,Community Support,NATIONWIDE CARE SERVICES,471122,05/10/2021,3773082,787.76,0.00,N/A,N/A
People Services - Adults and Health,Physical Support,Community Support,NATIONWIDE CARE SERVICES,471122,05/10/2021,3773081,710.84,0.00,N/A,N/A
People Services - Adults and Health,Physical Support,Community Support,NATIONWIDE CARE SERVICES,471122,05/10/2021,3773281,990.56,0.00,N/A,N/A
People Services - Adults and Health,Physical Support,Community Support,NATIONWIDE CARE SERVICES,471122,05/10/2021,3773280,931.44,0.00,N/A,N/A
People Services - Adults and Health,Physical Support,Community Support,NATIONWIDE CARE SERVICES,471122,05/10/2021,3773398,"1,180.39",0.00,N/A,N/A
People Services - Adults and Health,Physical Support,Community Support,NATIONWIDE CARE SERVICES,471122,05/10/2021,3773397,763.84,0.00,N/A,N/A
People Services - Adults and Health,Physical Support,Community Support,NATIONWIDE CARE SERVICES,471122,05/10/2021,3773649,595.00,0.00,N/A,N/A
People Services - Adults and Health,Physical Support,Community Support,NATIONWIDE CARE SERVICES,471122,05/10/2021,3773643,645.24,0.00,N/A,N/A
People Services - Adults and Health,Physical Support,Community Support,NATIONWIDE CARE SERVICES,471122,05/10/2021,3773501,"1,413.68",0.00,N/A,N/A
People Services - Adults and Health,Physical Support,Community Support,NATIONWIDE CARE SERVICES,471122,05/10/2021,3773500,542.16,0.00,N/A,N/A
People Services - Adults and Health,Physical Support,Community Support,NATIONWIDE CARE SERVICES,471122,05/10/2021,3773586,727.16,0.00,N/A,N/A
People Services - Adults and Health,Physical Support,Community Support,NATIONWIDE CARE SERVICES,471122,05/10/2021,3773458,934.52,0.00,N/A,N/A
People Services - Adults and Health,Physical Support,Community Support,NATIONWIDE CARE SERVICES,471122,05/10/2021,3773114,727.16,0.00,N/A,N/A
People Services - Adults and Health,Physical Support,Community Support,NATIONWIDE CARE SERVICES,471122,05/10/2021,3773299,527.13,0.00,N/A,N/A
People Services - Adults and Health,Physical Support,Community Support,NATIONWIDE CARE SERVICES,471122,05/10/2021,3773294,744.56,0.00,N/A,N/A
People Services - Adults and Health,Physical Support,Community Support,NATIONWIDE CARE SERVICES,471122,05/10/2021,3773084,934.52,0.00,N/A,N/A
People Services - Adults and Health,Sensory Support,Community Support,NATIONWIDE CARE SERVICES,471122,05/10/2021,3773205,558.32,0.00,N/A,N/A
People Services - Adults and Health,Sensory Support,Community Support,NATIONWIDE CARE SERVICES,471122,05/10/2021,3773118,"1,007.88",0.00,N/A,N/A
People Services - Adults and Health,Learning Disability Support,Community Support,NATIONWIDE CARE SERVICES,471122,05/10/2021,3773027,741.80,0.00,N/A,N/A
People Services - Adults and Health,Support with Memory and Cognition,Community Support,NATIONWIDE CARE SERVICES,471122,05/10/2021,3773209,694.72,0.00,N/A,N/A
People Services - Adults and Health,Support with Memory and Cognition,Community Support,NATIONWIDE CARE SERVICES,471122,05/10/2021,3773120,694.72,0.00,N/A,N/A
People Services - Adults and Health,Support with Memory and Cognition,Community Support,NATIONWIDE CARE SERVICES,471122,05/10/2021,3773101,"1,004.88",0.00,N/A,N/A
People Services - Adults and Health,Mental Health Support,Community Support,NATIONWIDE CARE SERVICES,471122,05/10/2021,3773283,"1,093.16",0.00,N/A,N/A
People Services - Adults and Health,Mental Health Support,Community Support,NATIONWIDE CARE SERVICES,471122,05/10/2021,3773121,604.56,0.00,N/A,N/A
People Services - Adults and Health,Mental Health Support,Community Support,NATIONWIDE CARE SERVICES,471122,05/10/2021,3773304,771.52,0.00,N/A,N/A
Communities & Place,"Environmental Protection, Housing Standards, Licensing, Emergency Planning",Public Protection and Streetride,NEWAUTO LTD,1516495,05/10/2021,3773976,"1,274.00",0.00,N/A,N/A
Communities & Place,"Environmental Protection, Housing Standards, Licensing, Emergency Planning",Public Protection and Streetride,NEWAUTO LTD,1516495,05/10/2021,3773976,"1,510.00",0.00,N/A,N/A
People Services - Adults and Health,Learning Disability Support,Community Support,NOTTINGHAM COMMUNITY HOUSING ASSOCIATION,388472,05/10/2021,3773637,937.44,0.00,N/A,N/A
People Services - Children & Young People,Commissioning,Non-Schools,ONE PLUS ONE MARRIAGE AND PARTNERSHIP RESEARCH,1641476,05/10/2021,3756358,"5,500.00",0.00,N/A,N/A
Communities & Place,Traffic & Transportation,Planning & Transportation,PARKSAFE,3809,05/10/2021,3772846,"5,000.00",0.00,Parking Services,Commercial and Military and Private Vehi
Corporate Resources,Digital Services & Customer Management,Digital Services & Customer Management,PAYPOINT PAYMENT SERVICES LTD,1128473,05/10/2021,3775952,"5,551.89",0.00,N/A,N/A
Corporate Resources,"Policy, Insight and Commuications",Coroprate Core,PERMANENT FUTURES LTD,1465502,05/10/2021,3773940,"2,700.00",0.00,N/A,N/A
Communities & Place,"Waste, Street Cleansing & Fleet",Public Protection and Streetride,PROTECTIVE WEAR SUPPLIES LTD,228427,05/10/2021,3772859,589.60,0.00,Refuse Collection,Defense and Law Enforcement and Security
Communities & Place,"Waste, Street Cleansing & Fleet",Public Protection and Streetride,PROTECTIVE WEAR SUPPLIES LTD,228427,05/10/2021,3772859,589.60,0.00,Refuse Collection,Defense and Law Enforcement and Security
Communities & Place,Leisure,"Leisure, Culture and Tourism",PW HIRE LIMITED,637447,05/10/2021,3772839,"4,450.00",0.00,Derby Live - Sales and Information Centre,Travel and Food and Lodging and Entertai
People Services - Adults and Health,Physical Support,Community Support,QUALITY CARE SERVICES,388475,05/10/2021,3773064,939.24,0.00,N/A,N/A
People Services - Adults and Health,Physical Support,Community Support,QUALITY CARE SERVICES,388475,05/10/2021,3773063,894.89,0.00,N/A,N/A
People Services - Adults and Health,Physical Support,Community Support,QUALITY CARE SERVICES,388475,05/10/2021,3773062,850.56,0.00,N/A,N/A
People Services - Adults and Health,Physical Support,Community Support,QUALITY CARE SERVICES,388475,05/10/2021,3773200,"1,063.28",0.00,N/A,N/A
People Services - Adults and Health,Physical Support,Community Support,QUALITY CARE SERVICES,388475,05/10/2021,3773662,961.83,0.00,N/A,N/A
People Services - Adults and Health,Physical Support,Community Support,QUALITY CARE SERVICES,388475,05/10/2021,3773389,510.82,0.00,N/A,N/A
People Services - Adults and Health,Physical Support,Community Support,QUALITY CARE SERVICES,388475,05/10/2021,3773385,665.79,0.00,N/A,N/A
People Services - Adults and Health,Physical Support,Community Support,QUALITY CARE SERVICES,388475,05/10/2021,3773052,649.80,0.00,N/A,N/A
People Services - Adults and Health,Physical Support,Community Support,QUALITY CARE SERVICES,388475,05/10/2021,3773245,805.96,0.00,N/A,N/A
People Services - Adults and Health,Physical Support,Community Support,QUALITY CARE SERVICES,388475,05/10/2021,3773164,939.28,0.00,N/A,N/A
People Services - Adults and Health,Physical Support,Community Support,QUALITY CARE SERVICES,388475,05/10/2021,3773163,850.56,0.00,N/A,N/A
People Services - Adults and Health,Physical Support,Community Support,QUALITY CARE SERVICES,388475,05/10/2021,3773162,742.92,0.00,N/A,N/A
People Services - Adults and Health,Physical Support,Community Support,QUALITY CARE SERVICES,388475,05/10/2021,3773488,664.12,0.00,N/A,N/A
People Services - Adults and Health,Physical Support,Community Support,QUALITY CARE SERVICES,388475,05/10/2021,3773478,674.00,0.00,N/A,N/A
People Services - Adults and Health,Physical Support,Community Support,QUALITY CARE SERVICES,388475,05/10/2021,3773008,619.45,0.00,N/A,N/A
People Services - Adults and Health,Physical Support,Community Support,QUALITY CARE SERVICES,388475,05/10/2021,3773704,557.62,0.00,N/A,N/A
People Services - Adults and Health,Physical Support,Community Support,QUALITY CARE SERVICES,388475,05/10/2021,3773579,726.48,0.00,N/A,N/A
People Services - Adults and Health,Physical Support,Community Support,QUALITY CARE SERVICES,388475,05/10/2021,3773111,961.83,0.00,N/A,N/A
People Services - Adults and Health,Physical Support,Community Support,QUALITY CARE SERVICES,388475,05/10/2021,3773110,911.76,0.00,N/A,N/A
People Services - Adults and Health,Physical Support,Community Support,QUALITY CARE SERVICES,388475,05/10/2021,3773109,511.04,0.00,N/A,N/A
People Services - Adults and Health,Physical Support,Community Support,QUALITY CARE SERVICES,388475,05/10/2021,3773693,511.04,0.00,N/A,N/A
People Services - Adults and Health,Physical Support,Community Support,QUALITY CARE SERVICES,388475,05/10/2021,3773430,908.16,0.00,N/A,N/A
People Services - Adults and Health,Physical Support,Community Support,QUALITY CARE SERVICES,388475,05/10/2021,3773429,884.76,0.00,N/A,N/A
People Services - Adults and Health,Physical Support,Community Support,QUALITY CARE SERVICES,388475,05/10/2021,3773546,736.84,0.00,N/A,N/A
People Services - Adults and Health,Mental Health Support,Mental Health,QUALITY CARE SERVICES,388475,05/10/2021,3773386,514.72,0.00,N/A,N/A
People Services - Adults and Health,Mental Health Support,Mental Health,QUALITY CARE SERVICES,388475,05/10/2021,3773017,545.12,0.00,N/A,N/A
People Services - Adults and Health,Mental Health Support,Mental Health,QUALITY CARE SERVICES,388475,05/10/2021,3773016,514.72,0.00,N/A,N/A
People Services - Adults and Health,Mental Health Support,Mental Health,QUALITY CARE SERVICES,388475,05/10/2021,3773619,526.44,0.00,N/A,N/A
People Services - Adults and Health,Mental Health Support,Mental Health,QUALITY CARE SERVICES,388475,05/10/2021,3773487,503.45,0.00,N/A,N/A
People Services - Adults and Health,Mental Health Support,Mental Health,QUALITY CARE SERVICES,388475,05/10/2021,3773333,526.44,0.00,N/A,N/A
People Services - Adults and Health,Mental Health Support,Mental Health,QUALITY CARE SERVICES,388475,05/10/2021,3773107,545.12,0.00,N/A,N/A
People Services - Adults and Health,Mental Health Support,Mental Health,QUALITY CARE SERVICES,388475,05/10/2021,3773104,503.45,0.00,N/A,N/A
People Services - Adults and Health,Physical Support,Community Support,QUALITY CARE SERVICES,388475,05/10/2021,3773154,805.96,0.00,N/A,N/A
People Services - Adults and Health,Physical Support,Community Support,QUALITY CARE SERVICES,388475,05/10/2021,3773534,805.96,0.00,N/A,N/A
People Services - Adults and Health,Learning Disability Support,Community Support,QUALITY CARE SERVICES,388475,05/10/2021,3773198,"4,593.14",0.00,N/A,N/A
People Services - Adults and Health,Learning Disability Support,Community Support,QUALITY CARE SERVICES,388475,05/10/2021,3773197,868.28,0.00,N/A,N/A
People Services - Adults and Health,Learning Disability Support,Community Support,QUALITY CARE SERVICES,388475,05/10/2021,3773655,"4,813.03",0.00,N/A,N/A
People Services - Adults and Health,Learning Disability Support,Community Support,QUALITY CARE SERVICES,388475,05/10/2021,3773382,"1,231.22",0.00,N/A,N/A
People Services - Adults and Health,Learning Disability Support,Community Support,QUALITY CARE SERVICES,388475,05/10/2021,3773380,"2,062.68",0.00,N/A,N/A
People Services - Adults and Health,Learning Disability Support,Community Support,QUALITY CARE SERVICES,388475,05/10/2021,3773378,"1,450.60",0.00,N/A,N/A
People Services - Adults and Health,Learning Disability Support,Community Support,QUALITY CARE SERVICES,388475,05/10/2021,3773376,"1,230.00",0.00,N/A,N/A
People Services - Adults and Health,Learning Disability Support,Community Support,QUALITY CARE SERVICES,388475,05/10/2021,3773014,"4,721.41",0.00,N/A,N/A
People Services - Adults and Health,Learning Disability Support,Community Support,QUALITY CARE SERVICES,388475,05/10/2021,3773013,"1,483.16",0.00,N/A,N/A
People Services - Adults and Health,Learning Disability Support,Community Support,QUALITY CARE SERVICES,388475,05/10/2021,3773011,583.06,0.00,N/A,N/A
People Services - Adults and Health,Learning Disability Support,Community Support,QUALITY CARE SERVICES,388475,05/10/2021,3773481,"1,435.88",0.00,N/A,N/A
People Services - Adults and Health,Learning Disability Support,Community Support,QUALITY CARE SERVICES,388475,05/10/2021,3773009,"1,352.44",0.00,N/A,N/A
People Services - Adults and Health,Learning Disability Support,Community Support,QUALITY CARE SERVICES,388475,05/10/2021,3773577,"1,425.48",0.00,N/A,N/A
People Services - Adults and Health,Learning Disability Support,Community Support,QUALITY CARE SERVICES,388475,05/10/2021,3773575,"4,567.11",0.00,N/A,N/A
People Services - Adults and Health,Learning Disability Support,Community Support,QUALITY CARE SERVICES,388475,05/10/2021,3773103,"2,881.97",0.00,N/A,N/A
People Services - Adults and Health,Learning Disability Support,Community Support,QUALITY CARE SERVICES,388475,05/10/2021,3773287,"1,544.49",0.00,N/A,N/A
People Services - Adults and Health,Learning Disability Support,Community Support,QUALITY CARE SERVICES,388475,05/10/2021,3773286,928.58,0.00,N/A,N/A
People Services - Adults and Health,Learning Disability Support,Community Support,QUALITY CARE SERVICES,388475,05/10/2021,3773284,"1,235.84",0.00,N/A,N/A
People Services - Adults and Health,Support with Memory and Cognition,Community Support,QUALITY CARE SERVICES,388475,05/10/2021,3773489,954.22,0.00,N/A,N/A
People Services - Adults and Health,Learning Disability Support,Transitions and Ordinary Lives,REDACTED - PERSONAL DATA,480399,05/10/2021,3774065,"2,409.04",0.00,N/A,N/A
People Services - Adults and Health,Learning Disability Support,Transitions and Ordinary Lives,REDACTED - PERSONAL DATA,480399,05/10/2021,3774063,"2,409.04",0.00,N/A,N/A
People Services - Adults and Health,Learning Disability Support,Transitions and Ordinary Lives,REDACTED - PERSONAL DATA,480399,05/10/2021,3774062,"1,806.78",0.00,N/A,N/A
People Services - Children & Young People,Early Help & Children�s Safeguarding,Non-Schools,REDACTED - PERSONAL DATA,1635489,05/10/2021,3775310,746.20,0.00,N/A,N/A
People Services - Children & Young People,Early Help & Children�s Safeguarding,Non-Schools,REDACTED - PERSONAL DATA,1210469,05/10/2021,3775242,506.40,0.00,N/A,N/A
Corporate Resources,Communication and Consultation,Coroprate Core,REDACTED - PERSONAL DATA,1668480,05/10/2021,3772921,"1,000.00",0.00,N/A,N/A
People Services - Children & Young People,Integrated Services,Non-Schools,REDACTED - PERSONAL DATA,1279470,05/10/2021,3775248,836.54,0.00,N/A,N/A
People Services - Children & Young People,Early Help & Children�s Safeguarding,Non-Schools,REDACTED - PERSONAL DATA,1632496,05/10/2021,3775133,639.00,0.00,N/A,N/A
People Services - Adults and Health,Shared Lives,Community Support,REDACTED - PERSONAL DATA,1254475,05/10/2021,3773749,865.48,0.00,N/A,N/A
People Services - Adults and Health,Shared Lives,Community Support,REDACTED - PERSONAL DATA,1254475,05/10/2021,3773747,865.48,0.00,N/A,N/A
People Services - Adults and Health,Shared Lives,Community Support,REDACTED - PERSONAL DATA,1254475,05/10/2021,3773744,550.92,0.00,N/A,N/A
People Services - Adults and Health,Learning Disability Support,Transitions and Ordinary Lives,REDACTED - PERSONAL DATA,407413,05/10/2021,3774061,"3,017.84",0.00,N/A,N/A
People Services - Adults and Health,Learning Disability Support,Transitions and Ordinary Lives,REDACTED - PERSONAL DATA,407413,05/10/2021,3774059,"3,017.84",0.00,N/A,N/A
People Services - Adults and Health,Learning Disability Support,Transitions and Ordinary Lives,REDACTED - PERSONAL DATA,407413,05/10/2021,3774051,"2,263.38",0.00,N/A,N/A
People Services - Adults and Health,Shared Lives,Community Support,REDACTED - PERSONAL DATA,496475,05/10/2021,3773890,"1,460.44",0.00,N/A,N/A
People Services - Children & Young People,Commissioning,Non-Schools,REDACTED - PERSONAL DATA,1551559,05/10/2021,3775889,"1,011.78",0.00,N/A,N/A
People Services - Children & Young People,Commissioning,Non-Schools,REDACTED - PERSONAL DATA,1569468,05/10/2021,3774031,"1,602.00",0.00,N/A,N/A
People Services - Children & Young People,Integrated Services,Non-Schools,REDACTED - PERSONAL DATA,1648479,05/10/2021,3774675,555.00,0.00,N/A,N/A
People Services - Children & Young People,Integrated Services,Non-Schools,REDACTED - PERSONAL DATA,1344471,05/10/2021,3773826,730.00,0.00,N/A,N/A
People Services - Adults and Health,Learning Disability Support,Transitions and Ordinary Lives,REDACTED - PERSONAL DATA,720463,05/10/2021,3774060,525.64,0.00,N/A,N/A
People Services - Children & Young People,Early Help & Children�s Safeguarding,Non-Schools,REDACTED - PERSONAL DATA,1311472,05/10/2021,3761965,510.00,0.00,N/A,N/A
People Services - Children & Young People,Early Help & Children�s Safeguarding,Non-Schools,REDACTED - PERSONAL DATA,1311472,05/10/2021,3761962,"1,440.00",0.00,N/A,N/A
People Services - Children & Young People,Integrated Services,Non-Schools,REDACTED - PERSONAL DATA,1327477,05/10/2021,3773827,"1,050.00",0.00,N/A,N/A
People Services - Children & Young People,Learning & Inclusion,Non-Schools,REDACTED - PERSONAL DATA,4756,05/10/2021,3775863,"1,625.00",0.00,Early Years Quality Assurance,Education and Training Services
People Services - Children & Young People,Early Help & Children�s Safeguarding,Non-Schools,REDACTED - PERSONAL DATA,1300473,05/10/2021,3774943,634.48,0.00,N/A,N/A
People Services - Children & Young People,Non Delegated Schools Budget,Schools Block,REFLECTIVE SCHOOL SUPPORT LTD,1660486,05/10/2021,3774012,"2,592.00",0.00,N/A,N/A
People Services - Children & Young People,Integrated Services,Non-Schools,REMEDI,49769,05/10/2021,3772749,"29,950.00",0.00,Y.O.S. - CYP,Education and Training Services
People Services - Children & Young People,Non Delegated Schools Budget,Schools Block,RESTORE HARROW GREEN,1636491,05/10/2021,3749138,"1,028.25",0.00,N/A,N/A
People Services - Children & Young People,Non Delegated Schools Budget,Schools Block,RESTORE HARROW GREEN,1636491,05/10/2021,3749138,"1,028.25",0.00,N/A,N/A
People Services - Children & Young People,Non Delegated Schools Budget,Schools Block,RESTORE HARROW GREEN,1636491,05/10/2021,3751894,558.00,0.00,N/A,N/A
People Services - Children & Young People,Non Delegated Schools Budget,Schools Block,RESTORE HARROW GREEN,1636491,05/10/2021,3756365,"1,766.06",0.00,N/A,N/A
People Services - Children & Young People,Non Delegated Schools Budget,Schools Block,RESTORE HARROW GREEN,1636491,05/10/2021,3756365,"1,606.00",0.00,N/A,N/A
People Services - Children & Young People,Non Delegated Schools Budget,Schools Block,RESTORE HARROW GREEN,1636491,05/10/2021,3730812,980.00,0.00,N/A,N/A
People Services - Children & Young People,Non Delegated Schools Budget,Schools Block,RESTORE HARROW GREEN,1636491,05/10/2021,3730811,"1,379.00",0.00,N/A,N/A
People Services - Children & Young People,Non Delegated Schools Budget,Schools Block,RESTORE HARROW GREEN,1636491,05/10/2021,3730811,"1,231.25",0.00,N/A,N/A
Communities & Place,"Culture, Business Development & Tourism","Leisure, Culture and Tourism",REVIVE MANAGEMENT SERVICES LTD,8396,05/10/2021,3772794,"1,625.01",0.00,N/A,N/A
Communities & Place,"Culture, Business Development & Tourism","Leisure, Culture and Tourism",REVIVE MANAGEMENT SERVICES LTD,8396,05/10/2021,3772794,"1,800.00",0.00,N/A,N/A
Communities & Place,"Culture, Business Development & Tourism","Leisure, Culture and Tourism",REVIVE MANAGEMENT SERVICES LTD,8396,05/10/2021,3772794,676.00,0.00,N/A,N/A
People Services - Adults and Health,Learning Disability Support,Community Support,RIDGEVIEW SUPPORTED LIVING LIMITED,1661479,05/10/2021,3773312,"1,302.40",0.00,N/A,N/A
People Services - Adults and Health,Mental Health Support,Community Support,RIDGEVIEW SUPPORTED LIVING LIMITED,1661479,05/10/2021,3773132,730.56,0.00,N/A,N/A
People Services - Adults and Health,Public Health,Public Health,ROSEHILL PHARMACY LTD,187661,05/10/2021,3775925,"1,568.76",0.00,N/A,N/A
Corporate Resources,Financial Services,Financial Services,ROYAL MAIL GROUP PLC,4194,05/10/2021,3775809,"5,866.80",0.00,DMC - Document Management Centre,Transportation and Storage and Mail Serv
People Services - Children & Young People,Early Help & Children�s Safeguarding,Non-Schools,SAFE HANDS,1588477,05/10/2021,3755870,"29,295.72",0.00,N/A,N/A
People Services - Children & Young People,Integrated Services,Non-Schools,SAFE HANDS,1588477,05/10/2021,3773969,540.00,0.00,N/A,N/A
Neighbourhoods,Neighbourhoods,Neighbourhoods,SEDDON CONSTRUCTION LTD,1354530,05/10/2021,3775736,"49,122.53",0.00,N/A,N/A
Children and Young People,Children and Young People,Children and Young People,SEDDON CONSTRUCTION LTD,1354530,05/10/2021,3775732,"17,099.31",0.00,N/A,N/A
Communities & Place,"Culture, Business Development & Tourism","Leisure, Culture and Tourism",SENSATION ABBA TRIBUTE BAND,1667481,05/10/2021,3775836,"4,484.58",0.00,N/A,N/A
People Services - Adults and Health,Physical Support,Community Support,SENTRICARE EAST MIDS LTD,388481,05/10/2021,3773180,585.32,0.00,N/A,N/A
People Services - Adults and Health,Physical Support,Community Support,SENTRICARE EAST MIDS LTD,388481,05/10/2021,3773261,990.56,0.00,N/A,N/A
People Services - Adults and Health,Physical Support,Community Support,SENTRICARE EAST MIDS LTD,388481,05/10/2021,3773260,990.56,0.00,N/A,N/A
People Services - Adults and Health,Physical Support,Community Support,SENTRICARE EAST MIDS LTD,388481,05/10/2021,3773181,965.36,0.00,N/A,N/A
People Services - Adults and Health,Physical Support,Community Support,SENTRICARE EAST MIDS LTD,388481,05/10/2021,3773635,"1,043.80",0.00,N/A,N/A
People Services - Adults and Health,Physical Support,Community Support,SENTRICARE EAST MIDS LTD,388481,05/10/2021,3773559,"1,043.80",0.00,N/A,N/A
Corporate Resources,Property Design & Maintenance,Property,SGW SAFETY AND SECURITY LIMITED,1614495,05/10/2021,3775738,"2,500.00",0.00,N/A,N/A
People Services - Children & Young People,Integrated Services,Non-Schools,SHARED SERVICES CONNECTED LTD,769444,05/10/2021,3772763,"5,040.00",0.00,Police Escorts,Healthcare Services
Communities & Place,Parks & Healthy Living,"Leisure, Culture and Tourism",SIGMA PHARMACEUTICALS PLC,187719,05/10/2021,3775877,527.00,0.00,NHS Pilot,Drugs and Pharmaceutical Products
Communities & Place,Parks & Healthy Living,"Leisure, Culture and Tourism",SIGMA PHARMACEUTICALS PLC,187719,05/10/2021,3775877,789.60,0.00,NHS Pilot,Drugs and Pharmaceutical Products
Communities & Place,Parks & Healthy Living,"Leisure, Culture and Tourism",SIGMA PHARMACEUTICALS PLC,187719,05/10/2021,3775877,"1,132.20",0.00,NHS Pilot,Drugs and Pharmaceutical Products
Communities & Place,Parks & Healthy Living,"Leisure, Culture and Tourism",SIGMA PHARMACEUTICALS PLC,187719,05/10/2021,3775877,568.40,0.00,NHS Pilot,Drugs and Pharmaceutical Products
Communities & Place,Parks & Healthy Living,"Leisure, Culture and Tourism",SIGMA PHARMACEUTICALS PLC,187719,05/10/2021,3775877,"1,088.10",0.00,NHS Pilot,Drugs and Pharmaceutical Products
Communities & Place,Parks & Healthy Living,"Leisure, Culture and Tourism",SIGMA PHARMACEUTICALS PLC,187719,05/10/2021,3775877,"2,394.90",0.00,NHS Pilot,Drugs and Pharmaceutical Products
Neighbourhoods,Neighbourhoods,Neighbourhoods,SJS 4 LIMITED,1389469,05/10/2021,3773995,"66,957.72",0.00,N/A,N/A
People Services - Children & Young People,Commissioning - Schools Block,Schools Block,SMOOTHSTONE CARE AND EDUCATION LIMITED,1172477,05/10/2021,3773927,"8,000.00",0.00,Out of Authority Education Placements,Education and Training Services
Corporate Resources,Communication and Consultation,Coroprate Core,SOCIALSIGNIN LTD,1645479,05/10/2021,3748834,"9,875.00",0.00,N/A,N/A
People Services - Children & Young People,Integrated Services,Non-Schools,SUPPORT AND SUPERVISED FAMILY CONTACT CENTRE LTD,1211468,05/10/2021,3772867,600.00,0.00,Kedleston Team,Public Utilities and Public Sector Relat
Communities & Place,Community Safety,Public Protection and Streetride,SYNECTICS SECURITY LIMITED,1494481,05/10/2021,3768908,"1,412.35",0.00,N/A,N/A
Communities & Place,Community Safety,Public Protection and Streetride,SYNECTICS SECURITY LIMITED,1494481,05/10/2021,3744134,"1,412.35",0.00,N/A,N/A
Neighbourhoods,Neighbourhoods,Neighbourhoods,T C HARRISON JCB,111471,05/10/2021,3773989,"77,800.00",0.00,UPRN 10110 - Asset Management - Highways Maintenance,Commercial and Military and Private Vehi
Communities & Place,"Trading Standards, Food and Safety, Bereavement Services and Building Consultanc",Public Protection and Streetride,TARBY CONSTRUCTION LTD,194477,05/10/2021,3775815,962.00,0.00,Cemeteries,Structures and Building and Construction
People Services - Children & Young People,Non Delegated Schools Budget,Schools Block,TEACHING PERSONNEL LTD,5067,05/10/2021,3774004,"1,572.98",0.00,Pupil Premium Grant,Education and Training Services
People Services - Children & Young People,Non Delegated Schools Budget,Schools Block,TEACHING PERSONNEL LTD,5067,05/10/2021,3774002,723.10,0.00,Pupil Premium Grant,Education and Training Services
People Services - Children & Young People,Integrated Services,Non-Schools,THE CHILD PSYCHOLOGY SERVICE CIC,1433469,05/10/2021,3775811,661.50,0.00,N/A,N/A
People Services - Children & Young People,Integrated Services,Non-Schools,THE FOSTERING NETWORK,1229481,05/10/2021,3772838,"5,704.00",0.00,Fostering Allowances,Organizations and Clubs-Clubs
People Services - Children & Young People,Learning & Inclusion - Schools Block,Schools Block,THE GUIDE DOGS FOR THE BLIND ASSN,144337,05/10/2021,3773960,"4,271.33",0.00,Specialist Support Teaching Services (SSTS),Education and Training Services
People Services - Adults and Health,Public Health,Public Health,THE RIVERSIDE GROUP LTD,90997,05/10/2021,3773947,"26,297.33",0.00,Integrated Substance Misuse Service,Healthcare Services
People Services - Children & Young People,Learning & Inclusion - Schools Block,Schools Block,THE UNIVERSITY OF BIRMINGHAM,4876,05/10/2021,3773949,"3,420.00",0.00,Specialist Support Teaching Services (SSTS),Education and Training Services
Communities & Place,Parks & Healthy Living,"Leisure, Culture and Tourism",THE WRIGHT FOUNDATION,1571477,05/10/2021,3772810,645.00,0.00,N/A,N/A
Communities & Place,"Trading Standards, Food and Safety, Bereavement Services and Building Consultanc",Public Protection and Streetride,THE YABOO CO LTD,4884,05/10/2021,3775872,860.46,0.00,Crematorium,Musical Instruments and Games and Toys a
Children and Young People,Children and Young People,Children and Young People,THOMAS BOW LTD,40570,05/10/2021,3772774,"11,526.92",0.00,Air Quality Improvement Project,Building and Construction and Maintenanc-Building construction and support and ma
Neighbourhoods,Neighbourhoods,Neighbourhoods,TIDYCO LTD,126818,05/10/2021,3775882,"9,081.82",0.00,DE-Carbonise,Distribution and Conditioning Systems an
Communities & Place,"Culture, Business Development & Tourism","Leisure, Culture and Tourism",TOLD BY AN IDIOT,1658496,05/10/2021,3772068,"1,000.00",0.00,N/A,N/A
Corporate Resources,Financial Services,Financial Services,TOTAL GAS AND POWER LIMITED (CONSOLIDATED),932485,05/10/2021,3775907,"22,956.65",0.00,N/A,N/A
Corporate Resources,Financial Services,Financial Services,TOTAL GAS AND POWER LIMITED (CONSOLIDATED),932485,05/10/2021,3775907,"3,347.09",0.00,N/A,N/A
Communities & Place,Regeneration and Major Projects,City Development & Growth,TOTALENERGIES,1591474,05/10/2021,3774023,759.72,0.00,N/A,N/A
People Services - Children & Young People,Integrated Services,Non-Schools,TRUNG PHAM,1666488,05/10/2021,3773801,"1,000.00",0.00,N/A,N/A
Neighbourhoods,Neighbourhoods,Neighbourhoods,TRUSTY PET SUPPLIES LIMITED,1670471,05/10/2021,3773993,"9,950.00",0.00,N/A,N/A
Communities & Place,Leisure,"Leisure, Culture and Tourism",UNIVERSITY OF DERBY,4937,05/10/2021,3772792,"1,583.50",0.00,Derby Live - Sales and Information Centre,Education and Training Services
People Services - Adults and Health,Physical Support,Community Support,UP24 SEVEN SERVICES LTD,1166483,05/10/2021,3773224,960.56,0.00,N/A,N/A
People Services - Adults and Health,Physical Support,Community Support,UP24 SEVEN SERVICES LTD,1166483,05/10/2021,3773321,960.56,0.00,N/A,N/A
People Services - Adults and Health,Support with Memory and Cognition,Community Support,UP24 SEVEN SERVICES LTD,1166483,05/10/2021,3773606,"1,165.48",0.00,N/A,N/A
People Services - Adults and Health,Support with Memory and Cognition,Community Support,UP24 SEVEN SERVICES LTD,1166483,05/10/2021,3773320,719.19,0.00,N/A,N/A
People Services - Adults and Health,Support with Memory and Cognition,Community Support,UP24 SEVEN SERVICES LTD,1166483,05/10/2021,3773319,719.19,0.00,N/A,N/A
People Services - Adults and Health,Support with Memory and Cognition,Community Support,UP24 SEVEN SERVICES LTD,1166483,05/10/2021,3773414,"1,165.48",0.00,N/A,N/A
Corporate Resources,Digital Services & Customer Management,Digital Services & Customer Management,VODAFONE LTD,885468,05/10/2021,3768261,"19,480.65",0.00,IT Infrastructure,Information Technology Broadcasting and
People Services - Adults and Health,Public Health,Public Health,WELFARE PHARMACY,194498,05/10/2021,3775913,"1,477.98",0.00,N/A,N/A
People Services - Children & Young People,Integrated Services,Non-Schools,WESTERN CARS CO,5202,05/10/2021,3772883,"1,100.00",0.00,Kedleston Team,Commercial and Military and Private Vehi
People Services - Children & Young People,Integrated Services,Non-Schools,WESTERN CARS CO,5202,05/10/2021,3772866,"1,075.00",0.00,Kedleston Team,Commercial and Military and Private Vehi
Communities & Place,"Highways, Gounds Maintenance and Flood Defence",Public Protection and Streetride,WESTERN POWER DISTRIBUTION,919468,05/10/2021,3772834,"3,397.70",0.00,Highways Maintenance Works,Public Utilities and Public Sector Relat
Communities & Place,"Highways, Gounds Maintenance and Flood Defence",Public Protection and Streetride,WILSON AND SCOTT HIGHWAYS LIMITED,909474,05/10/2021,3773935,"1,106.50",0.00,Highways Maintenance Reactionary Works,Environmental Services
People Services - Children & Young People,Commissioning - Schools Block,Schools Block,WITHERSLACK GROUP LTD,1670472,05/10/2021,3771817,"6,604.11",0.00,N/A,N/A
Communities & Place,"Environmental Protection, Housing Standards, Licensing, Emergency Planning",Public Protection and Streetride,A W LYMN,132,07/10/2021,3776139,"1,300.00",0.00,Burial/Crem N.A. Act 1948,Default
Communities & Place,"Culture, Business Development & Tourism","Leisure, Culture and Tourism",AC EVENTS CREWING LTD,1181468,07/10/2021,3776821,658.00,0.00,Derby Live - Head Quarters,Management and Business Professionals an
Corporate Resources,Facilities Management,Property,ACCESS UK LTD,1642494,07/10/2021,3776796,"1,342.07",0.00,N/A,N/A
Corporate Resources,Property Design & Maintenance,Property,ADT FIRE AND SECURITY PLC,188268,07/10/2021,3777177,"1,615.00",0.00,N/A,N/A
Corporate Resources,Property Design & Maintenance,Property,ADT FIRE AND SECURITY PLC,188268,07/10/2021,3777054,586.17,0.00,N/A,N/A
Communities & Place,"Waste, Street Cleansing & Fleet",Public Protection and Streetride,ADT SITE SERVICES LTD,982472,07/10/2021,3776724,711.15,0.00,Vehicle Maintenance,Building and Construction and Maintenanc
Communities & Place,"Highways, Gounds Maintenance and Flood Defence",Public Protection and Streetride,AGGREGATE INDUSTRIES UK LTD,117850,07/10/2021,3776868,"1,938.97",0.00,Highways Maintenance Works,Building and Construction Machinery and
Communities & Place,"Highways, Gounds Maintenance and Flood Defence",Public Protection and Streetride,AGGREGATE INDUSTRIES UK LTD,117850,07/10/2021,3772910,989.57,0.00,Highways Maintenance Works,Building and Construction Machinery and
Communities & Place,"Highways, Gounds Maintenance and Flood Defence",Public Protection and Streetride,AGGREGATE INDUSTRIES UK LTD,117850,07/10/2021,3772784,"1,126.39",0.00,Highways Maintenance Works,Building and Construction Machinery and
Communities & Place,"Highways, Gounds Maintenance and Flood Defence",Public Protection and Streetride,AGGREGATE INDUSTRIES UK LTD,117850,07/10/2021,3772768,"1,404.79",0.00,Highways Maintenance Works,Building and Construction Machinery and
People Services - Children & Young People,Commissioning,Non-Schools,AHS CARS LTD,1550523,07/10/2021,3776256,"1,138.10",0.00,N/A,N/A
People Services - Children & Young People,Commissioning,Non-Schools,AHS CARS LTD,1550523,07/10/2021,3776254,"1,417.40",0.00,N/A,N/A
People Services - Children & Young People,Commissioning,Non-Schools,AHS CARS LTD,1550523,07/10/2021,3776253,"1,708.10",0.00,N/A,N/A
People Services - Children & Young People,Commissioning,Non-Schools,AHS CARS LTD,1550523,07/10/2021,3776249,"1,520.00",0.00,N/A,N/A
People Services - Children & Young People,Commissioning,Non-Schools,AHS CARS LTD,1550523,07/10/2021,3776248,"1,708.10",0.00,N/A,N/A
People Services - Children & Young People,Commissioning,Non-Schools,AHS CARS LTD,1550523,07/10/2021,3776236,"5,604.16",0.00,N/A,N/A
People Services - Children & Young People,Commissioning,Non-Schools,AHS CARS LTD,1550523,07/10/2021,3776235,"13,125.00",0.00,N/A,N/A
People Services - Children & Young People,Early Help & Children�s Safeguarding,Non-Schools,ALDI STORES LIMITED,1029494,07/10/2021,3775873,"1,500.00",0.00,Food Vouchers,Food Beverage and Tobacco Products
Communities & Place,"Waste, Street Cleansing & Fleet",Public Protection and Streetride,AMA SUPPLIES LTD,285,07/10/2021,3776784,882.18,0.00,Street Cleaning,Apparel and Luggage and Personal Care Pr-Clothing
Communities & Place,"Waste, Street Cleansing & Fleet",Public Protection and Streetride,AMA SUPPLIES LTD,285,07/10/2021,3776753,"2,341.44",0.00,Refuse Collection,Apparel and Luggage and Personal Care Pr-Clothing
Communities & Place,"Waste, Street Cleansing & Fleet",Public Protection and Streetride,AMA SUPPLIES LTD,285,07/10/2021,3767962,740.00,0.00,Refuse Collection,Apparel and Luggage and Personal Care Pr-Clothing
Communities & Place,"Waste, Street Cleansing & Fleet",Public Protection and Streetride,AMA SUPPLIES LTD,285,07/10/2021,3776743,642.75,0.00,Building Cleaning Derby Homes,Apparel and Luggage and Personal Care Pr-Clothing
Neighbourhoods,Neighbourhoods,Neighbourhoods,AMION CONSULTING LTD,742446,07/10/2021,3776678,"4,500.00",0.00,MRC Midlands (NAMRC),Education and Training Services
People Services - Children & Young People,Commissioning,Non-Schools,ARRIVA MIDLANDS LTD,864451,07/10/2021,3776652,560.00,0.00,N/A,N/A
People Services - Children & Young People,Commissioning,Non-Schools,ARRIVA MIDLANDS LTD,864451,07/10/2021,3776652,560.00,0.00,N/A,N/A
Communities & Place,Regeneration and Major Projects,City Development & Growth,ARTHUR J GALLAGHER INSURANCE BROKERS LTD,1034486,07/10/2021,3771455,"2,000.00",0.00,Becketwell,Management and Business Professionals an
Communities & Place,"Culture, Business Development & Tourism","Leisure, Culture and Tourism",ASDA STORES LTD,586,07/10/2021,3768824,"1,143.76",0.00,N/A,N/A
Neighbourhoods,Neighbourhoods,Neighbourhoods,ATLOW CONTRACTING LTD,423402,07/10/2021,3776871,"6,174.00",0.00,Arboretum Park,Environmental Services
Communities & Place,"Waste, Street Cleansing & Fleet",Public Protection and Streetride,BIFFA WASTE SERVICES LTD,485,07/10/2021,3776648,"43,805.77",0.00,Waste Disposal,Environmental Services
Neighbourhoods,Neighbourhoods,Neighbourhoods,BRIDGEWAY CONSULTING LIMITED,1483500,07/10/2021,3776697,"2,876.28",0.00,N/A,N/A
Neighbourhoods,Neighbourhoods,Neighbourhoods,BRIDGEWAY CONSULTING LIMITED,1483500,07/10/2021,3776697,"1,923.25",0.00,N/A,N/A
Communities & Place,"Highways, Gounds Maintenance and Flood Defence",Public Protection and Streetride,BUILDBASE LTD,424,07/10/2021,3776129,810.00,0.00,Highways Maintenance Reactionary Works,Structures and Building and Construction
Chief Executives,Chief Executives,Chief Executives,CAPITA BINNIES,1645480,07/10/2021,3776759,"2,048.57",0.00,N/A,N/A
People Services - Children & Young People,Commissioning,Non-Schools,CHELLASTON CARS UK LTD,1007485,07/10/2021,3776239,"1,615.00",0.00,N/A,N/A
Corporate Resources,Property Design & Maintenance,Property,CHUBB FIRE AND SECURITY LTD,1445492,07/10/2021,3777139,578.83,0.00,N/A,N/A
People Services - Children & Young People,Commissioning,Non-Schools,COMMUNITY TRANSPORT FOR TOWN AND COUNTY,1551505,07/10/2021,3757034,"2,558.40",0.00,N/A,N/A
Communities & Place,"Environmental Protection, Housing Standards, Licensing, Emergency Planning",Public Protection and Streetride,CROWFOOT KENNELS LTD,134352,07/10/2021,3776181,"3,690.00",0.00,Environmental Protection,Farming Fishing Forestry and Wildlife Co
People Services - Adults and Health,Public Health,Public Health,DAY NIGHT LTD,187651,07/10/2021,3776413,660.00,0.00,N/A,N/A
People Services - Adults and Health,Public Health,Public Health,DAY NIGHT LTD,187651,07/10/2021,3776397,532.50,0.00,N/A,N/A
People Services - Adults and Health,Public Health,Public Health,DAY NIGHT LTD,187651,07/10/2021,3776397,"1,158.00",0.00,N/A,N/A
People Services - Adults and Health,Public Health,Public Health,DAY NIGHT LTD,187651,07/10/2021,3776396,784.50,0.00,N/A,N/A
People Services - Adults and Health,Public Health,Public Health,DAY NIGHT LTD,187651,07/10/2021,3776396,"1,554.00",0.00,N/A,N/A
People Services - Adults and Health,Public Health,Public Health,DCBKR LTD,407398,07/10/2021,3776604,580.00,0.00,N/A,N/A
Communities & Place,"Waste, Street Cleansing & Fleet",Public Protection and Streetride,DENNIS EAGLE LTD,1121,07/10/2021,3776777,"1,022.10",0.00,Vehicle Maintenance,Commercial and Military and Private Vehi
People Services - Children & Young People,Commissioning,Non-Schools,DERBY CITY BSF LIMITED,127009,07/10/2021,3776679,"452,578.91",0.00,N/A,N/A
People Services - Children & Young People,Commissioning,Non-Schools,DERBY CITY BSF LIMITED,127009,07/10/2021,3776679,"6,272.98",0.00,N/A,N/A
People Services - Children & Young People,Commissioning,Non-Schools,DERBY CITY BSF LIMITED,127009,07/10/2021,3776679,588.27,0.00,N/A,N/A
People Services - Children & Young People,Commissioning,Non-Schools,DERBY CITY BSF LIMITED,127009,07/10/2021,3776679,"1,996.83",0.00,N/A,N/A
People Services - Children & Young People,Commissioning,Non-Schools,DERBY CITY BSF LIMITED,127009,07/10/2021,3776679,"11,422.50",0.00,N/A,N/A
People Services - Children & Young People,Commissioning,Non-Schools,DERBY CITY BSF LIMITED,127009,07/10/2021,3776679,620.17,0.00,N/A,N/A
People Services - Children & Young People,Commissioning,Non-Schools,DERBY CITY BSF LIMITED,127009,07/10/2021,3776679,"3,340.16",0.00,N/A,N/A
Communities & Place,Strategic Housing,City Development & Growth,DERBY CITY COUNCIL C/TAX,1036478,07/10/2021,3776257,605.04,0.00,N/A,N/A
Adults Health and Housing,Adults Health and Housing,Adults Health and Housing,DERBY HOMES LTD,1078471,07/10/2021,3776353,"137,750.00",0.00,Emergency call system replacement,Building and Construction and Maintenanc
People Services - Children & Young People,Commissioning - Schools Block,Schools Block,DERBYSHIRE COUNTY COUNCIL,1042479,07/10/2021,3772065,"42,008.00",0.00,N/A,N/A
Corporate Resources,Human Resources and Organisational Development,Human Resources and Organisational Development,DISCLOSURE AND BARRING SERVICE,146440,07/10/2021,3776839,"3,051.00",0.00,HR Shared Services,Politics and Civic Affairs Services
Corporate Resources,Human Resources and Organisational Development,Human Resources and Organisational Development,DISCLOSURE AND BARRING SERVICE,146440,07/10/2021,3737664,"3,372.00",0.00,HR Shared Services,Politics and Civic Affairs Services
Corporate Resources,Human Resources and Organisational Development,Human Resources and Organisational Development,DISCLOSURE AND BARRING SERVICE,146440,07/10/2021,3713215,"1,329.00",0.00,HR Shared Services,Politics and Civic Affairs Services
Corporate Resources,Human Resources and Organisational Development,Human Resources and Organisational Development,DISCLOSURE AND BARRING SERVICE,146440,07/10/2021,3713215,631.00,0.00,HR Shared Services,Politics and Civic Affairs Services
People Services - Children & Young People,Early Help & Children�s Safeguarding,Non-Schools,DR CATHERINE MOIZER,1200481,07/10/2021,3776166,963.36,0.00,Legal Fees,Healthcare Services
Corporate Resources,Facilities Management,Property,EMS SECURITY SERVICES LTD,471442,07/10/2021,3776831,804.53,0.00,Council House,Defense and Law Enforcement and Security
Corporate Resources,Facilities Management,Property,EMS SECURITY SERVICES LTD,471442,07/10/2021,3776830,"8,179.91",0.00,Council House,Defense and Law Enforcement and Security
Corporate Resources,Facilities Management,Property,EMS SECURITY SERVICES LTD,471442,07/10/2021,3776829,"2,296.84",0.00,Council House,Defense and Law Enforcement and Security
Corporate Resources,Facilities Management,Property,EMS SECURITY SERVICES LTD,471442,07/10/2021,3776828,"9,945.27",0.00,Council House,Defense and Law Enforcement and Security
Corporate Resources,Facilities Management,Property,EMS SECURITY SERVICES LTD,471442,07/10/2021,3776827,"6,227.97",0.00,Council House,Defense and Law Enforcement and Security
People Services - Adults and Health,Social Care Activities,Direct Services,EMS SECURITY SERVICES LTD,471442,07/10/2021,3776795,666.88,0.00,Warwick House,Defense and Law Enforcement and Security
Communities & Place,"Trading Standards, Food and Safety, Bereavement Services and Building Consultanc",Public Protection and Streetride,EMS SECURITY SERVICES LTD,471442,07/10/2021,3776687,620.40,0.00,Cemeteries,Defense and Law Enforcement and Security
Communities & Place,"Trading Standards, Food and Safety, Bereavement Services and Building Consultanc",Public Protection and Streetride,EMS SECURITY SERVICES LTD,471442,07/10/2021,3776686,620.40,0.00,Cemeteries,Defense and Law Enforcement and Security
Corporate Resources,Strategic Asset Management,Property,EMS SECURITY SERVICES LTD,471442,07/10/2021,3776781,717.84,0.00,Surplus Properties,Defense and Law Enforcement and Security
Corporate Resources,Strategic Asset Management,Property,EMS SECURITY SERVICES LTD,471442,07/10/2021,3776780,785.36,0.00,Surplus Properties,Defense and Law Enforcement and Security
Corporate Resources,Strategic Asset Management,Property,EMS SECURITY SERVICES LTD,471442,07/10/2021,3776665,565.84,0.00,Surplus Properties,Defense and Law Enforcement and Security
Communities & Place,Regeneration and Major Projects,City Development & Growth,EMS SECURITY SERVICES LTD,471442,07/10/2021,3776735,580.00,0.00,Market Hall,Defense and Law Enforcement and Security
People Services - Children & Young People,Integrated Services,Non-Schools,EMS SECURITY SERVICES LTD,471442,07/10/2021,3776776,991.40,0.00,The Willows,Defense and Law Enforcement and Security
Communities & Place,"Waste, Street Cleansing & Fleet",Public Protection and Streetride,ENVA ENGLAND SPECIALIST WASTE LIMITED,972470,07/10/2021,3773964,549.00,0.00,Waste Transfer Station - London Road Depot,Material Handling and Conditioning and S
Communities & Place,"Waste, Street Cleansing & Fleet",Public Protection and Streetride,ENVA ENGLAND SPECIALIST WASTE LIMITED,972470,07/10/2021,3773962,850.00,0.00,Waste Transfer Station - London Road Depot,Material Handling and Conditioning and S
Corporate Resources,Property Design & Maintenance,Property,FAITHFUL AND GOULD LIMITED,945490,07/10/2021,3777087,"7,818.09",0.00,N/A,N/A
Corporate Resources,Property Design & Maintenance,Property,FAITHFUL AND GOULD LIMITED,945490,07/10/2021,3777062,"1,177.19",0.00,N/A,N/A
Communities & Place,"Culture, Business Development & Tourism","Leisure, Culture and Tourism",FLYING HIRE LTD,202380,07/10/2021,3772844,795.00,0.00,Derby Live - Outdoor Events,Power Generation and Distribution Machin
Communities & Place,"Highways, Gounds Maintenance and Flood Defence",Public Protection and Streetride,FR SHARROCKS LTD,644448,07/10/2021,3776825,919.06,0.00,Grounds Maintenance,Building and Construction Machinery and
Corporate Resources,Strategic Asset Management,Property,HAYS SPECIALIST RECRUITMENT LTD,1852,07/10/2021,3776704,"1,167.35",0.00,Valuation,Transportation and Storage and Mail Serv-Storage
Corporate Resources,Property Design & Maintenance,Property,HIGHFIELD JOINERY AND BUILD SERVS LTD,215391,07/10/2021,3777172,"9,350.00",0.00,N/A,N/A
Corporate Resources,Property Design & Maintenance,Property,HIGHFIELD JOINERY AND BUILD SERVS LTD,215391,07/10/2021,3777171,"5,140.00",0.00,N/A,N/A
Corporate Resources,Property Design & Maintenance,Property,HIGHFIELD JOINERY AND BUILD SERVS LTD,215391,07/10/2021,3777130,"1,980.00",0.00,N/A,N/A
Corporate Resources,Property Design & Maintenance,Property,HIGHFIELD JOINERY AND BUILD SERVS LTD,215391,07/10/2021,3777127,"1,755.00",0.00,N/A,N/A
Corporate Resources,Property Design & Maintenance,Property,HIGHFIELD JOINERY AND BUILD SERVS LTD,215391,07/10/2021,3777140,920.00,0.00,N/A,N/A
Corporate Resources,Property Design & Maintenance,Property,HIGHFIELD JOINERY AND BUILD SERVS LTD,215391,07/10/2021,3777126,930.00,0.00,N/A,N/A
Corporate Resources,Property Design & Maintenance,Property,HIGHFIELD JOINERY AND BUILD SERVS LTD,215391,07/10/2021,3777131,"2,175.00",0.00,N/A,N/A
Corporate Resources,Property Design & Maintenance,Property,HIGHFIELD JOINERY AND BUILD SERVS LTD,215391,07/10/2021,3777162,"13,325.00",0.00,N/A,N/A
People Services - Children & Young People,Commissioning,Non-Schools,HODGSON TRAVEL,1351476,07/10/2021,3776241,"3,200.00",0.00,N/A,N/A
People Services - Adults and Health,Public Health,Public Health,HOLLYBROOK MEDICAL CENTRE,406409,07/10/2021,3776595,"1,000.00",0.00,N/A,N/A
People Services - Children & Young People,Commissioning - Schools Block,Schools Block,HOPE HOUSE SCHOOL,479400,07/10/2021,3767991,673.35,0.00,Out of Authority Education Placements,Education and Training Services
People Services - Adults and Health,Public Health,Public Health,HORIZON HEALTHCARE,1030472,07/10/2021,3776533,575.55,0.00,N/A,N/A
Communities & Place,Community Safety,Public Protection and Streetride,INCLUSIVE EXCHANGE LIMITED,1623483,07/10/2021,3762333,"2,264.20",0.00,N/A,N/A
Communities & Place,Community Safety,Public Protection and Streetride,INCLUSIVE EXCHANGE LIMITED,1623483,07/10/2021,3762333,"2,264.20",0.00,N/A,N/A
Communities & Place,Planning,Planning & Transportation,LATHAMS,900480,07/10/2021,3776695,"2,958.00",0.00,Spatial Planning,Building and Construction and Maintenanc
People Services - Children & Young People,Early Help & Children�s Safeguarding,Non-Schools,LEADERS IN CARE RECRUITMENT LTD,1617480,07/10/2021,3776848,"1,628.00",0.00,N/A,N/A
People Services - Children & Young People,Early Help & Children�s Safeguarding,Non-Schools,LEADERS IN CARE RECRUITMENT LTD,1617480,07/10/2021,3776819,"1,628.00",0.00,N/A,N/A
People Services - Children & Young People,Early Help & Children�s Safeguarding,Non-Schools,LEXTOX DRUG AND ALCOHOL TESTING,188563,07/10/2021,3776165,875.00,0.00,Legal Fees,Management and Business Professionals an
Corporate Resources,"Policy, Insight and Commuications",Coroprate Core,MACILDOWIE ASSOCIATES LTD,1493482,07/10/2021,3772916,"1,570.00",0.00,N/A,N/A
Corporate Resources,Property Design & Maintenance,Property,MANOR ELECTRICAL SERVICES,1125481,07/10/2021,3777091,"3,261.00",0.00,N/A,N/A
Corporate Resources,Property Design & Maintenance,Property,MANOR ELECTRICAL SERVICES,1125481,07/10/2021,3777081,"3,667.00",0.00,N/A,N/A
Corporate Resources,Property Design & Maintenance,Property,MANOR ELECTRICAL SERVICES,1125481,07/10/2021,3777100,"1,395.00",0.00,N/A,N/A
Corporate Resources,Property Design & Maintenance,Property,MANOR ELECTRICAL SERVICES,1125481,07/10/2021,3777097,557.00,0.00,N/A,N/A
Neighbourhoods,Neighbourhoods,Neighbourhoods,MANOR ELECTRICAL SERVICES,1125481,07/10/2021,3777094,727.00,0.00,N/A,N/A
People Services - Children & Young People,Integrated Services,Non-Schools,MARTIN AND PARKER DERBY LTD,1173473,07/10/2021,3776769,"2,070.00",0.00,Limestone House,Furniture and Furnishings
Communities & Place,Strategic Housing,City Development & Growth,MASAMI LTD,846457,07/10/2021,3776707,"2,475.00",0.00,DASH Project,Management and Business Professionals an
People Services - Children & Young People,Commissioning,Non-Schools,MIDLAND CARZ,1550534,07/10/2021,3776240,"2,182.72",0.00,N/A,N/A
Corporate Resources,Property Design & Maintenance,Property,MIDLAND COUNTIES HEATING SERVICES,188123,07/10/2021,3777074,"2,573.00",0.00,N/A,N/A
Corporate Resources,Property Design & Maintenance,Property,MIDLAND COUNTIES HEATING SERVICES,188123,07/10/2021,3777078,"2,552.63",0.00,N/A,N/A
Communities & Place,"Waste, Street Cleansing & Fleet",Public Protection and Streetride,NATIONAL WINDSCREENS,3506,07/10/2021,3776131,"1,315.51",0.00,Fleet Hire,Commercial and Military and Private Vehi
People Services - Children & Young People,Commissioning,Non-Schools,NOEL BAKER ACADEMY,595442,07/10/2021,3776872,"2,939.52",0.00,N/A,N/A
Communities & Place,"Highways, Gounds Maintenance and Flood Defence",Public Protection and Streetride,NOTTINGHAM CITY COUNCIL,1240476,07/10/2021,3769479,"1,000.56",0.00,N/A,N/A
People Services - Children & Young People,Non Delegated Schools Budget,Schools Block,PARK HILL PRIMARY SCHOOL,1563471,07/10/2021,3768941,924.00,0.00,N/A,N/A
Communities & Place,"Waste, Street Cleansing & Fleet",Public Protection and Streetride,PARTSPLUS,1368477,07/10/2021,3776222,"1,038.20",0.00,N/A,N/A
People Services - Adults and Health,Mental Health Support,Mental Health,PEOPLE POTENTIAL POSSIBILITIES,125409,07/10/2021,3776823,595.84,0.00,N/A,N/A
People Services - Adults and Health,Mental Health Support,Mental Health,PEOPLE POTENTIAL POSSIBILITIES,125409,07/10/2021,3683230,595.84,0.00,N/A,N/A
Corporate Resources,Property Design & Maintenance,Property,POOL SENTRY LTD,188402,07/10/2021,3777092,857.68,0.00,N/A,N/A
Corporate Resources,Digital Services & Customer Management,Digital Services & Customer Management,PRO DBA LTD,889471,07/10/2021,3776798,"4,579.99",0.00,IT Infrastructure,Information Technology Broadcasting and
People Services - Adults and Health,Learning Disability Support,Community Support,REDACTED - PERSONAL DATA,386414,07/10/2021,3776985,"1,901.12",0.00,N/A,N/A
People Services - Adults and Health,Learning Disability Support,Community Support,REDACTED - PERSONAL DATA,386414,07/10/2021,3776984,"1,901.12",0.00,N/A,N/A
People Services - Adults and Health,Learning Disability Support,Community Support,REDACTED - PERSONAL DATA,386414,07/10/2021,3776983,"1,901.12",0.00,N/A,N/A
People Services - Adults and Health,Learning Disability Support,Community Support,REDACTED - PERSONAL DATA,386414,07/10/2021,3776977,"1,629.53",0.00,N/A,N/A
People Services - Adults and Health,Learning Disability Support,Community Support,REDACTED - PERSONAL DATA,386414,07/10/2021,3776972,"1,901.12",0.00,N/A,N/A
People Services - Adults and Health,Learning Disability Support,Community Support,REDACTED - PERSONAL DATA,386414,07/10/2021,3776971,"1,901.12",0.00,N/A,N/A
People Services - Adults and Health,Learning Disability Support,Community Support,REDACTED - PERSONAL DATA,386414,07/10/2021,3776970,"1,901.12",0.00,N/A,N/A
People Services - Adults and Health,Learning Disability Support,Community Support,REDACTED - PERSONAL DATA,386414,07/10/2021,3776952,"1,901.12",0.00,N/A,N/A
People Services - Adults and Health,Learning Disability Support,Community Support,REDACTED - PERSONAL DATA,386414,07/10/2021,3776951,"1,901.12",0.00,N/A,N/A
People Services - Adults and Health,Learning Disability Support,Community Support,REDACTED - PERSONAL DATA,386414,07/10/2021,3776950,"1,901.12",0.00,N/A,N/A
People Services - Adults and Health,Learning Disability Support,Community Support,REDACTED - PERSONAL DATA,386414,07/10/2021,3776949,"1,901.12",0.00,N/A,N/A
People Services - Adults and Health,Learning Disability Support,Community Support,REDACTED - PERSONAL DATA,386414,07/10/2021,3776929,"1,901.12",0.00,N/A,N/A
People Services - Adults and Health,Learning Disability Support,Community Support,REDACTED - PERSONAL DATA,386414,07/10/2021,3776920,"1,901.12",0.00,N/A,N/A
People Services - Children & Young People,Commissioning,Non-Schools,REDACTED - PERSONAL DATA,1524484,07/10/2021,3776245,"1,501.00",0.00,N/A,N/A
People Services - Adults and Health,Physical Support,Community Support,REDACTED - PERSONAL DATA,153596,07/10/2021,3776921,715.65,0.00,N/A,N/A
People Services - Adults and Health,Learning Disability Support,Community Support,REDACTED - PERSONAL DATA,185340,07/10/2021,3776981,"2,669.12",0.00,N/A,N/A
People Services - Adults and Health,Learning Disability Support,Community Support,REDACTED - PERSONAL DATA,185340,07/10/2021,3776980,"2,669.12",0.00,N/A,N/A
People Services - Adults and Health,Learning Disability Support,Community Support,REDACTED - PERSONAL DATA,185340,07/10/2021,3776954,"2,669.12",0.00,N/A,N/A
People Services - Adults and Health,Learning Disability Support,Community Support,REDACTED - PERSONAL DATA,185340,07/10/2021,3776940,"2,669.12",0.00,N/A,N/A
People Services - Adults and Health,Learning Disability Support,Community Support,REDACTED - PERSONAL DATA,185340,07/10/2021,3776931,"2,669.12",0.00,N/A,N/A
People Services - Adults and Health,Learning Disability Support,Community Support,REDACTED - PERSONAL DATA,185340,07/10/2021,3776930,"2,669.12",0.00,N/A,N/A
People Services - Adults and Health,Learning Disability Support,Community Support,REDACTED - PERSONAL DATA,185340,07/10/2021,3776922,"2,669.12",0.00,N/A,N/A
People Services - Adults and Health,Learning Disability Support,Transitions and Ordinary Lives,REDACTED - PERSONAL DATA,1177478,07/10/2021,3776968,634.15,0.00,N/A,N/A
People Services - Adults and Health,Learning Disability Support,Transitions and Ordinary Lives,REDACTED - PERSONAL DATA,1177478,07/10/2021,3776957,739.84,0.00,N/A,N/A
People Services - Adults and Health,Learning Disability Support,Transitions and Ordinary Lives,REDACTED - PERSONAL DATA,696463,07/10/2021,3776974,"2,409.04",0.00,N/A,N/A
People Services - Adults and Health,Learning Disability Support,Transitions and Ordinary Lives,REDACTED - PERSONAL DATA,696463,07/10/2021,3776967,"1,806.78",0.00,N/A,N/A
People Services - Adults and Health,Learning Disability Support,Transitions and Ordinary Lives,REDACTED - PERSONAL DATA,696463,07/10/2021,3776932,"2,409.04",0.00,N/A,N/A
People Services - Adults and Health,Physical Support,Community Support,REDACTED - PERSONAL DATA,1589472,07/10/2021,3776961,667.08,0.00,N/A,N/A
People Services - Children & Young People,Commissioning,Non-Schools,REDACTED - PERSONAL DATA,1145474,07/10/2021,3776237,"1,477.82",0.00,N/A,N/A
People Services - Children & Young People,Learning & Inclusion,Non-Schools,REDACTED - PERSONAL DATA,762445,07/10/2021,3776736,"2,625.00",0.00,Early Years Quality Assurance,Education and Training Services
People Services - Children & Young People,Commissioning,Non-Schools,REDACTED - PERSONAL DATA,9609,07/10/2021,3776811,"3,705.00",0.00,N/A,N/A
People Services - Children & Young People,Commissioning,Non-Schools,REDACTED - PERSONAL DATA,9609,07/10/2021,3776892,"3,785.75",0.00,N/A,N/A
People Services - Children & Young People,Commissioning,Non-Schools,REDACTED - PERSONAL DATA,9609,07/10/2021,3776891,"5,030.25",0.00,N/A,N/A
People Services - Children & Young People,Commissioning,Non-Schools,REDACTED - PERSONAL DATA,9609,07/10/2021,3776889,"2,921.25",0.00,N/A,N/A
People Services - Children & Young People,Commissioning,Non-Schools,REDACTED - PERSONAL DATA,9609,07/10/2021,3776882,"1,100.00",0.00,N/A,N/A
People Services - Children & Young People,Commissioning,Non-Schools,REDACTED - PERSONAL DATA,9609,07/10/2021,3776878,"2,660.00",0.00,N/A,N/A
People Services - Adults and Health,Physical Support,Community Support,REDACTED - PERSONAL DATA,1463473,07/10/2021,3776996,"2,345.56",0.00,N/A,N/A
People Services - Adults and Health,Physical Support,Community Support,REDACTED - PERSONAL DATA,1463473,07/10/2021,3776995,"2,345.56",0.00,N/A,N/A
People Services - Adults and Health,Physical Support,Community Support,REDACTED - PERSONAL DATA,1463473,07/10/2021,3776994,"1,759.17",0.00,N/A,N/A
People Services - Adults and Health,Physical Support,Community Support,REDACTED - PERSONAL DATA,1463473,07/10/2021,3776982,"2,345.56",0.00,N/A,N/A
People Services - Adults and Health,Physical Support,Community Support,REDACTED - PERSONAL DATA,1463473,07/10/2021,3776959,"2,345.56",0.00,N/A,N/A
People Services - Adults and Health,Physical Support,Community Support,REDACTED - PERSONAL DATA,1463473,07/10/2021,3776946,"2,345.56",0.00,N/A,N/A
People Services - Adults and Health,Physical Support,Community Support,REDACTED - PERSONAL DATA,1463473,07/10/2021,3776927,"2,345.56",0.00,N/A,N/A
People Services - Adults and Health,Physical Support,Community Support,REDACTED - PERSONAL DATA,1463473,07/10/2021,3776925,"2,345.56",0.00,N/A,N/A
People Services - Children & Young People,Commissioning,Non-Schools,REDACTED - PERSONAL DATA,113087,07/10/2021,3776251,"1,459.50",0.00,N/A,N/A
People Services - Children & Young People,Commissioning,Non-Schools,REDACTED - PERSONAL DATA,113087,07/10/2021,3776250,866.40,0.00,N/A,N/A
People Services - Children & Young People,Commissioning,Non-Schools,REDACTED - PERSONAL DATA,1550488,07/10/2021,3776247,973.50,0.00,N/A,N/A
People Services - Children & Young People,Commissioning,Non-Schools,REDACTED - PERSONAL DATA,1550488,07/10/2021,3776246,"1,168.20",0.00,N/A,N/A
People Services - Children & Young People,Commissioning,Non-Schools,REDACTED - PERSONAL DATA,4727,07/10/2021,3776244,"1,463.00",0.00,N/A,N/A
People Services - Children & Young People,Commissioning,Non-Schools,REDACTED - PERSONAL DATA,1569539,07/10/2021,3776883,"1,330.00",0.00,N/A,N/A
People Services - Children & Young People,Commissioning,Non-Schools,REDACTED - PERSONAL DATA,1551475,07/10/2021,3776238,"1,500.00",0.00,N/A,N/A
People Services - Adults and Health,Learning Disability Support,Community Support,REDACTED - PERSONAL DATA,170517,07/10/2021,3776988,975.36,0.00,N/A,N/A
People Services - Adults and Health,Learning Disability Support,Community Support,REDACTED - PERSONAL DATA,170517,07/10/2021,3776953,975.36,0.00,N/A,N/A
People Services - Adults and Health,Learning Disability Support,Community Support,REDACTED - PERSONAL DATA,170517,07/10/2021,3776938,975.36,0.00,N/A,N/A
People Services - Children & Young People,Commissioning,Non-Schools,REDACTED - PERSONAL DATA,1667478,07/10/2021,3772984,560.00,0.00,N/A,N/A
Neighbourhoods,Neighbourhoods,Neighbourhoods,REVEAL MEDIA LTD,1576478,07/10/2021,3772088,"1,647.00",0.00,N/A,N/A
Neighbourhoods,Neighbourhoods,Neighbourhoods,REVEAL MEDIA LTD,1576478,07/10/2021,3772088,"1,647.00",0.00,N/A,N/A
Corporate Resources,Financial Services,Financial Services,RICOH UK LTD,1185476,07/10/2021,3768202,"14,269.00",0.00,N/A,N/A
People Services - Adults and Health,Public Health,Public Health,ROSEHILL PHARMACY LTD,187661,07/10/2021,3776400,"1,393.50",0.00,N/A,N/A
People Services - Adults and Health,Public Health,Public Health,ROSEHILL PHARMACY LTD,187661,07/10/2021,3776400,"3,652.50",0.00,N/A,N/A
Corporate Resources,Property Design & Maintenance,Property,S S SYSTEMS LTD,188339,07/10/2021,3777151,518.93,0.00,N/A,N/A
People Services - Children & Young People,Commissioning,Non-Schools,SAYMEZ CARS,1466479,07/10/2021,3776888,595.00,0.00,N/A,N/A
People Services - Children & Young People,Commissioning,Non-Schools,SAYMEZ CARS,1466479,07/10/2021,3776886,"2,185.00",0.00,N/A,N/A
People Services - Children & Young People,Commissioning,Non-Schools,SAYMEZ CARS,1466479,07/10/2021,3776885,"2,090.00",0.00,N/A,N/A
People Services - Children & Young People,Commissioning,Non-Schools,SAYMEZ CARS,1466479,07/10/2021,3776884,954.00,0.00,N/A,N/A
People Services - Children & Young People,Commissioning,Non-Schools,SAYMEZ CARS,1466479,07/10/2021,3776880,"1,869.00",0.00,N/A,N/A
People Services - Children & Young People,Commissioning,Non-Schools,SAYMEZ CARS,1466479,07/10/2021,3776879,"1,088.00",0.00,N/A,N/A
Children and Young People,Children and Young People,Children and Young People,SEDDON CONSTRUCTION LTD,912470,07/10/2021,3777093,"92,352.41",0.00,N/A,N/A
People Services - Children & Young People,Commissioning - Schools Block,Schools Block,SENAD LTD,895472,07/10/2021,3776651,"25,733.33",0.00,Out of Authority Education Placements,Education and Training Services
People Services - Children & Young People,Commissioning,Non-Schools,SWIFT CABS MIDLANDS LTD,112454,07/10/2021,3776252,"1,170.00",0.00,Home To School Transport - SEN,Transportation and Storage and Mail Serv
People Services - Children & Young People,Commissioning,Non-Schools,SWIFT CABS MIDLANDS LTD,112454,07/10/2021,3776252,"1,710.00",0.00,Home To School Transport - SEN,Transportation and Storage and Mail Serv
People Services - Children & Young People,Commissioning,Non-Schools,SWIFT CABS MIDLANDS LTD,112454,07/10/2021,3776243,"3,135.00",0.00,Home To School Transport - SEN,Transportation and Storage and Mail Serv
People Services - Children & Young People,Commissioning,Non-Schools,SWIFT CABS MIDLANDS LTD,112454,07/10/2021,3776242,"2,755.00",0.00,Home To School Transport - SEN,Transportation and Storage and Mail Serv
People Services - Children & Young People,Commissioning,Non-Schools,SWIFT CABS MIDLANDS LTD,112454,07/10/2021,3776233,"3,325.00",0.00,Home To School Transport - SEN,Transportation and Storage and Mail Serv
People Services - Children & Young People,Commissioning,Non-Schools,SWIFT CABS MIDLANDS LTD,112454,07/10/2021,3776232,"4,085.00",0.00,Home To School Transport - SEN,Transportation and Storage and Mail Serv
People Services - Children & Young People,Commissioning,Non-Schools,SWIFT CABS MIDLANDS LTD,112454,07/10/2021,3776231,"5,795.00",0.00,Home To School Transport - SEN,Transportation and Storage and Mail Serv
Communities & Place,"Highways, Gounds Maintenance and Flood Defence",Public Protection and Streetride,TARBY CONSTRUCTION LTD,194477,07/10/2021,3771815,"3,304.10",0.00,Highways Maintenance Works,Structures and Building and Construction
Communities & Place,"Highways, Gounds Maintenance and Flood Defence",Public Protection and Streetride,TARBY CONSTRUCTION LTD,194477,07/10/2021,3771815,869.50,0.00,Highways Maintenance Works,Structures and Building and Construction
Communities & Place,"Highways, Gounds Maintenance and Flood Defence",Public Protection and Streetride,TARBY CONSTRUCTION LTD,194477,07/10/2021,3776912,"1,912.90",0.00,Highways Maintenance Works,Structures and Building and Construction
Communities & Place,"Highways, Gounds Maintenance and Flood Defence",Public Protection and Streetride,TARBY CONSTRUCTION LTD,194477,07/10/2021,3771815,"2,434.60",0.00,Highways Maintenance Reactionary Works,Structures and Building and Construction
Communities & Place,"Highways, Gounds Maintenance and Flood Defence",Public Protection and Streetride,TARBY CONSTRUCTION LTD,194477,07/10/2021,3776912,"1,565.10",0.00,Highways Maintenance Reactionary Works,Structures and Building and Construction
Communities & Place,"Waste, Street Cleansing & Fleet",Public Protection and Streetride,TERBERG MATEC UK,1594474,07/10/2021,3776144,570.40,0.00,N/A,N/A
Chief Executives,Chief Executives,Chief Executives,TETRA TECH ENVIRONMENT PLANNING TRANSPORT LIMITED,1497494,07/10/2021,3769514,"1,947.81",0.00,N/A,N/A
Children and Young People,Children and Young People,Children and Young People,TETRA TECH ENVIRONMENT PLANNING TRANSPORT LIMITED,1497494,07/10/2021,3772789,"1,580.65",0.00,N/A,N/A
Children and Young People,Children and Young People,Children and Young People,TETRA TECH ENVIRONMENT PLANNING TRANSPORT LIMITED,1497494,07/10/2021,3772789,"1,580.65",0.00,N/A,N/A
People Services - Children & Young People,Commissioning,Non-Schools,THE HARMONY TRUST LTD,874449,07/10/2021,3762122,"1,027.00",0.00,N/A,N/A
People Services - Adults and Health,Public Health,Public Health,THE PARK MEDICAL PRACTICE,406406,07/10/2021,3776529,639.50,0.00,N/A,N/A
Communities & Place,"Trading Standards, Food and Safety, Bereavement Services and Building Consultanc",Public Protection and Streetride,THE YABOO CO LTD,4884,07/10/2021,3777334,540.00,0.00,Crematorium,Musical Instruments and Games and Toys a
People Services - Adults and Health,Public Health,Public Health,WELFARE PHARMACY,194498,07/10/2021,3776391,"1,497.00",0.00,N/A,N/A
People Services - Adults and Health,Public Health,Public Health,WELFARE PHARMACY,194498,07/10/2021,3776391,"2,383.50",0.00,N/A,N/A
People Services - Children & Young People,Commissioning,Non-Schools,WESTERN CARS CO,5202,07/10/2021,3776887,"1,260.00",0.00,Home To School Transport - SEN,Commercial and Military and Private Vehi
People Services - Children & Young People,Commissioning,Non-Schools,WESTERN CARS CO,5202,07/10/2021,3776881,950.00,0.00,Home To School Transport - SEN,Commercial and Military and Private Vehi
People Services - Children & Young People,Commissioning,Non-Schools,WESTERN CARS CO,5202,07/10/2021,3777382,"1,080.00",0.00,Home To School Transport - SEN,Commercial and Military and Private Vehi
People Services - Children & Young People,Commissioning,Non-Schools,WESTERN CARS CO,5202,07/10/2021,3777376,912.00,0.00,Home To School Transport - SEN,Commercial and Military and Private Vehi
People Services - Children & Young People,Commissioning,Non-Schools,WESTERN CARS CO,5202,07/10/2021,3777370,"2,205.00",0.00,Home To School Transport - SEN,Commercial and Military and Private Vehi
People Services - Children & Young People,Commissioning,Non-Schools,WESTERN CARS CO,5202,07/10/2021,3777367,"1,482.00",0.00,Home To School Transport - SEN,Commercial and Military and Private Vehi
People Services - Children & Young People,Commissioning,Non-Schools,WESTERN CARS CO,5202,07/10/2021,3777366,900.00,0.00,Home To School Transport - SEN,Commercial and Military and Private Vehi
Corporate Resources,Financial Services,Financial Services,XMA LTD,5286,07/10/2021,3773942,"1,123.50",0.00,DMC - Document Management Centre,Information Technology Broadcasting and
Adults Health and Housing,Adults Health and Housing,Adults Health and Housing,A M PROPERTY SERVICES LTD,121,12/10/2021,3778619,"2,544.00",0.00,REFCUS - Healthy Housing Assistance,Building and Construction and Maintenanc
Communities & Place,"Environmental Protection, Housing Standards, Licensing, Emergency Planning",Public Protection and Streetride,A W LYMN,92959,12/10/2021,3782031,"1,300.00",0.00,N/A,N/A
People Services - Children & Young People,Commissioning,Non-Schools,A2B CARS,186883,12/10/2021,3778611,"1,831.86",0.00,N/A,N/A
People Services - Children & Young People,Commissioning,Non-Schools,A2B CARS,186883,12/10/2021,3778610,"1,831.86",0.00,N/A,N/A
People Services - Children & Young People,Commissioning,Non-Schools,A2B CARS,186883,12/10/2021,3778609,"2,176.00",0.00,N/A,N/A
People Services - Children & Young People,Commissioning,Non-Schools,A2B CARS,186883,12/10/2021,3778608,"2,304.00",0.00,N/A,N/A
People Services - Children & Young People,Commissioning,Non-Schools,A2B CARS,186883,12/10/2021,3778607,"2,304.00",0.00,N/A,N/A
People Services - Children & Young People,Commissioning,Non-Schools,A2B CARS,186883,12/10/2021,3778606,732.00,0.00,N/A,N/A
People Services - Children & Young People,Commissioning,Non-Schools,A2B CARS,186883,12/10/2021,3778605,878.40,0.00,N/A,N/A
People Services - Children & Young People,Commissioning,Non-Schools,A2B CARS,186883,12/10/2021,3778604,"1,520.00",0.00,N/A,N/A
People Services - Children & Young People,Commissioning,Non-Schools,A2B CARS,186883,12/10/2021,3778603,"1,710.00",0.00,N/A,N/A
People Services - Children & Young People,Commissioning,Non-Schools,A2B CARS,186883,12/10/2021,3778601,898.20,0.00,N/A,N/A
People Services - Children & Young People,Commissioning,Non-Schools,ACTION FOR CHILDREN SERVICES LTD,186616,12/10/2021,3778545,"59,000.00",0.00,N/A,N/A
People Services - Children & Young People,Commissioning,Non-Schools,ACTION FOR CHILDREN SERVICES LTD,186616,12/10/2021,3756273,"59,000.00",0.00,N/A,N/A
Communities & Place,"Highways, Gounds Maintenance and Flood Defence",Public Protection and Streetride,AGGREGATE INDUSTRIES UK LTD,117850,12/10/2021,3777218,"2,351.99",0.00,Highways Maintenance Works,Building and Construction Machinery and
Communities & Place,"Highways, Gounds Maintenance and Flood Defence",Public Protection and Streetride,AGGREGATE INDUSTRIES UK LTD,117850,12/10/2021,3777215,"3,921.98",0.00,Highways Maintenance Works,Building and Construction Machinery and
Communities & Place,"Highways, Gounds Maintenance and Flood Defence",Public Protection and Streetride,AGGREGATE INDUSTRIES UK LTD,117850,12/10/2021,3777207,"2,254.07",0.00,Highways Maintenance Works,Building and Construction Machinery and
Communities & Place,"Highways, Gounds Maintenance and Flood Defence",Public Protection and Streetride,AGGREGATE INDUSTRIES UK LTD,117850,12/10/2021,3777207,623.04,0.00,Highways Maintenance Reactionary Works,Building and Construction Machinery and
People Services - Children & Young People,Commissioning,Non-Schools,AHS CARS LTD,1550523,12/10/2021,3782133,"1,273.00",0.00,N/A,N/A
People Services - Children & Young People,Commissioning,Non-Schools,AHS CARS LTD,1550523,12/10/2021,3782177,"18,639.00",0.00,N/A,N/A
People Services - Children & Young People,Commissioning,Non-Schools,AHS CARS LTD,1550523,12/10/2021,3782177,882.90,0.00,N/A,N/A
People Services - Children & Young People,Commissioning,Non-Schools,AHS CARS LTD,1550523,12/10/2021,3782167,"1,613.10",0.00,N/A,N/A
Neighbourhoods,Neighbourhoods,Neighbourhoods,ALLIANCE LEISURE SERVICES LIMITED,1667483,12/10/2021,3778551,"30,592.24",0.00,N/A,N/A
Communities & Place,"Waste, Street Cleansing & Fleet",Public Protection and Streetride,ALLSTAR BUSINESS SOLUTIONS LTD,135370,12/10/2021,3782284,"14,485.65",0.00,Fleet Hire,Fuels and Fuel Additives and Lubricants
Communities & Place,"Highways, Gounds Maintenance and Flood Defence",Public Protection and Streetride,AMA SUPPLIES LTD,285,12/10/2021,3778548,610.80,0.00,Grounds Maintenance,Apparel and Luggage and Personal Care Pr-Clothing
Communities & Place,"Highways, Gounds Maintenance and Flood Defence",Public Protection and Streetride,AMA SUPPLIES LTD,285,12/10/2021,3778548,610.79,0.00,Grounds Maintenance Derby Homes,Apparel and Luggage and Personal Care Pr-Clothing
Communities & Place,"Highways, Gounds Maintenance and Flood Defence",Public Protection and Streetride,AMA SUPPLIES LTD,285,12/10/2021,3777267,994.80,0.00,Highways Maintenance Reactionary Works,Apparel and Luggage and Personal Care Pr-Clothing
Communities & Place,"Highways, Gounds Maintenance and Flood Defence",Public Protection and Streetride,AMA SUPPLIES LTD,285,12/10/2021,3777239,528.24,0.00,Highways Maintenance Reactionary Works,Apparel and Luggage and Personal Care Pr-Clothing
Communities & Place,"Highways, Gounds Maintenance and Flood Defence",Public Protection and Streetride,AMA SUPPLIES LTD,285,12/10/2021,3777238,770.82,0.00,Highways Maintenance Reactionary Works,Apparel and Luggage and Personal Care Pr-Clothing
Neighbourhoods,Neighbourhoods,Neighbourhoods,AMION CONSULTING LTD,742446,12/10/2021,3778589,"2,738.00",0.00,Smartparc,Education and Training Services
Corporate Resources,"Legal, Procurement and Democratic Services","Legal, Procurement and Democratic Services",AMV LAW LIMITED,1674478,12/10/2021,3778618,"22,500.00",0.00,N/A,N/A
Communities & Place,"Waste, Street Cleansing & Fleet",Public Protection and Streetride,APSE,1031483,12/10/2021,3778524,"2,610.90",0.00,Waste Disposal,Organizations and Clubs-Clubs
Communities & Place,"Highways, Gounds Maintenance and Flood Defence",Public Protection and Streetride,ARRIVING LTD,217400,12/10/2021,3777237,"1,700.00",0.00,Highways Maintenance Works,Commercial and Military and Private Vehi
Communities & Place,"Highways, Gounds Maintenance and Flood Defence",Public Protection and Streetride,ARRIVING LTD,217400,12/10/2021,3777237,"1,250.00",0.00,Highways Maintenance Works,Commercial and Military and Private Vehi
Communities & Place,"Highways, Gounds Maintenance and Flood Defence",Public Protection and Streetride,ARRIVING LTD,217400,12/10/2021,3777236,"1,250.00",0.00,Highways Maintenance Works,Commercial and Military and Private Vehi
Communities & Place,"Highways, Gounds Maintenance and Flood Defence",Public Protection and Streetride,ARRIVING LTD,217400,12/10/2021,3777236,"1,700.00",0.00,Highways Maintenance Works,Commercial and Military and Private Vehi
Communities & Place,"Highways, Gounds Maintenance and Flood Defence",Public Protection and Streetride,ARRIVING LTD,217400,12/10/2021,3777235,610.00,0.00,Highways Maintenance Works,Commercial and Military and Private Vehi
Communities & Place,"Highways, Gounds Maintenance and Flood Defence",Public Protection and Streetride,ARRIVING LTD,217400,12/10/2021,3782047,"2,950.00",0.00,Highways Maintenance Works,Commercial and Military and Private Vehi
People Services - Children & Young People,Early Help & Children�s Safeguarding,Non-Schools,ASI SECURITY SYSTEMS LTD,106643,12/10/2021,3778554,678.00,0.00,Boulton Children's Centre,Defense and Law Enforcement and Security
Communities & Place,"Culture, Business Development & Tourism","Leisure, Culture and Tourism",ASKEWS AND HOLTS LIBRARY SERVICES LTD,876447,12/10/2021,3782067,892.83,0.00,City Book Fund,Published Products
Communities & Place,"Culture, Business Development & Tourism","Leisure, Culture and Tourism",ASKEWS AND HOLTS LIBRARY SERVICES LTD,876447,12/10/2021,3782066,"2,683.66",0.00,City Book Fund,Published Products
Communities & Place,"Culture, Business Development & Tourism","Leisure, Culture and Tourism",ASKEWS AND HOLTS LIBRARY SERVICES LTD,876447,12/10/2021,3782066,"1,271.21",0.00,City Book Fund,Published Products
Communities & Place,"Highways, Gounds Maintenance and Flood Defence",Public Protection and Streetride,AVERY WEIGH TRONIX,7488,12/10/2021,3777312,539.00,0.00,Highways Maintenance Reactionary Works,Material Handling and Conditioning and S-Packing supplies
People Services - Adults and Health,Learning Disability Support,Community Support,AXIS RECRUITMENT LIMITED,1455508,12/10/2021,3777590,852.32,0.00,N/A,N/A
People Services - Adults and Health,Learning Disability Support,Community Support,AXIS RECRUITMENT LIMITED,1455508,12/10/2021,3777838,852.32,0.00,N/A,N/A
Communities & Place,"Culture, Business Development & Tourism","Leisure, Culture and Tourism",BOLINDA UK LTD,200365,12/10/2021,3778482,"1,158.55",0.00,City Book Fund,Published Products
Neighbourhoods,Neighbourhoods,Neighbourhoods,BROWNE JACOBSON LLP,143376,12/10/2021,3730054,"9,563.00",0.00,MRC Midlands (NAMRC),Management and Business Professionals an
Communities & Place,Parks & Healthy Living,"Leisure, Culture and Tourism",BUNZL CLEANING AND HYGIENE SUPPLIES,961498,12/10/2021,3777244,650.53,0.00,Outdoor Amenities,Chemicals including Bio Chemicals and Ga
People Services - Adults and Health,Physical Support,Community Support,BWA HEALTH AND CARE SERVICE LTD,1089474,12/10/2021,3777920,581.15,0.00,N/A,N/A
People Services - Adults and Health,Physical Support,Community Support,BWA HEALTH AND CARE SERVICE LTD,1089474,12/10/2021,3777919,944.28,0.00,N/A,N/A
People Services - Adults and Health,Physical Support,Community Support,BWA HEALTH AND CARE SERVICE LTD,1089474,12/10/2021,3777845,904.35,0.00,N/A,N/A
People Services - Adults and Health,Physical Support,Community Support,BWA HEALTH AND CARE SERVICE LTD,1089474,12/10/2021,3777768,"1,205.80",0.00,N/A,N/A
People Services - Adults and Health,Physical Support,Community Support,BWA HEALTH AND CARE SERVICE LTD,1089474,12/10/2021,3777765,732.26,0.00,N/A,N/A
People Services - Adults and Health,Physical Support,Community Support,BWA HEALTH AND CARE SERVICE LTD,1089474,12/10/2021,3777592,"1,503.60",0.00,N/A,N/A
People Services - Adults and Health,Physical Support,Community Support,BWA HEALTH AND CARE SERVICE LTD,1089474,12/10/2021,3777588,551.68,0.00,N/A,N/A
People Services - Adults and Health,Physical Support,Community Support,BWA HEALTH AND CARE SERVICE LTD,1089474,12/10/2021,3777684,566.88,0.00,N/A,N/A
People Services - Adults and Health,Physical Support,Community Support,BWA HEALTH AND CARE SERVICE LTD,1089474,12/10/2021,3777683,910.21,0.00,N/A,N/A
People Services - Adults and Health,Physical Support,Community Support,BWA HEALTH AND CARE SERVICE LTD,1089474,12/10/2021,3777515,"1,446.16",0.00,N/A,N/A
People Services - Adults and Health,Physical Support,Community Support,BWA HEALTH AND CARE SERVICE LTD,1089474,12/10/2021,3777514,"1,410.24",0.00,N/A,N/A
People Services - Adults and Health,Physical Support,Community Support,BWA HEALTH AND CARE SERVICE LTD,1089474,12/10/2021,3777512,"1,503.60",0.00,N/A,N/A
People Services - Adults and Health,Physical Support,Community Support,BWA HEALTH AND CARE SERVICE LTD,1089474,12/10/2021,3777843,"1,379.12",0.00,N/A,N/A
People Services - Adults and Health,Physical Support,Community Support,BWA HEALTH AND CARE SERVICE LTD,1089474,12/10/2021,3777842,"1,361.52",0.00,N/A,N/A
People Services - Adults and Health,Physical Support,Community Support,BWA HEALTH AND CARE SERVICE LTD,1089474,12/10/2021,3777841,"1,207.69",0.00,N/A,N/A
People Services - Adults and Health,Learning Disability Support,Community Support,BWA HEALTH AND CARE SERVICE LTD,1089474,12/10/2021,3777686,"1,305.79",0.00,N/A,N/A
Communities & Place,Highways Assest and Engineering,Planning & Transportation,CLYDESIDE SURVEYS LTD,1652475,12/10/2021,3777314,"9,850.00",0.00,N/A,N/A
People Services - Children & Young People,Learning & Inclusion - Schools Block,Schools Block,CONNEVANS LTD,750,12/10/2021,3778515,"1,248.00",0.00,Specialist Support Teaching Services (SSTS),Medical Equipment and Accessories and Su
People Services - Children & Young People,Learning & Inclusion - Schools Block,Schools Block,CONNEVANS LTD,750,12/10/2021,3778515,"1,248.00",0.00,Specialist Support Teaching Services (SSTS),Medical Equipment and Accessories and Su
People Services - Children & Young People,Learning & Inclusion - Schools Block,Schools Block,CONNEVANS LTD,750,12/10/2021,3778514,"1,284.00",0.00,Specialist Support Teaching Services (SSTS),Medical Equipment and Accessories and Su
People Services - Children & Young People,Learning & Inclusion,Non-Schools,CPCAB,201401,12/10/2021,3778562,"4,068.00",0.00,LLDD & Skills Curriculum,Education and Training Services
People Services - Adults and Health,Mental Health Support,Mental Health,CREATIVE SUPPORT LTD,1430480,12/10/2021,3777932,628.80,0.00,N/A,N/A
People Services - Adults and Health,Mental Health Support,Mental Health,CREATIVE SUPPORT LTD,1430480,12/10/2021,3777853,"1,257.60",0.00,N/A,N/A
People Services - Adults and Health,Mental Health Support,Mental Health,CREATIVE SUPPORT LTD,1430480,12/10/2021,3777778,503.04,0.00,N/A,N/A
People Services - Adults and Health,Mental Health Support,Mental Health,CREATIVE SUPPORT LTD,1430480,12/10/2021,3777699,503.04,0.00,N/A,N/A
People Services - Adults and Health,Physical Support,Community Support,CREATIVE SUPPORT LTD,1026475,12/10/2021,3778010,"1,055.24",0.00,N/A,N/A
People Services - Adults and Health,Physical Support,Community Support,CREATIVE SUPPORT LTD,1026475,12/10/2021,3777924,"1,038.12",0.00,N/A,N/A
People Services - Adults and Health,Learning Disability Support,Community Support,CREATIVE SUPPORT LTD,1026475,12/10/2021,3777692,"2,953.92",0.00,N/A,N/A
People Services - Adults and Health,Learning Disability Support,Community Support,CREATIVE SUPPORT LTD,1026475,12/10/2021,3777691,"1,945.32",0.00,N/A,N/A
People Services - Adults and Health,Learning Disability Support,Community Support,CREATIVE SUPPORT LTD,1026475,12/10/2021,3777517,"1,797.00",0.00,N/A,N/A
People Services - Adults and Health,Mental Health Support,Mental Health,CREATIVE SUPPORT LTD,1430480,12/10/2021,3777931,503.12,0.00,N/A,N/A
People Services - Adults and Health,Mental Health Support,Mental Health,CREATIVE SUPPORT LTD,1430480,12/10/2021,3777696,503.12,0.00,N/A,N/A
People Services - Adults and Health,Mental Health Support,Mental Health,CREATIVE SUPPORT LTD,1430480,12/10/2021,3777602,503.12,0.00,N/A,N/A
People Services - Adults and Health,Mental Health Support,Mental Health,CREATIVE SUPPORT LTD,1430480,12/10/2021,3777519,534.56,0.00,N/A,N/A
People Services - Adults and Health,Learning Disability Support,Transitions and Ordinary Lives,CREATIVE SUPPORT LTD,1026475,12/10/2021,3778013,"6,556.16",0.00,N/A,N/A
People Services - Adults and Health,Learning Disability Support,Transitions and Ordinary Lives,CREATIVE SUPPORT LTD,1026475,12/10/2021,3778012,"5,413.00",0.00,N/A,N/A
People Services - Adults and Health,Learning Disability Support,Transitions and Ordinary Lives,CREATIVE SUPPORT LTD,1026475,12/10/2021,3778011,"2,238.88",0.00,N/A,N/A
People Services - Adults and Health,Learning Disability Support,Transitions and Ordinary Lives,CREATIVE SUPPORT LTD,1026475,12/10/2021,3778090,"5,354.96",0.00,N/A,N/A
People Services - Adults and Health,Learning Disability Support,Transitions and Ordinary Lives,CREATIVE SUPPORT LTD,1026475,12/10/2021,3777927,"8,291.28",0.00,N/A,N/A
People Services - Adults and Health,Learning Disability Support,Transitions and Ordinary Lives,CREATIVE SUPPORT LTD,1026475,12/10/2021,3777926,"6,926.92",0.00,N/A,N/A
People Services - Adults and Health,Learning Disability Support,Transitions and Ordinary Lives,CREATIVE SUPPORT LTD,1026475,12/10/2021,3777925,"5,413.00",0.00,N/A,N/A
People Services - Adults and Health,Learning Disability Support,Transitions and Ordinary Lives,CREATIVE SUPPORT LTD,1026475,12/10/2021,3777774,"6,926.92",0.00,N/A,N/A
People Services - Adults and Health,Learning Disability Support,Transitions and Ordinary Lives,CREATIVE SUPPORT LTD,1026475,12/10/2021,3777598,"5,310.44",0.00,N/A,N/A
People Services - Adults and Health,Mental Health Support,Mental Health,CREATIVE SUPPORT LTD,1430480,12/10/2021,3777520,503.12,0.00,N/A,N/A
People Services - Adults and Health,Learning Disability Support,Transitions and Ordinary Lives,CREATIVE SUPPORT LTD,1026475,12/10/2021,3778091,949.44,0.00,N/A,N/A
People Services - Adults and Health,Learning Disability Support,Transitions and Ordinary Lives,CREATIVE SUPPORT LTD,1026475,12/10/2021,3777850,"8,941.80",0.00,N/A,N/A
Communities & Place,"Culture, Business Development & Tourism","Leisure, Culture and Tourism",CROCKER BROS LTD,1277,12/10/2021,3777337,"1,201.00",0.00,Derby Live - Outdoor Events,Travel and Food and Lodging and Entertai
Communities & Place,"Culture, Business Development & Tourism","Leisure, Culture and Tourism",CROCKER BROS LTD,1277,12/10/2021,3777337,630.00,0.00,Derby Live - Outdoor Events,Travel and Food and Lodging and Entertai
Communities & Place,"Culture, Business Development & Tourism","Leisure, Culture and Tourism",CROCKER BROS LTD,1277,12/10/2021,3777337,"1,190.00",0.00,Derby Live - Outdoor Events,Travel and Food and Lodging and Entertai
Corporate Resources,Digital Services & Customer Management,Digital Services & Customer Management,CROWN HOSTING DATA CENTRES LTD,470548,12/10/2021,3776170,"1,102.17",0.00,IT Infrastructure,Information Technology Broadcasting and
People Services - Children & Young People,Integrated Services,Non-Schools,CUSTOM GROUP LTD,1315,12/10/2021,3778593,"4,816.69",0.00,The Willows,Furniture and Furnishings
Corporate Resources,Digital Services & Customer Management,Digital Services & Customer Management,DEBIT FINANCE COLLECTIONS PLC,1531482,12/10/2021,3777315,"2,735.84",0.00,N/A,N/A
Corporate Resources,Property Design & Maintenance,Property,DERBY HOMES LTD,88149,12/10/2021,3738063,"1,000,000.00",0.00,Derby Homes Payments,Default
Communities & Place,"Culture, Business Development & Tourism","Leisure, Culture and Tourism",DERBY QUAD LTD,7833,12/10/2021,3782307,"25,000.00",0.00,Arts Development,Travel and Food and Lodging and Entertai
Communities & Place,"Trading Standards, Food and Safety, Bereavement Services and Building Consultanc",Public Protection and Streetride,DERBY TIMBER SUPPLIES,1518482,12/10/2021,3777311,"1,200.00",0.00,N/A,N/A
Communities & Place,"Trading Standards, Food and Safety, Bereavement Services and Building Consultanc",Public Protection and Streetride,DERBY TIMBER SUPPLIES,1518482,12/10/2021,3777311,"1,700.00",0.00,N/A,N/A
People Services - Adults and Health,Social Care Activities,Home First,DERBYSHIRE COMMUNITY HEALTH SERVICES NHS TRUST,109973,12/10/2021,3771803,"8,271.64",0.00,Home First: Community,Education and Training Services
Communities & Place,"Waste, Street Cleansing & Fleet",Public Protection and Streetride,DERBYSHIRE COUNTY COUNCIL,1042479,12/10/2021,3778529,"760,660.50",0.00,N/A,N/A
People Services - Adults and Health,Social Care Activities,Home First,DORO CARE UK LIMITED,1634491,12/10/2021,3761912,780.00,0.00,N/A,N/A
Communities & Place,Traffic & Transportation,Planning & Transportation,DYNNIQ UK LTD,470727,12/10/2021,3778588,746.08,0.00,Traffic Repairs Damaged Traffic Signal,Transportation and Storage and Mail Serv
Communities & Place,Traffic & Transportation,Planning & Transportation,DYNNIQ UK LTD,470727,12/10/2021,3778587,"7,533.16",0.00,Network Management,Transportation and Storage and Mail Serv
People Services - Children & Young People,Commissioning,Non-Schools,EAGLE CITY CARS,100198,12/10/2021,3782143,"1,749.00",0.00,N/A,N/A
People Services - Children & Young People,Commissioning,Non-Schools,EAGLE CITY CARS,100198,12/10/2021,3782143,"1,749.50",0.00,N/A,N/A
People Services - Children & Young People,Commissioning,Non-Schools,EAGLE CITY CARS,100198,12/10/2021,3782120,"1,080.00",0.00,N/A,N/A
People Services - Children & Young People,Commissioning,Non-Schools,EAGLE CITY CARS,100198,12/10/2021,3782119,"1,152.00",0.00,N/A,N/A
People Services - Children & Young People,Commissioning,Non-Schools,EAGLE CITY CARS,100198,12/10/2021,3782187,"1,681.50",0.00,N/A,N/A
People Services - Children & Young People,Commissioning,Non-Schools,EAGLE CITY CARS,100198,12/10/2021,3782185,"1,320.50",0.00,N/A,N/A
People Services - Children & Young People,Commissioning,Non-Schools,EAGLE CITY CARS,100198,12/10/2021,3782184,"1,235.00",0.00,N/A,N/A
People Services - Children & Young People,Commissioning,Non-Schools,EAGLE CITY CARS,100198,12/10/2021,3782166,"1,605.50",0.00,N/A,N/A
People Services - Children & Young People,Commissioning,Non-Schools,EAGLE CITY CARS,100198,12/10/2021,3782161,"1,790.00",0.00,N/A,N/A
People Services - Children & Young People,Commissioning,Non-Schools,EAGLE CITY CARS,100198,12/10/2021,3782160,"1,753.50",0.00,N/A,N/A
People Services - Children & Young People,Commissioning,Non-Schools,EAGLE CITY CARS,100198,12/10/2021,3782159,"2,356.00",0.00,N/A,N/A
People Services - Adults and Health,Physical Support,Community Support,ELLIE SUNRISE HEALTHCARE LTD,1607481,12/10/2021,3778134,569.74,0.00,N/A,N/A
People Services - Adults and Health,Physical Support,Community Support,ELLIE SUNRISE HEALTHCARE LTD,1607481,12/10/2021,3777975,569.74,0.00,N/A,N/A
People Services - Adults and Health,Physical Support,Community Support,ELLIE SUNRISE HEALTHCARE LTD,1607481,12/10/2021,3777652,"1,139.48",0.00,N/A,N/A
People Services - Adults and Health,Physical Support,Community Support,ELLIE SUNRISE HEALTHCARE LTD,1607481,12/10/2021,3777561,569.74,0.00,N/A,N/A
People Services - Adults and Health,Learning Disability Support,Transitions and Ordinary Lives,ELLIE SUNRISE HEALTHCARE LTD,1607482,12/10/2021,3777982,980.00,0.00,N/A,N/A
People Services - Adults and Health,Learning Disability Support,Transitions and Ordinary Lives,ELLIE SUNRISE HEALTHCARE LTD,1607482,12/10/2021,3777977,801.90,0.00,N/A,N/A
People Services - Adults and Health,Learning Disability Support,Transitions and Ordinary Lives,ELLIE SUNRISE HEALTHCARE LTD,1607482,12/10/2021,3777891,"1,306.80",0.00,N/A,N/A
People Services - Adults and Health,Learning Disability Support,Transitions and Ordinary Lives,ELLIE SUNRISE HEALTHCARE LTD,1607482,12/10/2021,3777893,"1,306.80",0.00,N/A,N/A
People Services - Adults and Health,Learning Disability Support,Transitions and Ordinary Lives,ELLIE SUNRISE HEALTHCARE LTD,1607482,12/10/2021,3777731,801.90,0.00,N/A,N/A
People Services - Adults and Health,Learning Disability Support,Transitions and Ordinary Lives,ELLIE SUNRISE HEALTHCARE LTD,1607482,12/10/2021,3777562,560.06,0.00,N/A,N/A
People Services - Adults and Health,Learning Disability Support,Transitions and Ordinary Lives,ELLIE SUNRISE HEALTHCARE LTD,1607482,12/10/2021,3777661,595.00,0.00,N/A,N/A
Corporate Resources,Facilities Management,Property,EMS SECURITY SERVICES LTD,471442,12/10/2021,3777299,"10,363.89",0.00,Council House,Defense and Law Enforcement and Security
Corporate Resources,Facilities Management,Property,EMS SECURITY SERVICES LTD,471442,12/10/2021,3777298,"6,524.54",0.00,Council House,Defense and Law Enforcement and Security
Corporate Resources,Facilities Management,Property,EMS SECURITY SERVICES LTD,471442,12/10/2021,3777296,"22,880.82",0.00,Council House,Defense and Law Enforcement and Security
Corporate Resources,Facilities Management,Property,EMS SECURITY SERVICES LTD,471442,12/10/2021,3777296,"8,489.10",0.00,Council House,Defense and Law Enforcement and Security
Corporate Resources,Facilities Management,Property,EMS SECURITY SERVICES LTD,471442,12/10/2021,3777295,"2,406.26",0.00,Council House,Defense and Law Enforcement and Security
Corporate Resources,Facilities Management,Property,EMS SECURITY SERVICES LTD,471442,12/10/2021,3777294,892.87,0.00,Council House,Defense and Law Enforcement and Security
Corporate Resources,Digital Services & Customer Management,Digital Services & Customer Management,EMS SECURITY SERVICES LTD,471442,12/10/2021,3776682,"2,082.30",0.00,Derby Direct,Defense and Law Enforcement and Security
Communities & Place,"Waste, Street Cleansing & Fleet",Public Protection and Streetride,EMS SECURITY SERVICES LTD,471442,12/10/2021,3776690,"5,371.62",0.00,Stores Road Depot,Defense and Law Enforcement and Security
Communities & Place,"Waste, Street Cleansing & Fleet",Public Protection and Streetride,EMS SECURITY SERVICES LTD,471442,12/10/2021,3778540,540.00,0.00,Stores Road Depot,Defense and Law Enforcement and Security
Corporate Resources,Strategic Asset Management,Property,EMS SECURITY SERVICES LTD,471442,12/10/2021,3777274,537.00,0.00,Surplus Properties,Defense and Law Enforcement and Security
Corporate Resources,Strategic Asset Management,Property,EMS SECURITY SERVICES LTD,471442,12/10/2021,3777259,659.00,0.00,Surplus Properties,Defense and Law Enforcement and Security
Corporate Resources,Strategic Asset Management,Property,EMS SECURITY SERVICES LTD,471442,12/10/2021,3777255,948.84,0.00,Surplus Properties,Defense and Law Enforcement and Security
Corporate Resources,Strategic Asset Management,Property,EMS SECURITY SERVICES LTD,471442,12/10/2021,3777342,"1,244.20",0.00,N/A,N/A
Corporate Resources,Strategic Asset Management,Property,EMS SECURITY SERVICES LTD,471442,12/10/2021,3777340,"1,259.20",0.00,N/A,N/A
People Services - Children & Young People,Integrated Services,Non-Schools,EMS SECURITY SERVICES LTD,471442,12/10/2021,3777253,976.40,0.00,The Willows,Defense and Law Enforcement and Security
Communities & Place,"Waste, Street Cleansing & Fleet",Public Protection and Streetride,ENTERPRISE FLEX E RENT LTD,277434,12/10/2021,3778537,"22,504.79",0.00,Fleet Hire,Transportation and Storage and Mail Serv-Storage
Communities & Place,"Waste, Street Cleansing & Fleet",Public Protection and Streetride,ENTERPRISE FLEX E RENT LTD,277434,12/10/2021,3778538,569.46,0.00,Fleet Hire,Transportation and Storage and Mail Serv-Storage
People Services - Adults and Health,Physical Support,Community Support,ETIQUETTE RECRUITMENT AND STAFFING LTD,1152476,12/10/2021,3778145,762.38,0.00,N/A,N/A
People Services - Adults and Health,Physical Support,Community Support,ETIQUETTE RECRUITMENT AND STAFFING LTD,1152476,12/10/2021,3777569,672.24,0.00,N/A,N/A
People Services - Adults and Health,Physical Support,Community Support,ETIQUETTE RECRUITMENT AND STAFFING LTD,1152476,12/10/2021,3777820,915.92,0.00,N/A,N/A
People Services - Adults and Health,Physical Support,Community Support,ETIQUETTE RECRUITMENT AND STAFFING LTD,1152476,12/10/2021,3777734,"1,024.98",0.00,N/A,N/A
People Services - Adults and Health,Physical Support,Community Support,ETIQUETTE RECRUITMENT AND STAFFING LTD,1152476,12/10/2021,3777894,817.71,0.00,N/A,N/A
Corporate Resources,Corporate Health and Safety,Property,EVAC AND CHAIR INTERNATIONAL,1369470,12/10/2021,3782198,980.00,0.00,N/A,N/A
People Services - Children & Young People,Commissioning,Non-Schools,EVERSHEDS SUTHERLAND INTERNATIONAL LLP,518442,12/10/2021,3778509,"1,139.50",0.00,Grouped Schools PFI Revenue,Management and Business Professionals an
Corporate Resources,Digital Services & Customer Management,Digital Services & Customer Management,FACTORY INTERNET LTD,1316480,12/10/2021,3772798,"1,894.00",0.00,Information Systems,Information Technology Broadcasting and
Communities & Place,Strategic Housing,City Development & Growth,FAYE SWANWICK CONSULTANCY,1092493,12/10/2021,3782103,"1,808.50",0.00,DASH Project,Management and Business Professionals an
Communities & Place,Strategic Housing,City Development & Growth,FAYE SWANWICK CONSULTANCY,1092493,12/10/2021,3782103,"1,808.50",0.00,DASH Project,Management and Business Professionals an
Communities & Place,Strategic Housing,City Development & Growth,FAYE SWANWICK CONSULTANCY,1092493,12/10/2021,3782103,"1,808.50",0.00,DASH Project,Management and Business Professionals an
Communities & Place,Leisure,"Leisure, Culture and Tourism",FMG CONSULTING LTD,123427,12/10/2021,3752663,"4,298.00",0.00,Moorways Sports Village,Management and Business Professionals an
People Services - Adults and Health,Public Health,Public Health,FRONTIER NX LIMITED,1593482,12/10/2021,3774015,"5,591.50",0.00,N/A,N/A
Adults Health and Housing,Adults Health and Housing,Adults Health and Housing,GHC BUILDERS AND JOINERS LTD,105238,12/10/2021,3778612,"10,000.00",0.00,REFCUS - Disabled Facilities Grant 96 Act,Building and Construction and Maintenanc
Communities & Place,"Waste, Street Cleansing & Fleet",Public Protection and Streetride,H W MARTIN WASTE LIMITED,1282472,12/10/2021,3782082,"80,307.49",0.00,Waste Disposal,Industrial Cleaning Services
Corporate Resources,Property Design & Maintenance,Property,HIGHFIELD JOINERY AND BUILD SERVS LTD,215391,12/10/2021,3778706,"2,215.00",0.00,N/A,N/A
People Services - Children & Young People,Non Delegated Schools Budget,Schools Block,HIGHFIELD JOINERY AND BUILD SERVS LTD,215391,12/10/2021,3778697,975.00,0.00,N/A,N/A
People Services - Children & Young People,Early Help & Children�s Safeguarding,Non-Schools,HILBROKE HOUSE LTD,1002472,12/10/2021,3777322,980.00,0.00,Chellaston Team,Travel and Food and Lodging and Entertai
People Services - Adults and Health,Physical Support,Community Support,HOME SUPPORT SERVICES,1120475,12/10/2021,3778026,"1,186.40",0.00,N/A,N/A
People Services - Adults and Health,Physical Support,Community Support,HOME SUPPORT SERVICES,1120475,12/10/2021,3777866,"1,186.40",0.00,N/A,N/A
People Services - Adults and Health,Physical Support,Community Support,HOME SUPPORT SERVICES,1120475,12/10/2021,3777533,800.84,0.00,N/A,N/A
People Services - Adults and Health,Physical Support,Community Support,HOME SUPPORT SERVICES,1120475,12/10/2021,3778028,884.76,0.00,N/A,N/A
People Services - Adults and Health,Physical Support,Community Support,HOME SUPPORT SERVICES,1120475,12/10/2021,3778110,"1,128.00",0.00,N/A,N/A
People Services - Adults and Health,Physical Support,Community Support,HOME SUPPORT SERVICES,1120475,12/10/2021,3777872,"2,146.16",0.00,N/A,N/A
People Services - Adults and Health,Physical Support,Community Support,HOME SUPPORT SERVICES,1120475,12/10/2021,3777869,986.96,0.00,N/A,N/A
People Services - Adults and Health,Physical Support,Community Support,HOME SUPPORT SERVICES,1120475,12/10/2021,3777622,"1,090.28",0.00,N/A,N/A
People Services - Adults and Health,Physical Support,Community Support,HOME SUPPORT SERVICES,1120475,12/10/2021,3777621,"1,065.76",0.00,N/A,N/A
People Services - Adults and Health,Physical Support,Community Support,HOME SUPPORT SERVICES,1120475,12/10/2021,3777711,"1,165.48",0.00,N/A,N/A
People Services - Adults and Health,Physical Support,Community Support,HOME SUPPORT SERVICES,1120475,12/10/2021,3778108,973.52,0.00,N/A,N/A
People Services - Adults and Health,Physical Support,Community Support,HOME SUPPORT SERVICES,1120475,12/10/2021,3778107,973.52,0.00,N/A,N/A
People Services - Adults and Health,Physical Support,Community Support,HOME SUPPORT SERVICES,1120475,12/10/2021,3777626,"1,165.48",0.00,N/A,N/A
People Services - Adults and Health,Physical Support,Community Support,HOME SUPPORT SERVICES,1120475,12/10/2021,3777536,"1,165.48",0.00,N/A,N/A
People Services - Adults and Health,Learning Disability Support,Community Support,HOME SUPPORT SERVICES,1120475,12/10/2021,3778115,"1,457.80",0.00,N/A,N/A
People Services - Adults and Health,Mental Health Support,Mental Health,HOME SUPPORT SERVICES,1120475,12/10/2021,3777789,880.36,0.00,N/A,N/A
People Services - Adults and Health,Sensory Support,Community Support,HOME SUPPORT SERVICES,1120475,12/10/2021,3778032,"1,165.48",0.00,N/A,N/A
People Services - Adults and Health,Sensory Support,Community Support,HOME SUPPORT SERVICES,1120475,12/10/2021,3777627,"1,165.48",0.00,N/A,N/A
People Services - Adults and Health,Support with Memory and Cognition,Community Support,HOME SUPPORT SERVICES,1120475,12/10/2021,3777792,"1,165.48",0.00,N/A,N/A
People Services - Adults and Health,Support with Memory and Cognition,Community Support,HOME SUPPORT SERVICES,1120475,12/10/2021,3777791,"1,165.48",0.00,N/A,N/A
People Services - Adults and Health,Support with Memory and Cognition,Community Support,HOME SUPPORT SERVICES,1120475,12/10/2021,3777873,"1,065.76",0.00,N/A,N/A
People Services - Adults and Health,Support with Memory and Cognition,Community Support,HOME SUPPORT SERVICES,1120475,12/10/2021,3777790,"1,330.80",0.00,N/A,N/A
People Services - Adults and Health,Physical Support,Community Support,I CARE GB LTD,471255,12/10/2021,3777961,588.71,0.00,N/A,N/A
People Services - Adults and Health,Physical Support,Community Support,I CARE GB LTD,471255,12/10/2021,3778036,545.37,0.00,N/A,N/A
People Services - Adults and Health,Physical Support,Community Support,I CARE GB LTD,471255,12/10/2021,3777794,635.39,0.00,N/A,N/A
People Services - Adults and Health,Learning Disability Support,Transitions and Ordinary Lives,IGNACIO DEL RIO HERRERO,474138,12/10/2021,3780175,"1,936.80",0.00,N/A,N/A
Communities & Place,"Trading Standards, Food and Safety, Bereavement Services and Building Consultanc",Public Protection and Streetride,IMPACT MARKETING & PUBLICITY LTD,2283,12/10/2021,3777348,"1,295.00",0.00,Crematorium,Editorial and Design and Graphic and Fin
Communities & Place,"Highways, Gounds Maintenance and Flood Defence",Public Protection and Streetride,JC BALLS AND SONS,164349,12/10/2021,3776713,792.00,0.00,Highways Maintenance Reactionary Works,Building and Construction Machinery and
Communities & Place,"Highways, Gounds Maintenance and Flood Defence",Public Protection and Streetride,JC BALLS AND SONS,164349,12/10/2021,3776710,774.00,0.00,Highways Maintenance Reactionary Works,Building and Construction Machinery and
People Services - Adults and Health,Learning Disability Support,Transitions and Ordinary Lives,KE 247 STAFFING SOLUTIONS LTD,1454513,12/10/2021,3778005,"2,101.68",0.00,N/A,N/A
People Services - Adults and Health,Learning Disability Support,Transitions and Ordinary Lives,KE 247 STAFFING SOLUTIONS LTD,1454513,12/10/2021,3778081,"6,249.60",0.00,N/A,N/A
People Services - Adults and Health,Learning Disability Support,Community Support,LANGLEY COMMUNITY TRUST CIC,1630487,12/10/2021,3748815,868.00,0.00,N/A,N/A
People Services - Children & Young People,Commissioning - Schools Block,Schools Block,LEWIS CHARLTON LTD,1309474,12/10/2021,3777199,"29,334.00",0.00,Out of Authority Education Placements,Education and Training Services
People Services - Children & Young People,Commissioning - Schools Block,Schools Block,LEWIS CHARLTON LTD,1309474,12/10/2021,3777198,"12,320.00",0.00,Out of Authority Education Placements,Education and Training Services
People Services - Adults and Health,Learning Disability Support,Community Support,LIFEWAYS COMMUNITY CARE LTD,1498490,12/10/2021,3778100,989.30,0.00,N/A,N/A
People Services - Adults and Health,Learning Disability Support,Community Support,LIFEWAYS COMMUNITY CARE LTD,1069476,12/10/2021,3777605,"1,034.96",0.00,N/A,N/A
People Services - Adults and Health,Learning Disability Support,Transitions and Ordinary Lives,LIFEWAYS COMMUNITY CARE LTD,1498490,12/10/2021,3778101,"6,392.40",0.00,N/A,N/A
People Services - Adults and Health,Learning Disability Support,Transitions and Ordinary Lives,LIFEWAYS COMMUNITY CARE LTD,1498490,12/10/2021,3777857,"1,393.98",0.00,N/A,N/A
People Services - Adults and Health,Learning Disability Support,Transitions and Ordinary Lives,LIFEWAYS COMMUNITY CARE LTD,1498490,12/10/2021,3777855,"2,922.24",0.00,N/A,N/A
People Services - Adults and Health,Learning Disability Support,Transitions and Ordinary Lives,LIFEWAYS COMMUNITY CARE LTD,1498490,12/10/2021,3777608,"2,922.24",0.00,N/A,N/A
People Services - Adults and Health,Learning Disability Support,Transitions and Ordinary Lives,LIFEWAYS COMMUNITY CARE LTD,1498490,12/10/2021,3777607,"1,393.98",0.00,N/A,N/A
People Services - Adults and Health,Learning Disability Support,Transitions and Ordinary Lives,LIFEWAYS COMMUNITY CARE LTD,1498490,12/10/2021,3777702,"2,787.12",0.00,N/A,N/A
People Services - Adults and Health,Learning Disability Support,Transitions and Ordinary Lives,LIFEWAYS COMMUNITY CARE LTD,1498490,12/10/2021,3777701,608.80,0.00,N/A,N/A
People Services - Adults and Health,Learning Disability Support,Transitions and Ordinary Lives,LIFEWAYS COMMUNITY CARE LTD,1498490,12/10/2021,3777939,"1,278.48",0.00,N/A,N/A
People Services - Adults and Health,Learning Disability Support,Transitions and Ordinary Lives,LIFEWAYS COMMUNITY CARE LTD,1498490,12/10/2021,3777780,"1,394.82",0.00,N/A,N/A
People Services - Adults and Health,Learning Disability Support,Transitions and Ordinary Lives,LIFEWAYS COMMUNITY CARE LTD,1498490,12/10/2021,3777609,"3,196.20",0.00,N/A,N/A
Communities & Place,"Waste, Street Cleansing & Fleet",Public Protection and Streetride,LODGE TYRES CO LTD,186856,12/10/2021,3778438,"7,100.61",0.00,Vehicle Maintenance,Commercial and Military and Private Vehi
Communities & Place,"Waste, Street Cleansing & Fleet",Public Protection and Streetride,MAGFERN RECYCLING 2018 LTD,956474,12/10/2021,3778528,"13,136.06",0.00,Waste Disposal,Environmental Services
Corporate,Corporate,Corporate,MATRIX SCM LTD,822477,12/10/2021,3782537,"125,836.71",0.00,Temporary Workers Control A/C,Management and Business Professionals an
People Services - Adults and Health,Physical Support,Community Support,MEDILINE HOME CARE LIMITED,1399470,12/10/2021,3778155,"1,270.64",0.00,N/A,N/A
People Services - Adults and Health,Physical Support,Community Support,MEDILINE HOME CARE LIMITED,1399470,12/10/2021,3778154,"1,183.08",0.00,N/A,N/A
People Services - Adults and Health,Physical Support,Community Support,MEDILINE HOME CARE LIMITED,1399470,12/10/2021,3778153,572.26,0.00,N/A,N/A
People Services - Adults and Health,Physical Support,Community Support,MEDILINE HOME CARE LIMITED,1399470,12/10/2021,3778152,570.48,0.00,N/A,N/A
People Services - Adults and Health,Physical Support,Community Support,MEDILINE HOME CARE LIMITED,1399470,12/10/2021,3777997,"1,266.92",0.00,N/A,N/A
People Services - Adults and Health,Physical Support,Community Support,MEDILINE HOME CARE LIMITED,1399470,12/10/2021,3777996,908.16,0.00,N/A,N/A
People Services - Adults and Health,Physical Support,Community Support,MEDILINE HOME CARE LIMITED,1399470,12/10/2021,3777989,573.96,0.00,N/A,N/A
People Services - Adults and Health,Physical Support,Community Support,MEDILINE HOME CARE LIMITED,1399470,12/10/2021,3777825,"2,653.60",0.00,N/A,N/A
People Services - Adults and Health,Physical Support,Community Support,MEDILINE HOME CARE LIMITED,1399470,12/10/2021,3777824,664.12,0.00,N/A,N/A
People Services - Adults and Health,Physical Support,Community Support,MEDILINE HOME CARE LIMITED,1399470,12/10/2021,3777750,"1,208.40",0.00,N/A,N/A
People Services - Adults and Health,Physical Support,Community Support,MEDILINE HOME CARE LIMITED,1399470,12/10/2021,3777749,908.16,0.00,N/A,N/A
People Services - Adults and Health,Physical Support,Community Support,MEDILINE HOME CARE LIMITED,1399470,12/10/2021,3777748,727.16,0.00,N/A,N/A
People Services - Adults and Health,Physical Support,Community Support,MEDILINE HOME CARE LIMITED,1399470,12/10/2021,3777747,637.12,0.00,N/A,N/A
People Services - Adults and Health,Physical Support,Community Support,MEDILINE HOME CARE LIMITED,1399470,12/10/2021,3777581,"1,090.28",0.00,N/A,N/A
People Services - Adults and Health,Physical Support,Community Support,MEDILINE HOME CARE LIMITED,1399470,12/10/2021,3777580,908.16,0.00,N/A,N/A
People Services - Adults and Health,Physical Support,Community Support,MEDILINE HOME CARE LIMITED,1399470,12/10/2021,3777579,570.48,0.00,N/A,N/A
People Services - Adults and Health,Physical Support,Community Support,MEDILINE HOME CARE LIMITED,1399470,12/10/2021,3777669,908.16,0.00,N/A,N/A
People Services - Adults and Health,Physical Support,Community Support,MEDILINE HOME CARE LIMITED,1399470,12/10/2021,3777668,688.89,0.00,N/A,N/A
People Services - Adults and Health,Physical Support,Community Support,MEDILINE HOME CARE LIMITED,1399470,12/10/2021,3778163,"1,065.76",0.00,N/A,N/A
People Services - Adults and Health,Physical Support,Community Support,MEDILINE HOME CARE LIMITED,1399470,12/10/2021,3778003,"1,121.48",0.00,N/A,N/A
People Services - Adults and Health,Physical Support,Community Support,MEDILINE HOME CARE LIMITED,1399470,12/10/2021,3778002,792.57,0.00,N/A,N/A
People Services - Adults and Health,Physical Support,Community Support,MEDILINE HOME CARE LIMITED,1399470,12/10/2021,3778080,754.16,0.00,N/A,N/A
People Services - Adults and Health,Physical Support,Community Support,MEDILINE HOME CARE LIMITED,1399470,12/10/2021,3778076,"1,197.67",0.00,N/A,N/A
People Services - Adults and Health,Physical Support,Community Support,MEDILINE HOME CARE LIMITED,1399470,12/10/2021,3778075,"1,014.04",0.00,N/A,N/A
People Services - Adults and Health,Physical Support,Community Support,MEDILINE HOME CARE LIMITED,1399470,12/10/2021,3777757,"1,197.67",0.00,N/A,N/A
People Services - Adults and Health,Physical Support,Community Support,MEDILINE HOME CARE LIMITED,1399470,12/10/2021,3777752,754.16,0.00,N/A,N/A
People Services - Adults and Health,Physical Support,Community Support,MEDILINE HOME CARE LIMITED,1399470,12/10/2021,3777585,"1,121.48",0.00,N/A,N/A
People Services - Adults and Health,Physical Support,Community Support,MEDILINE HOME CARE LIMITED,1399470,12/10/2021,3777675,"1,327.44",0.00,N/A,N/A
People Services - Adults and Health,Physical Support,Community Support,MEDILINE HOME CARE LIMITED,1399470,12/10/2021,3777674,805.96,0.00,N/A,N/A
People Services - Adults and Health,Physical Support,Community Support,MEDILINE HOME CARE LIMITED,1399470,12/10/2021,3777673,754.16,0.00,N/A,N/A
People Services - Adults and Health,Physical Support,Community Support,MEDILINE HOME CARE LIMITED,1399470,12/10/2021,3778149,544.00,0.00,N/A,N/A
People Services - Adults and Health,Physical Support,Community Support,MEDILINE HOME CARE LIMITED,1399470,12/10/2021,3777903,544.00,0.00,N/A,N/A
People Services - Adults and Health,Mental Health Support,Community Support,MEDILINE HOME CARE LIMITED,1399470,12/10/2021,3778077,805.96,0.00,N/A,N/A
People Services - Adults and Health,Mental Health Support,Community Support,MEDILINE HOME CARE LIMITED,1399470,12/10/2021,3777830,540.96,0.00,N/A,N/A
People Services - Adults and Health,Mental Health Support,Mental Health,MEDILINE HOME CARE LIMITED,1399470,12/10/2021,3778078,"1,090.28",0.00,N/A,N/A
People Services - Adults and Health,Mental Health Support,Mental Health,MEDILINE HOME CARE LIMITED,1399470,12/10/2021,3777831,"1,090.28",0.00,N/A,N/A
People Services - Adults and Health,Physical Support,Community Support,MELLOWCARE LTD,1153486,12/10/2021,3778143,"1,346.40",0.00,N/A,N/A
People Services - Adults and Health,Physical Support,Community Support,MELLOWCARE LTD,1153486,12/10/2021,3777567,"1,399.28",0.00,N/A,N/A
People Services - Adults and Health,Physical Support,Community Support,MELLOWCARE LTD,1153486,12/10/2021,3778144,685.04,0.00,N/A,N/A
People Services - Adults and Health,Physical Support,Community Support,MELLOWCARE LTD,1153486,12/10/2021,3777811,506.52,0.00,N/A,N/A
People Services - Adults and Health,Physical Support,Community Support,MELLOWCARE LTD,1153486,12/10/2021,3777566,"4,105.08",0.00,N/A,N/A
People Services - Adults and Health,Learning Disability Support,Community Support,MELLOWCARE LTD,1153486,12/10/2021,3777733,"1,007.88",0.00,N/A,N/A
People Services - Adults and Health,Learning Disability Support,Community Support,MELLOWCARE LTD,1153486,12/10/2021,3777663,"1,007.88",0.00,N/A,N/A
People Services - Adults and Health,Support with Memory and Cognition,Community Support,MELLOWCARE LTD,1153486,12/10/2021,3777812,"1,090.28",0.00,N/A,N/A
Communities & Place,Economic Development,City Development & Growth,MINISTRY OF HOUSING COMMUNITIES AND LOCAL GOVERNMENT,1161470,12/10/2021,3777383,"9,100.00",0.00,Derby Enterprise Growth Fund Recycled Grants,Politics and Civic Affairs Services
Communities & Place,"Waste, Street Cleansing & Fleet",Public Protection and Streetride,MITCHELL DIESEL LTD,2685,12/10/2021,3782014,"1,431.80",0.00,Vehicle Maintenance,Commercial and Military and Private Vehi
People Services - Adults and Health,Physical Support,Community Support,NASSH HEALTHCARE LTD,1568480,12/10/2021,3777832,"1,579.28",0.00,N/A,N/A
People Services - Adults and Health,Physical Support,Community Support,NATIONWIDE CARE SERVICES,471122,12/10/2021,3777522,585.32,0.00,N/A,N/A
People Services - Adults and Health,Physical Support,Community Support,NATIONWIDE CARE SERVICES,471122,12/10/2021,3777870,"1,165.48",0.00,N/A,N/A
People Services - Adults and Health,Physical Support,Community Support,NATIONWIDE CARE SERVICES,471122,12/10/2021,3777788,"1,165.48",0.00,N/A,N/A
People Services - Adults and Health,Physical Support,Community Support,NATIONWIDE CARE SERVICES,471122,12/10/2021,3778025,"1,165.48",0.00,N/A,N/A
People Services - Adults and Health,Physical Support,Community Support,NATIONWIDE CARE SERVICES,471122,12/10/2021,3778024,"1,111.34",0.00,N/A,N/A
People Services - Adults and Health,Physical Support,Community Support,NATIONWIDE CARE SERVICES,471122,12/10/2021,3778023,"1,042.70",0.00,N/A,N/A
People Services - Adults and Health,Physical Support,Community Support,NATIONWIDE CARE SERVICES,471122,12/10/2021,3778021,908.16,0.00,N/A,N/A
People Services - Adults and Health,Physical Support,Community Support,NATIONWIDE CARE SERVICES,471122,12/10/2021,3778020,862.45,0.00,N/A,N/A
People Services - Adults and Health,Physical Support,Community Support,NATIONWIDE CARE SERVICES,471122,12/10/2021,3778019,742.92,0.00,N/A,N/A
People Services - Adults and Health,Physical Support,Community Support,NATIONWIDE CARE SERVICES,471122,12/10/2021,3778022,"1,007.88",0.00,N/A,N/A
People Services - Adults and Health,Physical Support,Community Support,NATIONWIDE CARE SERVICES,471122,12/10/2021,3778018,606.23,0.00,N/A,N/A
People Services - Adults and Health,Physical Support,Community Support,NATIONWIDE CARE SERVICES,471122,12/10/2021,3778106,"1,111.34",0.00,N/A,N/A
People Services - Adults and Health,Physical Support,Community Support,NATIONWIDE CARE SERVICES,471122,12/10/2021,3778105,"1,046.72",0.00,N/A,N/A
People Services - Adults and Health,Physical Support,Community Support,NATIONWIDE CARE SERVICES,471122,12/10/2021,3778104,805.96,0.00,N/A,N/A
People Services - Adults and Health,Physical Support,Community Support,NATIONWIDE CARE SERVICES,471122,12/10/2021,3777949,"1,227.72",0.00,N/A,N/A
People Services - Adults and Health,Physical Support,Community Support,NATIONWIDE CARE SERVICES,471122,12/10/2021,3777948,"1,165.48",0.00,N/A,N/A
People Services - Adults and Health,Physical Support,Community Support,NATIONWIDE CARE SERVICES,471122,12/10/2021,3777947,"1,065.76",0.00,N/A,N/A
People Services - Adults and Health,Physical Support,Community Support,NATIONWIDE CARE SERVICES,471122,12/10/2021,3777946,570.48,0.00,N/A,N/A
People Services - Adults and Health,Physical Support,Community Support,NATIONWIDE CARE SERVICES,471122,12/10/2021,3777864,"1,165.48",0.00,N/A,N/A
People Services - Adults and Health,Physical Support,Community Support,NATIONWIDE CARE SERVICES,471122,12/10/2021,3777863,990.56,0.00,N/A,N/A
People Services - Adults and Health,Physical Support,Community Support,NATIONWIDE CARE SERVICES,471122,12/10/2021,3777862,805.96,0.00,N/A,N/A
People Services - Adults and Health,Physical Support,Community Support,NATIONWIDE CARE SERVICES,471122,12/10/2021,3777785,862.45,0.00,N/A,N/A
People Services - Adults and Health,Physical Support,Community Support,NATIONWIDE CARE SERVICES,471122,12/10/2021,3777618,"1,165.48",0.00,N/A,N/A
People Services - Adults and Health,Physical Support,Community Support,NATIONWIDE CARE SERVICES,471122,12/10/2021,3777617,"1,078.75",0.00,N/A,N/A
People Services - Adults and Health,Physical Support,Community Support,NATIONWIDE CARE SERVICES,471122,12/10/2021,3777616,805.96,0.00,N/A,N/A
People Services - Adults and Health,Physical Support,Community Support,NATIONWIDE CARE SERVICES,471122,12/10/2021,3777706,737.60,0.00,N/A,N/A
People Services - Adults and Health,Physical Support,Community Support,NATIONWIDE CARE SERVICES,471122,12/10/2021,3777532,"1,165.48",0.00,N/A,N/A
People Services - Adults and Health,Physical Support,Community Support,NATIONWIDE CARE SERVICES,471122,12/10/2021,3777531,"1,042.70",0.00,N/A,N/A
People Services - Adults and Health,Physical Support,Community Support,NATIONWIDE CARE SERVICES,471122,12/10/2021,3777530,990.56,0.00,N/A,N/A
People Services - Adults and Health,Physical Support,Community Support,NATIONWIDE CARE SERVICES,471122,12/10/2021,3777529,641.74,0.00,N/A,N/A
People Services - Adults and Health,Physical Support,Community Support,NATIONWIDE CARE SERVICES,471122,12/10/2021,3777528,595.00,0.00,N/A,N/A
People Services - Adults and Health,Physical Support,Community Support,NATIONWIDE CARE SERVICES,471122,12/10/2021,3777781,679.88,0.00,N/A,N/A
People Services - Adults and Health,Physical Support,Community Support,NATIONWIDE CARE SERVICES,471122,12/10/2021,3777614,"1,266.92",0.00,N/A,N/A
People Services - Adults and Health,Physical Support,Community Support,NATIONWIDE CARE SERVICES,471122,12/10/2021,3777613,"1,266.92",0.00,N/A,N/A
People Services - Adults and Health,Sensory Support,Community Support,NATIONWIDE CARE SERVICES,471122,12/10/2021,3777950,553.03,0.00,N/A,N/A
People Services - Adults and Health,Learning Disability Support,Community Support,NATIONWIDE CARE SERVICES,471122,12/10/2021,3778112,"1,214.76",0.00,N/A,N/A
People Services - Adults and Health,Learning Disability Support,Community Support,NATIONWIDE CARE SERVICES,471122,12/10/2021,3777952,"1,221.48",0.00,N/A,N/A
People Services - Adults and Health,Support with Memory and Cognition,Community Support,NATIONWIDE CARE SERVICES,471122,12/10/2021,3777953,726.36,0.00,N/A,N/A
People Services - Adults and Health,Support with Memory and Cognition,Community Support,NATIONWIDE CARE SERVICES,471122,12/10/2021,3777708,"1,042.08",0.00,N/A,N/A
Communities & Place,"Waste, Street Cleansing & Fleet",Public Protection and Streetride,PACE FUELCARE,474148,12/10/2021,3777200,"37,642.50",0.00,Fleet Hire,Fuels and Fuel Additives and Lubricants
Communities & Place,"Waste, Street Cleansing & Fleet",Public Protection and Streetride,PACE FUELCARE,474148,12/10/2021,3777200,"1,528.38",0.00,Fleet Hire,Fuels and Fuel Additives and Lubricants
Communities & Place,"Waste, Street Cleansing & Fleet",Public Protection and Streetride,PARTSPLUS,1368477,12/10/2021,3776645,"1,455.50",0.00,N/A,N/A
People Services - Adults and Health,Physical Support,Community Support,PATHWAY TO CARE LIMITED,1163472,12/10/2021,3778060,"1,165.48",0.00,N/A,N/A
People Services - Adults and Health,Physical Support,Community Support,PATHWAY TO CARE LIMITED,1163472,12/10/2021,3777739,"1,165.48",0.00,N/A,N/A
People Services - Adults and Health,Physical Support,Community Support,PATHWAY TO CARE LIMITED,1163472,12/10/2021,3777738,"1,165.48",0.00,N/A,N/A
People Services - Adults and Health,Physical Support,Community Support,PATHWAY TO CARE LIMITED,1163472,12/10/2021,3777572,"1,165.48",0.00,N/A,N/A
Corporate Resources,Digital Services & Customer Management,Digital Services & Customer Management,PAYPOINT PAYMENT SERVICES LTD,1128473,12/10/2021,3782296,"4,234.83",0.00,N/A,N/A
People Services - Adults and Health,Mental Health Support,Mental Health,PEOPLE POTENTIAL POSSIBILITIES,125409,12/10/2021,3708059,595.84,0.00,N/A,N/A
Corporate Resources,Facilities Management,Property,PHS GROUP PLC,3958,12/10/2021,3752618,"12,632.70",0.00,Cleaning Operating Account,Cleaning Equipment and Supplies
Communities & Place,Traffic & Transportation,Planning & Transportation,POWERGEN A COMPANY OF E.ON,1044474,12/10/2021,3778443,720.49,0.00,N/A,N/A
Corporate Resources,"Legal, Procurement and Democratic Services","Legal, Procurement and Democratic Services",PRINT IMAGE NETWORK LTD,1296477,12/10/2021,3782069,736.12,0.00,Registration Of Electors,Printing and Photographic and Audio and
People Services - Adults and Health,Physical Support,Community Support,PROFAD CARE AGENCY LIMITED,1323505,12/10/2021,3777586,"1,021.68",0.00,N/A,N/A
People Services - Adults and Health,Physical Support,Community Support,PROFAD CARE AGENCY LIMITED,1323505,12/10/2021,3777678,837.08,0.00,N/A,N/A
People Services - Adults and Health,Physical Support,Community Support,PROFAD CARE AGENCY LIMITED,1323505,12/10/2021,3777677,676.28,0.00,N/A,N/A
People Services - Adults and Health,Physical Support,Community Support,PROFAD CARE AGENCY LIMITED,1323505,12/10/2021,3777917,"1,007.88",0.00,N/A,N/A
People Services - Adults and Health,Physical Support,Community Support,PROFAD CARE AGENCY LIMITED,1323505,12/10/2021,3777676,"1,007.88",0.00,N/A,N/A
People Services - Adults and Health,Mental Health Support,Mental Health,PURPLE BLOSSOM HEALTHCARE LTD,1672472,12/10/2021,3777510,833.28,0.00,N/A,N/A
People Services - Adults and Health,Mental Health Support,Mental Health,PURPLE BLOSSOM HEALTHCARE LTD,1672472,12/10/2021,3777509,833.28,0.00,N/A,N/A
People Services - Adults and Health,Physical Support,Community Support,QUALITY CARE SERVICES,388475,12/10/2021,3778151,884.76,0.00,N/A,N/A
People Services - Adults and Health,Physical Support,Community Support,QUALITY CARE SERVICES,388475,12/10/2021,3777999,"1,165.48",0.00,N/A,N/A
People Services - Adults and Health,Physical Support,Community Support,QUALITY CARE SERVICES,388475,12/10/2021,3777995,"1,090.28",0.00,N/A,N/A
People Services - Adults and Health,Physical Support,Community Support,QUALITY CARE SERVICES,388475,12/10/2021,3777994,988.31,0.00,N/A,N/A
People Services - Adults and Health,Physical Support,Community Support,QUALITY CARE SERVICES,388475,12/10/2021,3777993,942.88,0.00,N/A,N/A
People Services - Adults and Health,Physical Support,Community Support,QUALITY CARE SERVICES,388475,12/10/2021,3777992,856.86,0.00,N/A,N/A
People Services - Adults and Health,Physical Support,Community Support,QUALITY CARE SERVICES,388475,12/10/2021,3777991,754.16,0.00,N/A,N/A
People Services - Adults and Health,Physical Support,Community Support,QUALITY CARE SERVICES,388475,12/10/2021,3777983,594.22,0.00,N/A,N/A
People Services - Adults and Health,Physical Support,Community Support,QUALITY CARE SERVICES,388475,12/10/2021,3778071,"1,242.20",0.00,N/A,N/A
People Services - Adults and Health,Physical Support,Community Support,QUALITY CARE SERVICES,388475,12/10/2021,3778068,"1,090.28",0.00,N/A,N/A
People Services - Adults and Health,Physical Support,Community Support,QUALITY CARE SERVICES,388475,12/10/2021,3778067,"1,090.28",0.00,N/A,N/A
People Services - Adults and Health,Physical Support,Community Support,QUALITY CARE SERVICES,388475,12/10/2021,3778066,988.31,0.00,N/A,N/A
People Services - Adults and Health,Physical Support,Community Support,QUALITY CARE SERVICES,388475,12/10/2021,3778065,911.76,0.00,N/A,N/A
People Services - Adults and Health,Physical Support,Community Support,QUALITY CARE SERVICES,388475,12/10/2021,3778064,737.08,0.00,N/A,N/A
People Services - Adults and Health,Physical Support,Community Support,QUALITY CARE SERVICES,388475,12/10/2021,3778063,631.83,0.00,N/A,N/A
People Services - Adults and Health,Physical Support,Community Support,QUALITY CARE SERVICES,388475,12/10/2021,3778053,609.16,0.00,N/A,N/A
People Services - Adults and Health,Physical Support,Community Support,QUALITY CARE SERVICES,388475,12/10/2021,3777912,"1,413.12",0.00,N/A,N/A
People Services - Adults and Health,Physical Support,Community Support,QUALITY CARE SERVICES,388475,12/10/2021,3777911,"1,165.48",0.00,N/A,N/A
People Services - Adults and Health,Physical Support,Community Support,QUALITY CARE SERVICES,388475,12/10/2021,3777910,"1,165.48",0.00,N/A,N/A
People Services - Adults and Health,Physical Support,Community Support,QUALITY CARE SERVICES,388475,12/10/2021,3777909,"1,165.48",0.00,N/A,N/A
People Services - Adults and Health,Physical Support,Community Support,QUALITY CARE SERVICES,388475,12/10/2021,3777908,"1,010.52",0.00,N/A,N/A
People Services - Adults and Health,Physical Support,Community Support,QUALITY CARE SERVICES,388475,12/10/2021,3777907,984.48,0.00,N/A,N/A
People Services - Adults and Health,Physical Support,Community Support,QUALITY CARE SERVICES,388475,12/10/2021,3777906,754.16,0.00,N/A,N/A
People Services - Adults and Health,Physical Support,Community Support,QUALITY CARE SERVICES,388475,12/10/2021,3777905,641.91,0.00,N/A,N/A
People Services - Adults and Health,Physical Support,Community Support,QUALITY CARE SERVICES,388475,12/10/2021,3778039,956.56,0.00,N/A,N/A
People Services - Adults and Health,Physical Support,Community Support,QUALITY CARE SERVICES,388475,12/10/2021,3777900,525.42,0.00,N/A,N/A
People Services - Adults and Health,Physical Support,Community Support,QUALITY CARE SERVICES,388475,12/10/2021,3777899,512.63,0.00,N/A,N/A
People Services - Adults and Health,Physical Support,Community Support,QUALITY CARE SERVICES,388475,12/10/2021,3777895,596.70,0.00,N/A,N/A
People Services - Adults and Health,Physical Support,Community Support,QUALITY CARE SERVICES,388475,12/10/2021,3777829,"1,196.68",0.00,N/A,N/A
People Services - Adults and Health,Physical Support,Community Support,QUALITY CARE SERVICES,388475,12/10/2021,3777828,"1,165.48",0.00,N/A,N/A
People Services - Adults and Health,Physical Support,Community Support,QUALITY CARE SERVICES,388475,12/10/2021,3777815,570.48,0.00,N/A,N/A
People Services - Adults and Health,Physical Support,Community Support,QUALITY CARE SERVICES,388475,12/10/2021,3777814,568.00,0.00,N/A,N/A
People Services - Adults and Health,Physical Support,Community Support,QUALITY CARE SERVICES,388475,12/10/2021,3777647,766.20,0.00,N/A,N/A
People Services - Adults and Health,Physical Support,Community Support,QUALITY CARE SERVICES,388475,12/10/2021,3777639,528.59,0.00,N/A,N/A
People Services - Adults and Health,Physical Support,Community Support,QUALITY CARE SERVICES,388475,12/10/2021,3777799,649.32,0.00,N/A,N/A
People Services - Adults and Health,Physical Support,Community Support,QUALITY CARE SERVICES,388475,12/10/2021,3777635,572.92,0.00,N/A,N/A
People Services - Adults and Health,Physical Support,Community Support,QUALITY CARE SERVICES,388475,12/10/2021,3777754,"1,164.72",0.00,N/A,N/A
People Services - Adults and Health,Physical Support,Community Support,QUALITY CARE SERVICES,388475,12/10/2021,3777753,"1,159.40",0.00,N/A,N/A
People Services - Adults and Health,Physical Support,Community Support,QUALITY CARE SERVICES,388475,12/10/2021,3777746,631.00,0.00,N/A,N/A
People Services - Adults and Health,Physical Support,Community Support,QUALITY CARE SERVICES,388475,12/10/2021,3777745,954.84,0.00,N/A,N/A
People Services - Adults and Health,Physical Support,Community Support,QUALITY CARE SERVICES,388475,12/10/2021,3777744,939.28,0.00,N/A,N/A
People Services - Adults and Health,Physical Support,Community Support,QUALITY CARE SERVICES,388475,12/10/2021,3777743,856.86,0.00,N/A,N/A
People Services - Adults and Health,Physical Support,Community Support,QUALITY CARE SERVICES,388475,12/10/2021,3777742,664.12,0.00,N/A,N/A
People Services - Adults and Health,Physical Support,Community Support,QUALITY CARE SERVICES,388475,12/10/2021,3777737,506.52,0.00,N/A,N/A
People Services - Adults and Health,Physical Support,Community Support,QUALITY CARE SERVICES,388475,12/10/2021,3777583,"1,521.32",0.00,N/A,N/A
People Services - Adults and Health,Physical Support,Community Support,QUALITY CARE SERVICES,388475,12/10/2021,3777578,917.84,0.00,N/A,N/A
People Services - Adults and Health,Physical Support,Community Support,QUALITY CARE SERVICES,388475,12/10/2021,3777577,917.84,0.00,N/A,N/A
People Services - Adults and Health,Physical Support,Community Support,QUALITY CARE SERVICES,388475,12/10/2021,3777576,884.76,0.00,N/A,N/A
People Services - Adults and Health,Physical Support,Community Support,QUALITY CARE SERVICES,388475,12/10/2021,3777575,805.96,0.00,N/A,N/A
People Services - Adults and Health,Physical Support,Community Support,QUALITY CARE SERVICES,388475,12/10/2021,3777574,798.08,0.00,N/A,N/A
People Services - Adults and Health,Physical Support,Community Support,QUALITY CARE SERVICES,388475,12/10/2021,3777573,772.04,0.00,N/A,N/A
People Services - Adults and Health,Physical Support,Community Support,QUALITY CARE SERVICES,388475,12/10/2021,3777570,585.32,0.00,N/A,N/A
People Services - Adults and Health,Physical Support,Community Support,QUALITY CARE SERVICES,388475,12/10/2021,3777720,"1,164.88",0.00,N/A,N/A
People Services - Adults and Health,Physical Support,Community Support,QUALITY CARE SERVICES,388475,12/10/2021,3777713,956.56,0.00,N/A,N/A
People Services - Adults and Health,Physical Support,Community Support,QUALITY CARE SERVICES,388475,12/10/2021,3777549,"1,117.08",0.00,N/A,N/A
People Services - Adults and Health,Physical Support,Community Support,QUALITY CARE SERVICES,388475,12/10/2021,3777548,"1,117.08",0.00,N/A,N/A
People Services - Adults and Health,Physical Support,Community Support,QUALITY CARE SERVICES,388475,12/10/2021,3777672,"1,242.20",0.00,N/A,N/A
People Services - Adults and Health,Physical Support,Community Support,QUALITY CARE SERVICES,388475,12/10/2021,3777671,"1,165.48",0.00,N/A,N/A
People Services - Adults and Health,Physical Support,Community Support,QUALITY CARE SERVICES,388475,12/10/2021,3777670,"1,159.40",0.00,N/A,N/A
People Services - Adults and Health,Physical Support,Community Support,QUALITY CARE SERVICES,388475,12/10/2021,3777667,963.56,0.00,N/A,N/A
People Services - Adults and Health,Sensory Support,Community Support,QUALITY CARE SERVICES,388475,12/10/2021,3778072,"1,165.48",0.00,N/A,N/A
People Services - Adults and Health,Sensory Support,Community Support,QUALITY CARE SERVICES,388475,12/10/2021,3777584,"1,165.48",0.00,N/A,N/A
People Services - Adults and Health,Mental Health Support,Mental Health,QUALITY CARE SERVICES,388475,12/10/2021,3778000,774.04,0.00,N/A,N/A
People Services - Adults and Health,Physical Support,Community Support,QUALITY CARE SERVICES,388475,12/10/2021,3778128,"1,063.28",0.00,N/A,N/A
People Services - Adults and Health,Physical Support,Community Support,QUALITY CARE SERVICES,388475,12/10/2021,3777978,805.96,0.00,N/A,N/A
People Services - Adults and Health,Physical Support,Community Support,QUALITY CARE SERVICES,388475,12/10/2021,3778044,"2,473.84",0.00,N/A,N/A
People Services - Adults and Health,Physical Support,Community Support,QUALITY CARE SERVICES,388475,12/10/2021,3777889,805.96,0.00,N/A,N/A
People Services - Adults and Health,Physical Support,Community Support,QUALITY CARE SERVICES,388475,12/10/2021,3777884,738.26,0.00,N/A,N/A
People Services - Adults and Health,Physical Support,Community Support,QUALITY CARE SERVICES,388475,12/10/2021,3777649,558.84,0.00,N/A,N/A
People Services - Adults and Health,Physical Support,Community Support,QUALITY CARE SERVICES,388475,12/10/2021,3777648,"1,416.50",0.00,N/A,N/A
People Services - Adults and Health,Physical Support,Community Support,QUALITY CARE SERVICES,388475,12/10/2021,3777728,"1,596.16",0.00,N/A,N/A
People Services - Adults and Health,Learning Disability Support,Community Support,QUALITY CARE SERVICES,388475,12/10/2021,3778159,"1,634.72",0.00,N/A,N/A
People Services - Adults and Health,Learning Disability Support,Community Support,QUALITY CARE SERVICES,388475,12/10/2021,3777797,"3,731.48",0.00,N/A,N/A
People Services - Adults and Health,Learning Disability Support,Community Support,QUALITY CARE SERVICES,388475,12/10/2021,3777755,797.04,0.00,N/A,N/A
People Services - Adults and Health,Learning Disability Support,Community Support,QUALITY CARE SERVICES,388475,12/10/2021,3777714,"1,065.14",0.00,N/A,N/A
People Services - Adults and Health,Support with Memory and Cognition,Community Support,QUALITY CARE SERVICES,388475,12/10/2021,3778162,"1,142.42",0.00,N/A,N/A
People Services - Adults and Health,Mental Health Support,Community Support,QUALITY CARE SERVICES,388475,12/10/2021,3777833,521.24,0.00,N/A,N/A
People Services - Adults and Health,Mental Health Support,Community Support,QUALITY CARE SERVICES,388475,12/10/2021,3777758,894.68,0.00,N/A,N/A
People Services - Adults and Health,Mental Health Support,Community Support,QUALITY CARE SERVICES,388475,12/10/2021,3777834,506.52,0.00,N/A,N/A
Adults Health and Housing,Adults Health and Housing,Adults Health and Housing,RAWSONS (DERBY),4417,12/10/2021,3778613,"13,000.00",0.00,REFCUS - Disabled Facilities Grant 96 Act,Furniture and Furnishings
People Services - Adults and Health,Support to Carers,Community Support,REDACTED - PERSONAL DATA,60249,12/10/2021,3780916,"1,007.64",0.00,N/A,N/A
People Services - Adults and Health,Learning Disability Support,Transitions and Ordinary Lives,REDACTED - PERSONAL DATA,667469,12/10/2021,3781682,981.96,0.00,N/A,N/A
People Services - Adults and Health,Physical Support,Community Support,REDACTED - PERSONAL DATA,257427,12/10/2021,3781802,564.16,0.00,N/A,N/A
People Services - Adults and Health,Learning Disability Support,Community Support,REDACTED - PERSONAL DATA,145356,12/10/2021,3780131,543.64,0.00,N/A,N/A
People Services - Adults and Health,Learning Disability Support,Transitions and Ordinary Lives,REDACTED - PERSONAL DATA,146403,12/10/2021,3781450,"3,112.00",0.00,N/A,N/A
People Services - Adults and Health,Learning Disability Support,Transitions and Ordinary Lives,REDACTED - PERSONAL DATA,941502,12/10/2021,3781386,711.36,0.00,N/A,N/A
People Services - Adults and Health,Learning Disability Support,Community Support,REDACTED - PERSONAL DATA,961486,12/10/2021,3781068,632.20,0.00,N/A,N/A
People Services - Adults and Health,Learning Disability Support,Community Support,REDACTED - PERSONAL DATA,150330,12/10/2021,3781945,"1,144.84",0.00,N/A,N/A
People Services - Adults and Health,Physical Support,Community Support,REDACTED - PERSONAL DATA,123939,12/10/2021,3780858,"1,142.12",0.00,N/A,N/A
People Services - Children & Young People,Integrated Services,Non-Schools,REDACTED - PERSONAL DATA,1591484,12/10/2021,3778406,"1,268.16",0.00,N/A,N/A
People Services - Children & Young People,Commissioning,Non-Schools,REDACTED - PERSONAL DATA,1551508,12/10/2021,3782121,"1,170.00",0.00,N/A,N/A
People Services - Adults and Health,Physical Support,Community Support,REDACTED - PERSONAL DATA,385453,12/10/2021,3780704,663.64,0.00,N/A,N/A
People Services - Adults and Health,Learning Disability Support,Transitions and Ordinary Lives,REDACTED - PERSONAL DATA,577454,12/10/2021,3781836,"1,120.72",0.00,N/A,N/A
People Services - Adults and Health,Physical Support,Community Support,REDACTED - PERSONAL DATA,175332,12/10/2021,3781445,684.36,0.00,N/A,N/A
People Services - Adults and Health,Learning Disability Support,Transitions and Ordinary Lives,REDACTED - PERSONAL DATA,909469,12/10/2021,3780995,584.88,0.00,N/A,N/A
People Services - Adults and Health,Learning Disability Support,Transitions and Ordinary Lives,REDACTED - PERSONAL DATA,125534,12/10/2021,3780801,860.16,0.00,N/A,N/A
People Services - Adults and Health,Physical Support,Community Support,REDACTED - PERSONAL DATA,1519494,12/10/2021,3781578,802.32,0.00,N/A,N/A
Communities & Place,Community Safety,Public Protection and Streetride,REDACTED - PERSONAL DATA,1072478,12/10/2021,3777221,"4,998.13",0.00,Preventing Violent Extremism,Organizations and Clubs-Clubs
People Services - Adults and Health,Learning Disability Support,Transitions and Ordinary Lives,REDACTED - PERSONAL DATA,186917,12/10/2021,3781947,"4,038.24",0.00,N/A,N/A
People Services - Adults and Health,Mental Health Support,Mental Health,REDACTED - PERSONAL DATA,1599469,12/10/2021,3781409,847.24,0.00,N/A,N/A
People Services - Adults and Health,Mental Health Support,Mental Health,REDACTED - PERSONAL DATA,1202470,12/10/2021,3780429,"1,179.32",0.00,N/A,N/A
People Services - Adults and Health,Learning Disability Support,Transitions and Ordinary Lives,REDACTED - PERSONAL DATA,188364,12/10/2021,3780755,"1,038.04",0.00,N/A,N/A
People Services - Adults and Health,Sensory Support,Community Support,REDACTED - PERSONAL DATA,1217476,12/10/2021,3780123,"7,824.00",0.00,N/A,N/A
People Services - Adults and Health,Learning Disability Support,Community Support,REDACTED - PERSONAL DATA,386414,12/10/2021,3780286,"1,901.12",0.00,N/A,N/A
People Services - Adults and Health,Learning Disability Support,Transitions and Ordinary Lives,REDACTED - PERSONAL DATA,1092479,12/10/2021,3780252,"1,424.96",0.00,N/A,N/A
People Services - Adults and Health,Learning Disability Support,Transitions and Ordinary Lives,REDACTED - PERSONAL DATA,473422,12/10/2021,3780576,"2,380.40",0.00,N/A,N/A
People Services - Adults and Health,Mental Health Support,Mental Health,REDACTED - PERSONAL DATA,126359,12/10/2021,3781438,711.24,0.00,N/A,N/A
People Services - Adults and Health,Sensory Support,Community Support,REDACTED - PERSONAL DATA,790444,12/10/2021,3781591,"1,800.00",0.00,N/A,N/A
People Services - Adults and Health,Support to Carers,Community Support,REDACTED - PERSONAL DATA,162345,12/10/2021,3780543,"1,031.84",0.00,N/A,N/A
People Services - Adults and Health,Learning Disability Support,Community Support,REDACTED - PERSONAL DATA,852455,12/10/2021,3781083,934.40,0.00,N/A,N/A
People Services - Adults and Health,Physical Support,Community Support,REDACTED - PERSONAL DATA,473627,12/10/2021,3781271,971.00,0.00,N/A,N/A
People Services - Adults and Health,Physical Support,Community Support,REDACTED - PERSONAL DATA,201370,12/10/2021,3780761,"7,269.24",0.00,N/A,N/A
People Services - Adults and Health,Physical Support,Community Support,REDACTED - PERSONAL DATA,385532,12/10/2021,3780271,976.32,0.00,N/A,N/A
People Services - Adults and Health,Physical Support,Community Support,REDACTED - PERSONAL DATA,362397,12/10/2021,3781662,"1,917.24",0.00,N/A,N/A
People Services - Adults and Health,Learning Disability Support,Community Support,REDACTED - PERSONAL DATA,251428,12/10/2021,3781502,"1,620.04",0.00,N/A,N/A
People Services - Adults and Health,Mental Health Support,Mental Health,REDACTED - PERSONAL DATA,385547,12/10/2021,3780908,902.16,0.00,N/A,N/A
People Services - Adults and Health,Learning Disability Support,Community Support,REDACTED - PERSONAL DATA,170522,12/10/2021,3780076,860.00,0.00,N/A,N/A
People Services - Adults and Health,Physical Support,Community Support,REDACTED - PERSONAL DATA,386416,12/10/2021,3780521,"6,934.68",0.00,N/A,N/A
People Services - Adults and Health,Learning Disability Support,Community Support,REDACTED - PERSONAL DATA,1102485,12/10/2021,3780930,935.84,0.00,N/A,N/A
People Services - Adults and Health,Physical Support,Community Support,REDACTED - PERSONAL DATA,155401,12/10/2021,3781223,530.00,0.00,N/A,N/A
People Services - Adults and Health,Learning Disability Support,Transitions and Ordinary Lives,REDACTED - PERSONAL DATA,555450,12/10/2021,3781296,"2,124.84",0.00,N/A,N/A
People Services - Adults and Health,Sensory Support,Community Support,REDACTED - PERSONAL DATA,188459,12/10/2021,3781245,565.28,0.00,N/A,N/A
People Services - Adults and Health,Physical Support,Community Support,REDACTED - PERSONAL DATA,124968,12/10/2021,3781980,"1,754.96",0.00,N/A,N/A
People Services - Adults and Health,Learning Disability Support,Community Support,REDACTED - PERSONAL DATA,187806,12/10/2021,3780112,"1,476.04",0.00,N/A,N/A
People Services - Adults and Health,Learning Disability Support,Transitions and Ordinary Lives,REDACTED - PERSONAL DATA,474026,12/10/2021,3780788,"2,608.88",0.00,N/A,N/A
People Services - Adults and Health,Learning Disability Support,Community Support,REDACTED - PERSONAL DATA,961488,12/10/2021,3780467,968.04,0.00,N/A,N/A
People Services - Adults and Health,Learning Disability Support,Transitions and Ordinary Lives,REDACTED - PERSONAL DATA,260398,12/10/2021,3781265,"3,482.36",0.00,N/A,N/A
People Services - Adults and Health,Mental Health Support,Mental Health,REDACTED - PERSONAL DATA,125708,12/10/2021,3780712,840.44,0.00,N/A,N/A
People Services - Adults and Health,Physical Support,Community Support,REDACTED - PERSONAL DATA,170383,12/10/2021,3780822,895.00,0.00,N/A,N/A
People Services - Adults and Health,Physical Support,Community Support,REDACTED - PERSONAL DATA,642457,12/10/2021,3781307,777.08,0.00,N/A,N/A
People Services - Adults and Health,Learning Disability Support,Community Support,REDACTED - PERSONAL DATA,124757,12/10/2021,3780701,"1,222.80",0.00,N/A,N/A
People Services - Adults and Health,Physical Support,Community Support,REDACTED - PERSONAL DATA,1239499,12/10/2021,3781449,748.08,0.00,N/A,N/A
People Services - Adults and Health,Physical Support,Community Support,REDACTED - PERSONAL DATA,1040478,12/10/2021,3781618,"1,068.96",0.00,N/A,N/A
People Services - Adults and Health,Physical Support,Community Support,REDACTED - PERSONAL DATA,841461,12/10/2021,3780451,"1,072.40",0.00,N/A,N/A
People Services - Adults and Health,Physical Support,Community Support,REDACTED - PERSONAL DATA,1603476,12/10/2021,3780882,720.00,0.00,N/A,N/A
People Services - Adults and Health,Mental Health Support,Mental Health,REDACTED - PERSONAL DATA,852453,12/10/2021,3781905,"1,184.04",0.00,N/A,N/A
People Services - Adults and Health,Physical Support,Community Support,REDACTED - PERSONAL DATA,1437494,12/10/2021,3781373,"1,680.28",0.00,N/A,N/A
People Services - Adults and Health,Mental Health Support,Mental Health,REDACTED - PERSONAL DATA,126365,12/10/2021,3781440,526.44,0.00,N/A,N/A
People Services - Adults and Health,Learning Disability Support,Transitions and Ordinary Lives,REDACTED - PERSONAL DATA,555448,12/10/2021,3781525,"2,123.16",0.00,N/A,N/A
People Services - Adults and Health,Learning Disability Support,Transitions and Ordinary Lives,REDACTED - PERSONAL DATA,502424,12/10/2021,3781821,"3,133.52",0.00,N/A,N/A
People Services - Adults and Health,Mental Health Support,Mental Health,REDACTED - PERSONAL DATA,246424,12/10/2021,3781259,571.64,0.00,N/A,N/A
People Services - Children & Young People,Commissioning,Non-Schools,REDACTED - PERSONAL DATA,16855,12/10/2021,3777357,"2,184.00",0.00,N/A,N/A
People Services - Adults and Health,Learning Disability Support,Transitions and Ordinary Lives,REDACTED - PERSONAL DATA,1076473,12/10/2021,3781620,904.44,0.00,N/A,N/A
People Services - Adults and Health,Sensory Support,Community Support,REDACTED - PERSONAL DATA,801451,12/10/2021,3780449,502.28,0.00,N/A,N/A
People Services - Adults and Health,Learning Disability Support,Transitions and Ordinary Lives,REDACTED - PERSONAL DATA,236421,12/10/2021,3781159,"2,662.44",0.00,N/A,N/A
People Services - Adults and Health,Learning Disability Support,Transitions and Ordinary Lives,REDACTED - PERSONAL DATA,1040476,12/10/2021,3780642,589.64,0.00,N/A,N/A
People Services - Adults and Health,Learning Disability Support,Transitions and Ordinary Lives,REDACTED - PERSONAL DATA,863451,12/10/2021,3780798,"6,940.56",0.00,N/A,N/A
People Services - Adults and Health,Sensory Support,Community Support,REDACTED - PERSONAL DATA,801447,12/10/2021,3781592,792.68,0.00,N/A,N/A
People Services - Adults and Health,Learning Disability Support,Transitions and Ordinary Lives,REDACTED - PERSONAL DATA,1178471,12/10/2021,3781614,505.88,0.00,N/A,N/A
People Services - Adults and Health,Learning Disability Support,Community Support,REDACTED - PERSONAL DATA,112608,12/10/2021,3780848,"1,226.00",0.00,N/A,N/A
People Services - Adults and Health,Mental Health Support,Mental Health,REDACTED - PERSONAL DATA,1570477,12/10/2021,3781194,971.60,0.00,N/A,N/A
People Services - Adults and Health,Learning Disability Support,Community Support,REDACTED - PERSONAL DATA,235398,12/10/2021,3780370,662.84,0.00,N/A,N/A
People Services - Adults and Health,Learning Disability Support,Community Support,REDACTED - PERSONAL DATA,183349,12/10/2021,3780094,640.00,0.00,N/A,N/A
People Services - Adults and Health,Physical Support,Community Support,REDACTED - PERSONAL DATA,1432473,12/10/2021,3781587,773.80,0.00,N/A,N/A
People Services - Adults and Health,Physical Support,Community Support,REDACTED - PERSONAL DATA,1641477,12/10/2021,3781977,700.00,0.00,N/A,N/A
People Services - Adults and Health,Physical Support,Community Support,REDACTED - PERSONAL DATA,476425,12/10/2021,3781816,784.60,0.00,N/A,N/A
People Services - Adults and Health,Physical Support,Community Support,REDACTED - PERSONAL DATA,660460,12/10/2021,3781109,640.76,0.00,N/A,N/A
People Services - Adults and Health,Physical Support,Community Support,REDACTED - PERSONAL DATA,153596,12/10/2021,3780106,954.20,0.00,N/A,N/A
People Services - Adults and Health,Mental Health Support,Mental Health,REDACTED - PERSONAL DATA,125225,12/10/2021,3780863,712.52,0.00,N/A,N/A
People Services - Adults and Health,Learning Disability Support,Community Support,REDACTED - PERSONAL DATA,192393,12/10/2021,3781152,"7,778.44",0.00,N/A,N/A
People Services - Adults and Health,Learning Disability Support,Transitions and Ordinary Lives,REDACTED - PERSONAL DATA,1189475,12/10/2021,3780870,853.44,0.00,N/A,N/A
People Services - Adults and Health,Learning Disability Support,Transitions and Ordinary Lives,REDACTED - PERSONAL DATA,581461,12/10/2021,3781299,"1,017.80",0.00,N/A,N/A
People Services - Adults and Health,Learning Disability Support,Transitions and Ordinary Lives,REDACTED - PERSONAL DATA,581461,12/10/2021,3778647,"1,017.80",0.00,N/A,N/A
People Services - Adults and Health,Learning Disability Support,Transitions and Ordinary Lives,REDACTED - PERSONAL DATA,581461,12/10/2021,3778663,508.90,0.00,N/A,N/A
People Services - Children & Young People,Commissioning,Non-Schools,REDACTED - PERSONAL DATA,1638473,12/10/2021,3777363,"1,122.00",0.00,N/A,N/A
People Services - Adults and Health,Learning Disability Support,Community Support,REDACTED - PERSONAL DATA,386408,12/10/2021,3780729,"2,678.24",0.00,N/A,N/A
People Services - Adults and Health,Learning Disability Support,Transitions and Ordinary Lives,REDACTED - PERSONAL DATA,696464,12/10/2021,3781289,"2,174.44",0.00,N/A,N/A
People Services - Adults and Health,Learning Disability Support,Community Support,REDACTED - PERSONAL DATA,162332,12/10/2021,3781938,"2,226.04",0.00,N/A,N/A
People Services - Adults and Health,Sensory Support,Community Support,REDACTED - PERSONAL DATA,1586480,12/10/2021,3781973,520.00,0.00,N/A,N/A
People Services - Adults and Health,Learning Disability Support,Community Support,REDACTED - PERSONAL DATA,992485,12/10/2021,3780899,"3,799.92",0.00,N/A,N/A
People Services - Adults and Health,Learning Disability Support,Transitions and Ordinary Lives,REDACTED - PERSONAL DATA,653453,12/10/2021,3780195,"1,069.72",0.00,N/A,N/A
People Services - Children & Young People,Integrated Services,Non-Schools,REDACTED - PERSONAL DATA,649454,12/10/2021,3777488,730.20,0.00,N/A,N/A
People Services - Adults and Health,Support with Memory and Cognition,Community Support,REDACTED - PERSONAL DATA,579447,12/10/2021,3781105,540.32,0.00,N/A,N/A
People Services - Adults and Health,Learning Disability Support,Transitions and Ordinary Lives,REDACTED - PERSONAL DATA,112150,12/10/2021,3781466,"1,672.72",0.00,N/A,N/A
People Services - Adults and Health,Learning Disability Support,Transitions and Ordinary Lives,REDACTED - PERSONAL DATA,1295469,12/10/2021,3781890,"4,128.68",0.00,N/A,N/A
People Services - Adults and Health,Physical Support,Community Support,REDACTED - PERSONAL DATA,385467,12/10/2021,3781189,647.40,0.00,N/A,N/A
People Services - Adults and Health,Learning Disability Support,Transitions and Ordinary Lives,REDACTED - PERSONAL DATA,480399,12/10/2021,3780388,"2,409.04",0.00,N/A,N/A
People Services - Adults and Health,Physical Support,Community Support,REDACTED - PERSONAL DATA,879454,12/10/2021,3780557,897.08,0.00,N/A,N/A
People Services - Adults and Health,Physical Support,Community Support,REDACTED - PERSONAL DATA,385421,12/10/2021,3780692,826.88,0.00,N/A,N/A
People Services - Adults and Health,Learning Disability Support,Transitions and Ordinary Lives,REDACTED - PERSONAL DATA,1031478,12/10/2021,3780466,510.00,0.00,N/A,N/A
People Services - Adults and Health,Mental Health Support,Mental Health,REDACTED - PERSONAL DATA,1225473,12/10/2021,3781354,659.56,0.00,N/A,N/A
